Workbook

Sheet Main
B5: Background
C7: California's In-Conduit Hydropower Implementation Guidebook: A Compendium of Resources, Best Practices, and Tools
B12: Instructions
C14: Business Case Assessment Tool
C15: This tool was created by Stantec Consulting Services Inc. in collaboration with NLine Energy and the RENEWit Center at Stanford University for the California Energy Commission in 2019. A user guide is included in the report entitled "California's In-Conduit Hydropower Implementation Guidebook: A Compendium of Resources, Best Practices, and Tools". The final report is in preparation and will be found at https://www.energy.ca.gov/publications/ If you have trouble accessing the tool, please contact erdd.admin@energy.ca.gov and we will provide the information in an alternative format.
B18: Disclaimer
C20: This report was prepared as the result of work sponsored by the California Energy Commission. It does not necessarily represent the views of the Energy Commission, its employees or the State of California. The Energy Commission, the State of California, its employees, contractors and subcontractors make no warranty, express or implied, and assume no legal liability for the information in this tool. This tool is presented solely for informational purpose.

Sheet Project Info
B2: Project Information
C4: Project Name
C5: Project Location
C6: Project Description
C7: Contact Person
B10: Utility Information
C12: Utility Name
C13: Utility Type
C15: Publicly or Investor-Owned Utility | E15: - Select
B18: Site Characteristics
C20: Please select from the dropdown menus below
C22: Conduit Type | E22: - Select
C23: Facility Type | E23: - Select
C24: Topography Type | E24: - Select
C25: Water Type | E25: - Select

Sheet Turbine Selection
B2: Project Information
C4: Project Name | E4: ='Project Info'!E4 -> 0
C5: Project Location | E5: ='Project Info'!E5 -> 0
C6: Project Description | E6: ='Project Info'!E6 -> 0
C7: Contact Person | E7: ='Project Info'!E7 -> 0
B10: Turbine Selection and Hydropower Potential
C12: Downstream Pressure Requirement | E12: - Select | I12: Please select
C14: Recommended Turbine Category | E14: =IF(E12="Not Required","Impulse", IF(E12="Required","Reaction","Please complete information above")) -> Please complete information above
C15: Turbine Type | E15: - Select | I15: Please select
E17: Unit | G17: Value
C18: Upstream Pressure | E18: - Select | I18: Please select the unit
C19: Downstream Pressure | E19: - Select | I19: Please select the unit
C21: Differential Pressure | E21: =E19 -> - Select | G21: =G18-G19 -> 0
C22: Head | E22: ft | G22: ='Turbine calculation'!I8 -> 0
I24: Reference Value
C25: Design Flow | E25: - Select | I25: =IF(E12="Required","3 - 200 cfs", IF(E12="Not Required", "30 - 1000 cfs", "Please specify pressure requirment")) -> Please specify pressure requirment
C26: Capacity Factor | E26: % | I26: =IF('Project Info'!E25="Raw Water","40 - 45%", IF('Project Info'!E25="Potable Water",">60 - 85%", IF('Project Info'!E25="Reclaimed/Recycled Water",">60 - 85%", IF( 'Project Info'!E25="Wastewater",">90%", "Please specify water type")))) -> Please specify water type
C27: Water-to-wire Efficiency | E27: % | I27: =IF(E14="Reaction", "70 - 75%", IF(E14="Impulse", "75 - 80%", "Please specify pressure requirement")) -> Please specify pressure requirement
C29: Hydropower Potential | E29: kW | G29: ='Turbine calculation'!E18 -> 0
C30: Annual Energy Generation | E30: kWh | G30: =G29*8760*G26/100 -> 0
I33: Click the button to verify
I34: suitability of the turbine selected

Sheet LCC Assumption
B2: Project Information
C4: Project Name | D4: ='Project Info'!E4 -> 0
C5: Project Location | D5: ='Project Info'!E5 -> 0
C6: Project Description | D6: ='Project Info'!E6 -> 0
C7: Contact Person | D7: ='Project Info'!E7 -> 0
B10: LCC Period, Cost, Financial and Economic Assumptions
B12: I | C12: Life Cycle Assumptions | D12: Unit | F12: Value | H12: Example Value
C13: Period | D13: Years | H13: 20
C14: Initial year of operations | D14: - | H14: 2019
C15: Year of analysis | D15: - | H15: 2019
B17: II | C17: Cost Assumptions | D17: Unit | F17: Value | H17: Example Value
C18: Cost estimate dollar basis year | D18: - | H18: 2019
C19: Construction cost escalation | D19: % (Annual) | H19: 0.035
C20: O&M and general cost escalation | D20: % (Annual) | H20: 0.03
B22: III | C22: Financial Assumptions | D22: Unit | F22: Value | H22: Example Value
C23: Capital treatment: lump sum or financed | F23: Select- | H23: D/S
C24: Financing interest rate | D24: % | H24: 0.0525
C25: Financing maturity | D25: Years | H25: 20
C26: Financing costs, capitalized | D26: % | H26: 0.02
C27: Capitalized interest | D27: % | H27: 0
C28: Debt structure | D28: Annual | F28: Equal | H28: Equal
C29: Bond reserve | D29: % | H29: 0
B31: IV | C31: Economic Assumptions | D31: Unit | F31: Value | H31: Example Value
C32: Discount rate (cost of capital) | D32: % | H32: =H24 -> 0.0525
C33: Annual growth in electricty consumption | D33: % | H33: 0.02
B35: V | C35: Electricity Charges Assumptions | D35: Unit | F35: Value | H35: Example Range
C36: Electricity rates (purchase) | D36: $/kWh | H36: $0.06 - $0.20
C37: Demand Charge (purchase) | D37: $/kW | H37: $10 - $15
C38: Electricity rates (sold) | D38: $/kWh | H38: $0.04 - $0.13
C39: Net energy metering (NEM) | D39: $/kWh | H39: $0.04 - $0.13
C40: Net energy metering aggregation (NEMA) | D40: $/kWh | H40: $0.04 - $0.12
C41: RES-BCT (Bill Credit Transfer) | D41: $/kWh | H41: $0.06 - $0.09
C42: Other programs | D42: $/kWh

Sheet Capital Costs
B2: Project Information
D4: Project Name | E4: ='Project Info'!E4 -> 0
D5: Project Location | E5: ='Project Info'!E5 -> 0
D6: Project Description | E6: ='Project Info'!E6 -> 0
D7: Contact Person | E7: ='Project Info'!E7 -> 0
B10: Input for Determination of Capital Costs of In-Conduit Hydropower Project
D12: Turbine Type | E12: ='Turbine Selection'!E15 -> - Select
E14: Units | G14: Value
D15: Hydropower Potential | E15: kW | G15: ='Turbine Selection'!G29 -> 0
E17: Unit | G17: Value | I17: Reference Value for the Specified Potential
C18: I | D18: Turbine, Generator, Switchgear | E18: $ | I18: =VLOOKUP(E12,'Cost Reference'!$L$25:$M$28, 2, TRUE) -> 
C19: II | D19: Programming/Control | E19: $ | I19: =CHOOSE(VLOOKUP(E12,INDEX[],2,FALSE),VLOOKUP(G15,FranProg[],2),VLOOKUP(G15,PATProg[],2),VLOOKUP(G15,PeltProg[],2),VLOOKUP(G15,TurgProg[],2))*I18 -> 
C20: III | D20: Civil | E20: $ | I20: =CHOOSE(VLOOKUP(E12,Index2[],2,FALSE),VLOOKUP(G15,FranCiv[],2),VLOOKUP(G15,PATCiv[],2),VLOOKUP(G15,PeltCiv[],2),VLOOKUP(G15,TurgCiv[],2))*I18 -> 
C21: IV | D21: Mechanical | E21: $ | I21: =CHOOSE(VLOOKUP(E12,Index3[],2,FALSE),VLOOKUP(G15,FranMec[],2),VLOOKUP(G15,PATMec[],2),VLOOKUP(G15,PeltMec[],2),VLOOKUP(G15,TurgMec[],2))*I18 -> 
C22: V | D22: Electrical Assembly and Wiring | E22: $ | I22: =CHOOSE(VLOOKUP(E12,Index4[],2,FALSE),VLOOKUP(G15,FranElec[],2),VLOOKUP(G15,PATElec[],2),VLOOKUP(G15,PeltElec[],2),VLOOKUP(G15,TurgElec[],2))*I18 -> 
C23: VI | D23: Buildings and Structures | E23: $ | I23: =CHOOSE(VLOOKUP(E12,Index5[],2,FALSE),VLOOKUP(G15,FranBuild[],2),VLOOKUP(G15,PATBuild[],2),VLOOKUP(G15,PeltBuild[],2),VLOOKUP(G15,TurgBuild[],2))*I18 -> 
C24: VII | D24: Interconnection | I24: =CHOOSE(VLOOKUP(E12,Index6[],2,FALSE),VLOOKUP(G15,FranInter[],2),VLOOKUP(G15,PATInter[],2),VLOOKUP(G15,PeltInter[],2),VLOOKUP(G15,TurgInter[],2))*SUM(I18:K23) -> 
C25: VIII | D25: Engineering, Plant Startup, Environmental | E25: $ | I25: =CHOOSE(VLOOKUP(E12,Index7[],2,FALSE),VLOOKUP(G15,FranStart[],2),VLOOKUP(G15,PATStart[],2),VLOOKUP(G15,PeltStart[],2),VLOOKUP(G15,TurgStart[],2))*SUM(I18:K23) -> 
D27: Subtotal I Though VIII | E27: $ | G27: =SUM(G18:G25) -> 0 | I27: =SUM(I18:K25) -> 
E29: Unit | G29: Value | I29: Reference Value
C30: IX | D30: Contractor's Miscellaneous Cost | E30: $ | I30: =I27*0.15 -> 
D32: Subtotal I Though IX | E32: $ | G32: =G27+G30 -> 0 | I32: =I27+I30 ->  | O32: `
E34: Unit | G34: Value | I34: Reference Value
C35: X | D35: Owner's Soft and Miscellaneous Cost | E35: $ | I35: =I30*0.1 -> 
D37: Subtotal I Though X | E37: $ | G37: =G32+G35 -> 0 | I37: =I32+I35 -> 
E39: Unit | G39: Value | I39: Reference Value
C40: XI | D40: Contingency | E40: $ | I40: =(0.2*SUM(I18:K24,I30))+(0.05*(I25+I35)) -> 
B43: Capital Cost of In-Conduit Hydropower Project
E45: Unit | G45: Value | I45: Reference Value
D46: Total Capital Cost | E46: $ | G46: =G37+G40 -> 0 | I46: =I37+I40 -> 

Sheet O&M Costs
B2: Project Information
C4: Project Name | D4: ='Project Info'!E4 -> 0
C5: Project Location | D5: ='Project Info'!E5 -> 0
C6: Project Description | D6: ='Project Info'!E6 -> 0
C7: Contact Person | D7: ='Project Info'!E7 -> 0
B10: O&M Costs of In-Conduit Hydropower Project
C12: Turbine Type | E12: ='Turbine Selection'!E15 -> - Select
E14: Units | G14: Value
C15: Hydropower Potential | E15: kW | G15: ='Turbine Selection'!G29 -> 0
I17: Reference Value
C18: Annual O&M Costs | E18: $ | I18: =IF(E12="Pump-as-Turbine", "$6,000", IF(E12="Francis", "$10,000", IF(E12="Pelton", "$5,000 - $7,000", IF(E12="Turgo","$5,000 - $7,000", "-")))) -> -

Sheet Benefits
B2: Project Information
D4: Project Name | F4: ='Project Info'!E4 -> 0
D5: Project Location | F5: ='Project Info'!E5 -> 0
D6: Project Description | F6: ='Project Info'!E6 -> 0
D7: Contact Person | F7: ='Project Info'!E7 -> 0
B10: Project Grants / Incentives
E12: Name | G12: Unit | I12: Value
D13: Grant #1 | G13: $
D14: Grant #2 | G14: $
D15: Incentive #1 | G15: $
D16: Incentive #2 | G16: $
E18: Total Grants/Incentives | G18: $ | I18: =SUM(I13:I16) -> 0
B22: Financial Benefits (First Year)
C24: I | D24: Energy Use | G24: Unit | I24: Value
D25: Total energy generation | G25: kWh | I25: =IF(ISNA('Turbine Selection'!G30), "-", 'Turbine Selection'!G30) -> 0
D26: % Energy used on-site | G26: % | K26: Please specify
D27: Energy used on-site | G27: kWh | I27: =I26*I25 -> 0
D28: Excess energy available for export | G28: kWh | I28: =I25-I27 -> 0
C31: II | D31: Benefits (First Year) - Not escalated | G31: Unit | I31: Value
D32: Avoided energy cost | G32: $ | I32: ='LCC Assumption'!F36*I27 -> 0
D33: Revenue from selling electricity | G33: $ | I33: =$I$28*'LCC Assumption'!F38 -> 0
D34: Revenue from NEM | G34: $ | I34: =$I$28*'LCC Assumption'!F39 -> 0
D35: Revenue from NEMA | G35: $ | I35: =$I$28*'LCC Assumption'!F40 -> 0
D36: Revenue from RES-BCT | G36: $ | I36: =$I$28*'LCC Assumption'!F41 -> 0
D37: Revenue from other electric utility programs | G37: $
D39: Other revenue | G39: $
D41: Total Revenues (First Year) | G41: $ | I41: =SUM(I32:I37)+ I39 -> 0

Sheet GHG Emissions
B2: Project Information
C4: Project Name | D4: ='Project Info'!E4 -> 0
C5: Project Location | D5: ='Project Info'!E5 -> 0
C6: Project Description | D6: ='Project Info'!E6 -> 0
C7: Contact Person | D7: ='Project Info'!E7 -> 0
B10: GHG Emission Factor Selection
C12: Location (eGRID Subregion) | F12: - Select
F14: Units | H14: Value | J14: Reference Value
C15: GHG Emission Factor | F15: lbsCO2/kWh | J15: =IFERROR(VLOOKUP(F12, tbl_items[#All], 3, 0),"") -> -
B18: GHG Emissions Savings
F20: Units | H20: Value
C21: Annual GHG Emissions Savings | F21: lbsCO2 | H21: =H15*'Turbine Selection'!G30 -> 0

Sheet Output
B2: Project Information
C4: Project Name | E4: ='Project Info'!E4 -> 0
C5: Project Location | E5: ='Project Info'!E5 -> 0
C6: Project Description | E6: ='Project Info'!E6 -> 0
C7: Contact Person | E7: ='Project Info'!E7 -> 0
B10: Utility Information
C12: Utility Name | E12: ='Project Info'!E12 -> 0
C13: Utility Type | E13: ='Project Info'!E13 -> 0
C14: Publicly or Investor-Owned Utility | E14: ='Project Info'!E15 -> - Select
B17: Site Characteristics
C19: Conduit Type | E19: ='Project Info'!E22 -> - Select
C20: Facility Type | E20: ='Project Info'!E23 -> - Select
C21: Topography Type | E21: ='Project Info'!E24 -> - Select
C22: Water Type | E22: ='Project Info'!E25 -> - Select
B25: In-Conduit Hydropower System Configuration
F27: Units | H27: Value
C28: Hydropower Potential | F28: kW | H28: ='Turbine Selection'!G29 -> 0
C29: Annual General potential | F29: kWh | H29: ='Turbine Selection'!G30 -> 0
C31: Turbine Type | F31: ='Turbine Selection'!E15 -> - Select
B34: Grants, Incentives, and Revenues
F36: Units | H36: Value
C37: Total Grants/Incentives | F37: $ | H37: =Benefits!I18 -> 0
C38: Total Revenues (First Year) | F38: $ | H38: =Benefits!I41 -> 0
B41: Life Cycle Cost Analysis
C43: First Year Cost | F43: Units | H43: Value
C44: Capital cost (including grants / incentives) | F44: $ | H44: ='Capital Costs'!G46-H37 -> 0
C45: Capital cost per kW | F45: $/kW | H45: =H44/H28 -> 
C46: O&M costs | F46: $ | H46: ='O&M Costs'!G18 -> 0
C47: O&M costs per kW | F47: $/kW | H47: =H46/H28 -> 
C49: Total Cost | F49: $ | H49: =H44+H46 -> 0
C50: Total Cost per kW | F50: $/kW | H50: =H49/H28 -> 
C52: Life Cycle Cost | F52: Units | H52: Value
C53: Life cycle capital cost (present value) | F53: $ | H53: ='LCC Capital '!F9*1000 -> 
C54: Life cycle capital cost per unit energy (present value) | F54: $/kW | H54: =H53/H28 -> 
C55: Life cycle O&M cost (present value) | F55: $ | H55: ='LCC O&M'!F9 -> 
C56: Life cycle O&M per unit energy (present value) | F56: $/kW | H56: =H55/H28 -> 
C58: Total Life Cycle Cost (Present Value) | F58: $ | H58: =H53+H55 -> 
C59: Life Cycle Cost per Unit Energy (Present Value) | F59: $/kW | H59: =H58/H28 -> 
C61: Total Life Cycle Benefit (Present Value) | F61: $ | H61: ='LCC O&M'!F13 -> 0
C62: Life Cycle Benefit per Unit Energy (Present Value) | F62: $/kW | H62: =H61/H28 -> 
F64: Units | H64: Value
C65: Payback Period | F65: years | H65: ='Payback Period'!O9 -> 
B68: Levelized Cost of Energy Analysis
F70: Units | H70: Value
C71: Levelized Cost of Energy | F71: cents/kWh | H71: =(H58*100/((H29))*'LCC Assumption - Hidden'!E38) -> 
B74: GHG Emissions Analysis
F76: Units | H76: Value
C77: Annual GHG Emissions | F77: lbsCO2 | H77: ='GHG Emissions'!H21 -> 0
C78: Life Cycle GHG Emissions | F78: lbsCO2 | H78: =H77*'LCC Assumption - Hidden'!E7 -> 0

Sheet Glossary
B2: Glossary
C4: Term/Acronym | D4: Definition
C5: AKGD | D5: Alaska Interconnection (ASCC) Alaska Grid
C6: AKMS | D6: Alaska Interconnection (ASCC) Miscellaneous
C7: Annual energy generation | D7: The annual energy produced from hydropower plant, calculated as follows:
C8: Annual growth in electricity consumption | D8: The expected increase in electricity rate to be purchased, expressed as a percentage
C9: AZNM | D9: Western Electricity Coordinating Council (WECC) Southwest
C10: CAMX | D10: Western Electricity Coordinating Council (WECC) California
C11: Capacity factor | D11: Ratio of hydropower plant’s annual power production to the power it could have produced if it runs at 100%. It accounts for the number of times the plant is not operating due to daily flow variations, environmental releases, or plant outages. It can be calculated as follows: Capacity factor =
C12: cfs | D12: Cubic feet per second
C13: Construction cost escalation | D13: Changes in the construction cost over a period of time, usually expressed as a percentage
C14: Cost estimate dollar basis year | D14: Capital and O&M cost bases
C15: D/S | D15: Capital costs treated as debt service costs (LCC assumption for capital cost treatment)
C16: Design flow | D16: The water flow rate in the conduit
C17: Differential Pressure | D17: The difference in the fluid pressure, calculated by subtracting the downstream pressure from the upstream pressure (it is considered the available pressure)
C18: Discount rate | D18: Interest rate used in discounted cash flow (DCF) analysis to determine the present value of future cash flows
C19: Downstream Pressure | D19: Pressure required downstream of the hydropower system
C20: Electricity rates (purchase) | D20: The rate of electricity purchased by the asset owner
C21: Electricity rates (sold) | D21: The rate of electricity sold by the asset owner
C22: ERCT | D22: Electric Reliability Council of Texas (ERCOT) All
C23: Financing costs, capitalized | D23: Percentage of bond sale, not % of capital cost
C24: Financing interest rate | D24: Amount of charges imposed by the bank or lender to finance the investment costs, usually expressed as a percentage of the principal
C25: Financing maturity | D25: The period required to fully pay the principal and the remaining interest
C26: FRCC | D26: Florida Reliability Coordinating Council (FRCC) All
C27: GHG | D27: Greenhouse Gas
C28: GHG Emission Factor | D28: Average emission rate of a given GHG for a given source, relative to units of activity
C29: Head | D29: The change in water levels between the hydropower system intake and discharge point
C30: HIMS | D30: Hawaii Island Chamber of Commerce (HICC) Miscellaneous
C31: HIOA | D31: Hawaii Island Chamber of Commerce (HICC) Oahu
C32: Hydropower Potential | D32: Power generated by moving water, calculated as follows: Capacity (kW) = Head (m) × Flow (m3/s) × Density (kg/m3 ) × (g (m/s2 ))/103 × Capacity Factor
C33: Initial year of operations | D33: First year of operations following initial construction
C34: kW | D34: killowatt
C35: kWh | D35: Kilowatt-hour
C36: lb | D36: Pound
C37: LCC | D37: Life Cycle Cost; sum of all recurring and non-recurring costs over the full life span or a specified period of a system
C38: LCOE | D38: Levelized Cost of Energy: the present value of all the resource costs (initial cost, O&M, etc.) divided by the present value of energy across a full project lifetime, usually presented in $/kWh. LCOE can be calculated as follows: Where: LCC is the present value of the LCC; Q is the annual energy generation (kWh); UCRF = uniform capital recovery factor, which is expressed by the following equation: Where: N is the analysis period; and d is the discount rate
C39: LS | D39: Capital costs treated as lump sums (LCC assumption for capital cost treatment)
C40: MROE | D40: Midwest Reliability Organization (MRO) East
C41: MROW | D41: Midwest Reliability Organization (MRO) West
C42: NEM | D42: Net Energy Metering: a billing arrangement that allows customers to receive a financial credit on their electricity bills for any surplus energy sold back to the grid
C43: NEMA | D43: Net Energy Metering Aggregation: it is a subprogram of NEM, which allows an eligible utility (or customer-generator) to aggregate the electrical load from multiple meters and share NEM credits among all properties that are attached, adjacent, or contiguous to the generating facility
C44: NEWE | D44: Northeast Power Coordinating Council (NPCC) New England
C45: NWPP | D45: Western Electricity Coordinating Council (WECC) Northwest
C46: NYCW | D46: Northeast Power Coordinating Council (NPCC) NYC/Westchester
C47: NYLI | D47: Northeast Power Coordinating Council (NPCC) Long Island
C48: NYUP | D48: Northeast Power Coordinating Council (NPCC) Upstate NY
C49: O&M | D49: Operation and Maintenance
C50: O&M and general cost escalation | D50: Changes in the O&M or other costs over a period of time, usually expressed as a percentage
C51: Period | D51: The period for the life cycle cost analysis (in years)
C52: psi | D52: Pounds per square inch
C53: RES-BCT | D53: Renewable Energy Self-Generation Bill Credit Transfer; a subprogram of NEM that allows local governments and universities to share generation credits from an energy generating facility located on one government-owned property with billing accounts at other government-owned properties
C54: RFCE | D54: Reliability First Corporation (RFC) East
C55: RFCM | D55: Reliability First Corporation (RFC) Michigan
C56: RFCW | D56: Reliability First Corporation (RFC) West
C57: RMPA | D57: Western Electricity Coordinating Council (WECC) Rockies
C58: SPNO | D58: Southwest Power Pool (SPP) North
C59: SPSO | D59: Southwest Power Pool (SPP) South
C60: SRMV | D60: Southeastern Electric Reliability Council (SERC) Mississippi Valley
C61: SRMW | D61: Southeastern Electric Reliability Council (SERC) Midwest
C62: SRSO | D62: Southeastern Electric Reliability Council (SERC) South
C63: SRTV | D63: Southeastern Electric Reliability Council (SERC) Tennessee Valley
C64: SRVC | D64: Southeastern Electric Reliability Council (SERC) Virginia/Carolina
C65: Upstream Pressure | D65: Pressure upstream of the hydropower system
C66: Water-to-Wire Efficiency | D66: Overall efficiency of hydropower system, accounting for turbine, drive system, and generator efficiencies
C67: Year of analysis | D67: "Present" year for present value or present worth computations

Sheet Turbine calculation (hidden)
P1: Pressure conversion
B2: Turbine Selection Calculation | P2: bar | Q2: ft | S2: psi | T2: ft
P3: 1 | Q3: 33.4562 | S3: 1 | T3: =1/0.43 -> 2.325581395
E4: Unit | G4: Value | I4: For calculation
C5: Upstream Pressure | E5: =IF('Turbine Selection'!E18="psi", "psi", IF('Turbine Selection'!E18="ft", "ft", IF('Turbine Selection'!E18="bar", "bar", "ft"))) -> ft | G5: ='Turbine Selection'!G18 -> 0 | I5: =IF(E5="ft", G5, IF(E5="psi", G5*$T$3, IF(E5="bar", G5*$Q$3, FALSE))) -> 0 | J5: ft | P5: Flow conversion
C6: Downstream Pressure | E6: =IF('Turbine Selection'!E19="psi", "psi", IF('Turbine Selection'!E19="ft", "ft", IF('Turbine Selection'!E19="bar", "bar", "ft"))) -> ft | G6: ='Turbine Selection'!G19 -> 0 | I6: =IF(E6="ft", G6, IF(E6="psi", G6*$T$3, IF(E6="bar", G6*$Q$3, FALSE))) -> 0 | J6: ft | P6: mgd | Q6: cfs | S6: gpm | T6: cfs | V6: lps | W6: cfs
P7: 1 | Q7: 1.547228637 | S7: 1 | T7: 0.002228002323 | V7: 1 | W7: 0.03531466672
C8: Calculated Differential Pressure | E8: =E6 -> ft | G8: ='Turbine Selection'!G21 -> 0 | I8: =IF(E8="ft", G8, IF(E8="psi", G8*$T$3, IF(E8="bar", G8*$Q$3, FALSE))) -> 0 | J8: ft
C10: Downstream Pressure Requirement | E10: ='Turbine Selection'!E12 -> - Select
E12: Unit | G12: Value | I12: For calculation
C13: Design Flow | E13: =IF('Turbine Selection'!E25="cfs", "cfs", IF('Turbine Selection'!E25="gpm", "gpm", IF('Turbine Selection'!E25="mgd", "mgd", IF('Turbine Selection'!E25="lps", "lps","cfs")))) -> cfs | G13: ='Turbine Selection'!G25 -> 0 | I13: =IF(E13="cfs", G13, IF(E13="mgd", G13*$Q$7, IF(E13="gpm", G13*$T$7, IF(E13="lps", G13*$W$7, FALSE)))) -> 0 | J13: cfs
C14: Head | E14: ft | G14: =I8 -> 0 | I14: =I8 -> 0 | J14: ft
C15: Capacity Factor | E15: % | G15: ='Turbine Selection'!G26 -> 0 | I15: =G15 -> 0 | J15: %
C16: Water-to-wire Efficiency | E16: % | G16: ='Turbine Selection'!G27 -> 0 | I16: =G16 -> 0 | J16: %
C18: Hydropower Potential (kW) | E18: =I16/100*62.5*I13*I14*1.356*10^-3 -> 0
C20: Annual Generation (kWh) | E20: =E18*8760*G15/100 -> 0
I23: =I16/100*62.5*I13*I14*1.356*10^-3 -> 0
C24: Ayu:
C25: This is a calculation sheet to calculate the potential using different input units. Note that the default unit for pressure is feet and flow is in cfs

Sheet Cost Reference (hidden)
B1: <100 kW (mid point) | K1: Francis | N1: PAT | Q1: Pelton | T1: Turgo
A2: Cost Item | B2: Francis | D2: PAT | F2: Pelton | H2: Turgo | K2: size (kW) | L2: Turbine Cost ($) | N2: size (kW) | O2: Turbine Cost ($) | Q2: size (kW) | R2: Turbine Cost ($) | T2: size (kW) | U2: Turbine Cost ($)
B3: Factor | C3: Cost | D3: Factor | E3: Cost | F3: Factor | G3: Cost | H3: Factor | I3: Cost | K3: 250 | L3: =C18 -> 750000 | N3: 50 | O3: =E4 -> 100000 | Q3: 250 | R3: =G18 -> 650000 | T3: 50 | U3: =I4 -> 500000
A4: Turbine/Generator/Switch Gear | B4: - | C4: Turbine type is not feasible for specified capacity | E4: 100000 | F4: Factor | G4: Not suitable | I4: 500000 | K4: 750 | L4: =C32 -> 1100000 | N4: 250 | O4: =E18 -> 350000 | Q4: 750 | R4: =G32 -> 950000 | T4: 250 | U4: =I18 -> 600000
A5: Programming | B5: - | C5: Turbine type is not feasible for specified capacity | D5: 0.3 | E5: =D5*E4 -> 30000 | G5: Not suitable | H5: 0.05 | I5: =H5*I4 -> 25000 | K5: 2500 | L5: =C46 -> 1800000 | Q5: 2500 | R5: =G46 -> 1500000 | T5: 750 | U5: =I32 -> 800000
A6: Civil | B6: - | C6: Turbine type is not feasible for specified capacity | D6: 1.5 | E6: =D6*E4 -> 150000 | G6: Not suitable | H6: 0.1 | I6: =H6*I4 -> 50000 | T6: 2500 | U6: =I46 -> 1200000
A7: Mechanical | B7: - | C7: Turbine type is not feasible for specified capacity | D7: 0.3 | E7: =D7*E4 -> 30000 | G7: Not suitable | H7: 0.3 | I7: =H7*I4 -> 150000
A8: Electrical Assembly & Wiring | B8: - | C8: Turbine type is not feasible for specified capacity | D8: 0.3 | E8: =D8*E4 -> 30000 | G8: Not suitable | H8: 0.3 | I8: =H8*I4 -> 150000
A9: Buildings & Structures | B9: - | C9: Turbine type is not feasible for specified capacity | D9: 1 | E9: =D9*E4 -> 100000 | G9: Not suitable | H9: 0.3 | I9: =H9*I4 -> 150000
A10: Interconnection | B10: - | C10: Turbine type is not feasible for specified capacity | D10: 0.1 | E10: =D10*SUM(E4:E9) -> 44000 | G10: Not suitable | H10: 0.05 | I10: =H10*SUM(I4:I9) -> 51250
A11: Engineering & Plant Startup | B11: - | C11: Turbine type is not feasible for specified capacity | D11: 0.6 | E11: =D11*SUM(E4:E9) -> 264000 | G11: Not suitable | H11: 0.3 | I11: =H11*SUM(I4:I9) -> 307500
A12: SUM | C12: =SUM(C4:C11) -> 0 | E12: =SUM(E4:E11) -> 748000 | G12: =SUM(G4:G11) -> 0 | I12: =SUM(I4:I11) -> 1383750
B15: 100 kW - 500 kW (mid point)
A16: Cost Item | B16: Francis | D16: PAT | F16: Pelton | H16: Turgo
B17: Factor | C17: Cost | D17: Factor | E17: Cost | F17: Factor | G17: Cost | H17: Factor | I17: Cost
A18: Turbine/Generator/Switch Gear | C18: 750000 | E18: 350000 | G18: 650000 | I18: 600000
A19: Programming | B19: 0.05 | C19: =B19*C18 -> 37500 | D19: 0.1 | E19: =D19*E18 -> 35000 | F19: 0.05 | G19: =F19*G18 -> 32500 | H19: 0.05 | I19: =H19*I18 -> 30000
A20: Civil | B20: 0.25 | C20: =B20*C18 -> 187500 | D20: 0.35 | E20: =D20*E18 -> 122500 | F20: 0.25 | G20: =F20*G18 -> 162500 | H20: 0.25 | I20: =H20*I18 -> 150000
A21: Mechanical | B21: 0.1 | C21: =B21*C18 -> 75000 | D21: 0.3 | E21: =D21*E18 -> 105000 | F21: 0.15 | G21: =F21*G18 -> 97500 | H21: 0.15 | I21: =H21*I18 -> 90000
A22: Electrical Assembly & Wiring | B22: 0.3 | C22: =B22*C18 -> 225000 | D22: 0.35 | E22: =D22*E18 -> 122500 | F22: 0.3 | G22: =F22*G18 -> 195000 | H22: 0.3 | I22: =H22*I18 -> 180000
A23: Buildings & Structures | B23: 0.15 | C23: =B23*C18 -> 112500 | D23: 0.3 | E23: =D23*E18 -> 105000 | F23: 0.15 | G23: =F23*G18 -> 97500 | H23: 0.15 | I23: =H23*I18 -> 90000 | K23: Turbine Cost Calculation
A24: Interconnection | B24: 0.15 | C24: =B24*SUM(C18:C23) -> 208125 | D24: 0.25 | E24: =D24*SUM(E18:E23) -> 210000 | F24: 0.15 | G24: =F24*SUM(G18:G23) -> 185250 | H24: 0.15 | I24: =H24*SUM(I18:I23) -> 171000 | K24: Size (kW) | L24: Turbine | M24: Cost ($)
A25: Engineering & Plant Startup | B25: 0.3 | C25: =B25*SUM(C18:C23) -> 416250 | D25: 0.45 | E25: =D25*SUM(E18:E23) -> 378000 | F25: 0.35 | G25: =F25*SUM(G18:G23) -> 432250 | H25: 0.35 | I25: =H25*SUM(I18:I23) -> 399000 | K25: ='Turbine Selection'!G29 -> 0 | L25: Francis | M25: =449.25*K25 + 692537 -> 692537
A26: SUM | C26: =SUM(C18:C25) -> 2011875 | E26: =SUM(E18:E25) -> 1428000 | G26: =SUM(G18:G25) -> 1852500 | I26: =SUM(I18:I25) -> 1710000 | L26: Pump-as-Turbine | M26: =1250*K25 + 37500 -> 37500
L27: Pelton | M27: =361.19*K25 + 611940 -> 611940
L28: Turgo | M28: =274.69*K25 + 531209 -> 531209
B29: 500 kW - 1,000 kW (mid point)
A30: Cost Item | B30: Francis | D30: PAT | F30: Pelton | H30: Turgo
B31: Factor | C31: Cost | D31: Factor | E31: Cost | F31: Factor | G31: Cost | H31: Factor | I31: Cost | K31: Programming
A32: Turbine/Generator/Switch Gear | C32: 1100000 | D32: - | E32: Turbine type is not feasible for specified capacity | G32: 950000 | I32: 800000 | K32: Francis | N32: Pump-as-Turbine | Q32: Pelton | T32: Turgo | X32: Index1
A33: Programming | B33: 0.05 | C33: =B33*C32 -> 55000 | D33: - | E33: Turbine type is not feasible for specified capacity | F33: 0.05 | G33: =F33*G32 -> 47500 | H33: 0.05 | I33: =H33*I32 -> 40000 | K33: Size | L33: Factor | N33: Size | O33: Factor | Q33: Size | R33: Factor | T33: Size | U33: Factor | X33: Turbine | Y33: Index
A34: Civil | B34: 0.2 | C34: =B34*C32 -> 220000 | D34: - | E34: Turbine type is not feasible for specified capacity | F34: 0.25 | G34: =F34*G32 -> 237500 | H34: 0.25 | I34: =H34*I32 -> 200000 | J34: 50=<x<100 | K34: 50 | L34: =B5 -> - | N34: 50 | O34: =D5 -> 0.3 | Q34: 50 | R34: =F5 -> 0 | T34: 50 | U34: =H5 -> 0.05 | X34: Francis | Y34: 1
A35: Mechanical | B35: 0.1 | C35: =B35*C32 -> 110000 | D35: - | E35: Turbine type is not feasible for specified capacity | F35: 0.15 | G35: =F35*G32 -> 142500 | H35: 0.15 | I35: =H35*I32 -> 120000 | J35: 100=<x<500 | K35: 100 | L35: =B19 -> 0.05 | N35: 100 | O35: =D19 -> 0.1 | Q35: 100 | R35: =F19 -> 0.05 | T35: 100 | U35: =H19 -> 0.05 | X35: Pump-as-Turbine | Y35: 2
A36: Electrical Assembly & Wiring | B36: 0.3 | C36: =B36*C32 -> 330000 | D36: - | E36: Turbine type is not feasible for specified capacity | F36: 0.3 | G36: =F36*G32 -> 285000 | H36: 0.3 | I36: =H36*I32 -> 240000 | J36: 500=<x<1000 | K36: 500 | L36: =B33 -> 0.05 | N36: 500 | O36: =D33 -> - | Q36: 500 | R36: =F33 -> 0.05 | T36: 500 | U36: =H33 -> 0.05 | X36: Pelton | Y36: 3
A37: Buildings & Structures | B37: 0.15 | C37: =B37*C32 -> 165000 | D37: - | E37: Turbine type is not feasible for specified capacity | F37: 0.15 | G37: =F37*G32 -> 142500 | H37: 0.15 | I37: =H37*I32 -> 120000 | J37: 1000=<x<5000 | K37: 1000 | L37: =B47 -> 0.05 | N37: 1000 | O37: =D47 -> - | Q37: 1000 | R37: =F47 -> 0.05 | T37: 1000 | U37: =H47 -> 0.05 | X37: Turgo | Y37: 4
A38: Interconnection | B38: 0.1 | C38: =B38*SUM(C32:C37) -> 198000 | D38: - | E38: Turbine type is not feasible for specified capacity | F38: 0.15 | G38: =F38*SUM(G32:G37) -> 270750 | H38: 0.15 | I38: =H38*SUM(I32:I37) -> 228000
A39: Engineering & Plant Startup | B39: 0.3 | C39: =B39*SUM(C32:C37) -> 594000 | D39: - | E39: Turbine type is not feasible for specified capacity | F39: 0.3 | G39: =F39*SUM(G32:G37) -> 541500 | H39: 0.35 | I39: =H39*SUM(I32:I37) -> 532000
A40: SUM | C40: =SUM(C32:C39) -> 2772000 | E40: =SUM(E32:E39) -> 0 | G40: =SUM(G32:G39) -> 2617250 | I40: =SUM(I32:I39) -> 2280000 | K40: Civil
K41: Francis | N41: Pump-as-Turbine | Q41: Pelton | T41: Turgo
K42: Size | L42: Factor | N42: Size | O42: Factor | Q42: Size | R42: Factor | T42: Size | U42: Factor | X42: Turbine | Y42: Index
B43: 1,000 kW - 5,000 kW (mid point) | J43: 50=<x<100 | K43: 50 | L43: =B6 -> - | N43: 50 | O43: =D6 -> 1.5 | Q43: 50 | R43: =F6 -> 0 | T43: 50 | U43: =H6 -> 0.1 | X43: Francis | Y43: 1
A44: Cost Item | B44: Francis | D44: PAT | F44: Pelton | H44: Turgo | J44: 100=<x<500 | K44: 100 | L44: =B20 -> 0.25 | N44: 100 | O44: =D20 -> 0.35 | Q44: 100 | R44: =F20 -> 0.25 | T44: 100 | U44: =H20 -> 0.25 | X44: Pump-as-Turbine | Y44: 2
B45: Factor | C45: Cost | D45: Factor | E45: Cost | F45: Factor | G45: Cost | H45: Factor | I45: Cost | J45: 500=<x<1000 | K45: 500 | L45: =B34 -> 0.2 | N45: 500 | O45: =D34 -> - | Q45: 500 | R45: =F34 -> 0.25 | T45: 500 | U45: =H34 -> 0.25 | X45: Pelton | Y45: 3
A46: Turbine/Generator/Switch Gear | C46: 1800000 | D46: - | E46: Turbine type is not feasible for specified capacity | G46: 1500000 | I46: 1200000 | J46: 1000=<x<5000 | K46: 1000 | L46: =B48 -> 0.2 | N46: 1000 | O46: =D48 -> - | Q46: 1000 | R46: =F48 -> 0.2 | T46: 1000 | U46: =H48 -> 0.25 | X46: Turgo | Y46: 4
A47: Programming | B47: 0.05 | C47: =B47*C46 -> 90000 | D47: - | E47: Turbine type is not feasible for specified capacity | F47: 0.05 | G47: =F47*G46 -> 75000 | H47: 0.05 | I47: =H47*I46 -> 60000
A48: Civil | B48: 0.2 | C48: =B48*C46 -> 360000 | D48: - | E48: Turbine type is not feasible for specified capacity | F48: 0.2 | G48: =F48*G46 -> 300000 | H48: 0.25 | I48: =H48*I46 -> 300000
A49: Mechanical | B49: 0.1 | C49: =B49*C46 -> 180000 | D49: - | E49: Turbine type is not feasible for specified capacity | F49: 0.1 | G49: =F49*G46 -> 150000 | H49: 0.1 | I49: =H49*I46 -> 120000 | K49: Mechanical
A50: Electrical Assembly & Wiring | B50: 0.3 | C50: =B50*C46 -> 540000 | D50: - | E50: Turbine type is not feasible for specified capacity | F50: 0.3 | G50: =F50*G46 -> 450000 | H50: 0.35 | I50: =H50*I46 -> 420000 | K50: Francis | N50: Pump-as-Turbine | Q50: Pelton | T50: Turgo
A51: Buildings & Structures | B51: 0.15 | C51: =B51*C46 -> 270000 | D51: - | E51: Turbine type is not feasible for specified capacity | F51: 0.15 | G51: =F51*G46 -> 225000 | H51: 0.15 | I51: =H51*I46 -> 180000 | K51: Size | L51: Factor | N51: Size | O51: Factor | Q51: Size | R51: Factor | T51: Size | U51: Factor | X51: Turbine | Y51: Index
A52: Interconnection | B52: 0.1 | C52: =B52*SUM(C46:C51) -> 324000 | D52: - | E52: Turbine type is not feasible for specified capacity | F52: 0.15 | G52: =F52*SUM(G46:G51) -> 405000 | H52: 0.2 | I52: =H52*SUM(I46:I51) -> 456000 | J52: 50=<x<100 | K52: 50 | L52: =B7 -> - | N52: 50 | O52: =D7 -> 0.3 | Q52: 50 | R52: =F7 -> 0 | T52: 50 | U52: =H7 -> 0.3 | X52: Francis | Y52: 1
A53: Engineering & Plant Startup | B53: 0.3 | C53: =B53*SUM(C46:C51) -> 972000 | D53: - | E53: Turbine type is not feasible for specified capacity | F53: 0.3 | G53: =F53*SUM(G46:G51) -> 810000 | H53: 0.3 | I53: =H53*SUM(I46:I51) -> 684000 | J53: 100=<x<500 | K53: 100 | L53: =B21 -> 0.1 | N53: 100 | O53: =D21 -> 0.3 | Q53: 100 | R53: =F21 -> 0.15 | T53: 100 | U53: =H21 -> 0.15 | X53: Pump-as-Turbine | Y53: 2
A54: SUM | C54: =SUM(C46:C53) -> 4536000 | E54: =SUM(E46:E53) -> 0 | G54: =SUM(G46:G53) -> 3915000 | I54: =SUM(I46:I53) -> 3420000 | J54: 500=<x<1000 | K54: 500 | L54: =B35 -> 0.1 | N54: 500 | O54: =D35 -> - | Q54: 500 | R54: =F35 -> 0.15 | T54: 500 | U54: =H35 -> 0.15 | X54: Pelton | Y54: 3
J55: 1000=<x<5000 | K55: 1000 | L55: =B49 -> 0.1 | N55: 1000 | O55: =D49 -> - | Q55: 1000 | R55: =F49 -> 0.1 | T55: 1000 | U55: =H49 -> 0.1 | X55: Turgo | Y55: 4
K58: Electrical Assembly
K59: Francis | N59: Pump-as-Turbine | Q59: Pelton | T59: Turgo
K60: Size | L60: Factor | N60: Size | O60: Factor | Q60: Size | R60: Factor | T60: Size | U60: Factor | X60: Turbine | Y60: Index
J61: 50=<x<100 | K61: 50 | L61: =B8 -> - | N61: 50 | O61: =D8 -> 0.3 | Q61: 50 | R61: =F8 -> 0 | T61: 50 | U61: =H8 -> 0.3 | X61: Francis | Y61: 1
J62: 100=<x<500 | K62: 100 | L62: =B22 -> 0.3 | N62: 100 | O62: =D22 -> 0.35 | Q62: 100 | R62: =F22 -> 0.3 | T62: 100 | U62: =H22 -> 0.3 | X62: Pump-as-Turbine | Y62: 2
J63: 500=<x<1000 | K63: 500 | L63: =B36 -> 0.3 | N63: 500 | O63: =D36 -> - | Q63: 500 | R63: =F36 -> 0.3 | T63: 500 | U63: =H36 -> 0.3 | X63: Pelton | Y63: 3
J64: 1000=<x<5000 | K64: 1000 | L64: =B50 -> 0.3 | N64: 1000 | O64: =D50 -> - | Q64: 1000 | R64: =F50 -> 0.3 | T64: 1000 | U64: =H50 -> 0.35 | X64: Turgo | Y64: 4
K67: Buildings
K68: Francis | N68: Pump-as-Turbine | Q68: Pelton | T68: Turgo
K69: Size | L69: Factor | N69: Size | O69: Factor | Q69: Size | R69: Factor | T69: Size | U69: Factor | X69: Turbine | Y69: Index
J70: 50=<x<100 | K70: 50 | L70: =B9 -> - | N70: 50 | O70: =D9 -> 1 | Q70: 50 | R70: =F9 -> 0 | T70: 50 | U70: =H9 -> 0.3 | X70: Francis | Y70: 1
J71: 100=<x<500 | K71: 100 | L71: =B23 -> 0.15 | N71: 100 | O71: =D23 -> 0.3 | Q71: 100 | R71: =F23 -> 0.15 | T71: 100 | U71: =H23 -> 0.15 | X71: Pump-as-Turbine | Y71: 2
J72: 500=<x<1000 | K72: 500 | L72: =B37 -> 0.15 | N72: 500 | O72: =D37 -> - | Q72: 500 | R72: =F37 -> 0.15 | T72: 500 | U72: =H37 -> 0.15 | X72: Pelton | Y72: 3
J73: 1000=<x<5000 | K73: 1000 | L73: =B51 -> 0.15 | N73: 1000 | O73: =D51 -> - | Q73: 1000 | R73: =F51 -> 0.15 | T73: 1000 | U73: =H51 -> 0.15 | X73: Turgo | Y73: 4
K76: Interconnection
K77: Francis | N77: Pump-as-Turbine | Q77: Pelton | T77: Turgo
K78: Size | L78: Factor | N78: Size | O78: Factor | Q78: Size | R78: Factor | T78: Size | U78: Factor | X78: Turbine | Y78: Index
J79: 50=<x<100 | K79: 50 | L79: =B10 -> - | N79: 50 | O79: =D10 -> 0.1 | Q79: 50 | R79: =F10 -> 0 | T79: 50 | U79: =H10 -> 0.05 | X79: Francis | Y79: 1
J80: 100=<x<500 | K80: 100 | L80: =B24 -> 0.15 | N80: 100 | O80: =D24 -> 0.25 | Q80: 100 | R80: =F24 -> 0.15 | T80: 100 | U80: =H24 -> 0.15 | X80: Pump-as-Turbine | Y80: 2
J81: 500=<x<1000 | K81: 500 | L81: =B38 -> 0.1 | N81: 500 | O81: =D38 -> - | Q81: 500 | R81: =F38 -> 0.15 | T81: 500 | U81: =H38 -> 0.15 | X81: Pelton | Y81: 3
J82: 1000=<x<5000 | K82: 1000 | L82: =B52 -> 0.1 | N82: 1000 | O82: =D52 -> - | Q82: 1000 | R82: =F52 -> 0.15 | T82: 1000 | U82: =H52 -> 0.2 | X82: Turgo | Y82: 4
K85: Engineering & Plant Startup
K86: Francis | N86: Pump-as-Turbine | Q86: Pelton | T86: Turgo
K87: Size | L87: Factor | N87: Size | O87: Factor | Q87: Size | R87: Factor | T87: Size | U87: Factor | X87: Turbine | Y87: Index
J88: 50=<x<100 | K88: 50 | L88: =B11 -> - | N88: 50 | O88: =D11 -> 0.6 | Q88: 50 | R88: =F11 -> 0 | T88: 50 | U88: =H11 -> 0.3 | X88: Francis | Y88: 1
J89: 100=<x<500 | K89: 100 | L89: =B25 -> 0.3 | N89: 100 | O89: =D25 -> 0.45 | Q89: 100 | R89: =F25 -> 0.35 | T89: 100 | U89: =H25 -> 0.35 | X89: Pump-as-Turbine | Y89: 2
J90: 500=<x<1000 | K90: 500 | L90: =B39 -> 0.3 | N90: 500 | O90: =D39 -> - | Q90: 500 | R90: =F39 -> 0.3 | T90: 500 | U90: =H39 -> 0.35 | X90: Pelton | Y90: 3
J91: 1000=<x<5000 | K91: 1000 | L91: =B53 -> 0.3 | N91: 1000 | O91: =D53 -> - | Q91: 1000 | R91: =F53 -> 0.3 | T91: 1000 | U91: =H53 -> 0.3 | X91: Turgo | Y91: 4

Sheet Dropdown (hidden)
C1: Conduit Type | D1: Facility Type | E1: Topography | F1: Water type | G1: Downstream Pressure Requirement | H1: Financing | I1: Turbine Type
C2: - Select | D2: - Select | E2: - Select | F2: - Select | G2: - Select | H2: Select- | I2: - Select
C3: Canal | D3: Canal Drop | E3: Coastal | F3: Raw Water | G3: Required | H3: LS | I3: Francis
C4: Dam | D4: Flow Control Facility | E4: Mountain | F4: Potable Water | G4: Not required | H4: D/S | I4: Pump-as-Turbine
C5: Pipeline | D5: Existing Hydroelectric Facility | E5: Urban | F5: Wastewater | I5: Turgo
C6: Groundwater Recharge | D6: Groundwater Recharge | E6: Other | F6: Reclaimed/Recycled Water | I6: Pelton
C7: Other | D7: Pressure Reducing Valve
D8: Reservoir Outlet
D9: Water Treatment Plant
D10: Wastewater Treatment Plant
D11: Other
C14: Flow | D14: Head | E14: Pressure | G14: Utility Type
C15: - Select | D15: - Select | E15: - Select | G15: - Select
C16: cfs | D16: ft | E16: ft | G16: Publicly-owned utility
C17: mgd | D17: psi | E17: psi | G17: Investor-owned utility
C18: gpm | D18: bar | E18: bar | G18: Community choice aggregation (CCA)
C19: lps
C22: Turbine list | D22: Impulse list | E22: Reaction list | G22: eGRID SubRegion | H22: CO2 Factor (lb/MWh) | I22: CO2 Factor (lb/kWh)
C23: - Select | D23: - Select | E23: - Select | G23: - Select | H23: - | I23: -
C24: Impulse | D24: Turgo | E24: Francis | G24: AKGD (ASCC Alaska Grid) | H24: 1072.3 | I24: =H24/1000 -> 1.0723
C25: Reaction | D25: Pelton | E25: Pump-as-Turbine | G25: AKMS (ASCC Miscellaneous) | H25: 503.1 | I25: =H25/1000 -> 0.5031
G26: AZNM (WECC Southwest) | H26: 1043.6 | I26: 1.0436
G27: CAMX (WECC California) | H27: 527.9 | I27: 0.5279
G28: ERCT (ERCOT All) | H28: 1009.2 | I28: 1.0092
G29: FRCC (FRCC All) | H29: 1011.7 | I29: 1.0117
G30: HIMS (HICC Miscellaneous) | H30: 1152 | I30: 1.152
G31: HIOA (HICC Oahu) | H31: 1662.9 | I31: 1.6629
G32: MROE (MRO East) | H32: 1668.2 | I32: 1.6682
G33: MROW (MRO West) | H33: 1238.8 | I33: 1.2388
G34: NEWE (NPCC New England) | H34: 558.2 | I34: 0.5582
G35: NWPP (WECC Northwest) | H35: 651.2 | I35: 0.6512
G36: NYCW (NPCC NYC/Westchester) | H36: 635.8 | I36: 0.6358
G37: NYLI (NPCC Long Island) | H37: 1178.3 | I37: 1.1783
G38: NYUP (NPCC Upstate NY) | H38: 294.7 | I38: 0.2947
G39: RFCE (RFC East) | H39: 758.2 | I39: 0.7582
G40: RFCM (RFC Michigan) | H40: 1272 | I40: 1.272
G41: RFCW (RFC West) | H41: 1243.4 | I41: 1.2434
G42: RMPA (WECC Rockies) | H42: 1367.8 | I42: 1.3678
G43: SPNO (SPP North) | H43: 1412.4 | I43: 1.4124
G44: SPSO (SPP South) | H44: 1248.3 | I44: 1.2483
G45: SRMV (SERC Mississippi Valley) | H45: 838.9 | I45: 0.8389
G46: SRMW (SERC Midwest) | H46: 1612.6 | I46: 1.6126
G47: SRSO (SERC South) | H47: 1089.4 | I47: 1.0894
G48: SRTV (SERC Tennessee Valley) | H48: 1185.4 | I48: 1.1854
G49: SRVC (SERC Virginia/Carolina) | H49: 805.3 | I49: 0.8053
G50: US Average | H50: 998.4 | I50: 0.9984

Sheet LCC Assumption - Hidden (hidden)
A1: Life Cycle Cost Model
A2: =ProjName -> 
A3: LCC Period, Cost, Financial and Economic Assumptions
A5: Topic | E5: Value | F5: Units | G5: Notes
A6: Life Cycle Assumptions
B7: Period | E7: ='LCC Assumption'!F13 -> 0 | F7: years
B8: Initial Year of Operations | E8: ='LCC Assumption'!F14 -> 0 | G8: First year of operations following initial construction
B9: Year of analysis | E9: ='LCC Assumption'!F15 -> 0 | G9: "Present" year for present value or present worth computations
A11: Cost Assumptions
B12: Cost estimate dollar basis year | E12: ='LCC Assumption'!F18 -> 0 | G12: Capital and O&M cost bases
B14: Construction cost escalation | E14: ='LCC Assumption'!F19 -> 0 | F14: annual | G14: (from cost estimate base year)
B15: O&M and general cost escalation | E15: ='LCC Assumption'!F20 -> 0 | F15: annual | G15: (from cost estimate base year)
B17: Ancillary capital costs* | G17: Computed from components
B18: Sales tax | E18: 0
B19: Support of the arts | E19: 0
B20: Construction cost contingency allowance | E20: 0 | G20: Applied to estimated construction plus ancillary costs.*
B21: Overhead applied to labor only | E21: 0
A23: Financial Assumptions
B24: Capital Treatment: Lump Sum or Financed | E24: ='LCC Assumption'!F23 -> Select- | G24: "LS" if lump sum, "D/S" (debt service) if financed
B25: Financing interest rate | E25: ='LCC Assumption'!F24 -> 0
B26: Financing maturity | E26: ='LCC Assumption'!F25 -> 0 | F26: years
B27: Financing costs, capitalized | E27: ='LCC Assumption'!F26 -> 0 | G27: Percentage of bond sale, not % of capital cost
B28: Capitalized interest | E28: ='LCC Assumption'!F27 -> 0 | G28: No capitalized interest or other production feature
B29: Debt structure | E29: ='LCC Assumption'!F28 -> Equal | F29: Annual | G29: Payments through maturity
B30: Bond reserve | E30: ='LCC Assumption'!F29 -> 0 | G30: Not capitalized (self supporting)
A32: Economic Assumptions
B33: Discount rate (cost of capital) | E33: ='LCC Assumption'!F32 -> 0 | G33: Follows Capital Asset Pricing Model. Same discount rate for all alternatives.
B34: Annual growth in electricty consumption | E34: ='LCC Assumption'!F33 -> 0
B38: Uniform Capital Recovery Factor | E38: =(DiscRat*(1+DiscRat)^LCCPeriod)/((1+DiscRat)^LCCPeriod-1) -> 
A64: Cell fill color: 204/255/255
A86: LS
A87: D/S

Sheet Energy, Labor Hidden (hidden)
A1: Life Cycle Cost Model
A2: =ProjName -> 
A3: Energy, Chemical and Labor Costs
C5: 2012 | D5: =C5+1 -> 2013 | E5: =D5+1 -> 2014 | F5: 2015 | G5: 2016 | H5: 2017 | I5: 2018 | J5: 2019 | K5: 2020 | L5: 2021 | M5: 2022 | N5: 2023 | O5: 2024 | P5: 2025 | Q5: 2026 | R5: 2027 | S5: 2028 | T5: 2029 | U5: 2030 | V5: 2031 | W5: =V5+1 -> 2032 | X5: 2033 | Y5: 2034 | Z5: 2035 | AA5: 2036 | AB5: 2037 | AC5: 2038 | AD5: 2039 | AE5: 2040 | AF5: 2041 | AG5: 2042 | AH5: =AG5+1 -> 2043 | AI5: =AH5+1 -> 2044 | AJ5: =AI5+1 -> 2045 | AK5: =AJ5+1 -> 2046 | AL5: =AK5+1 -> 2047 | AM5: 2048 | AN5: 2049 | AO5: 2050 | AP5: 2051 | AQ5: 2052 | AR5: 2053 | AS5: 2054 | AT5: 2055 | AU5: 2056 | AV5: 2057 | AW5: 2058 | AX5: 2059 | AY5: 2060 | AZ5: 2061 | BA5: 2062 | BB5: 2063 | BC5: 2064 | BD5: 2065 | BE5: =BD5+1 -> 2066 | BF5: =BE5+1 -> 2067 | BG5: =BF5+1 -> 2068 | BH5: =BG5+1 -> 2069 | BI5: =BH5+1 -> 2070 | BJ5: =BI5+1 -> 2071 | BK5: =BJ5+1 -> 2072 | BL5: =BK5+1 -> 2073 | BM5: =BL5+1 -> 2074 | BN5: =BM5+1 -> 2075 | BO5: =BN5+1 -> 2076 | BP5: =BO5+1 -> 2077 | BQ5: =BP5+1 -> 2078 | BR5: =BQ5+1 -> 2079 | BS5: =BR5+1 -> 2080 | BT5: =BS5+1 -> 2081 | BU5: =BT5+1 -> 2082 | BV5: =BU5+1 -> 2083 | BW5: =BV5+1 -> 2084 | BX5: =BW5+1 -> 2085 | BY5: =BX5+1 -> 2086 | BZ5: =BY5+1 -> 2087 | CA5: =BZ5+1 -> 2088 | CB5: =CA5+1 -> 2089 | CC5: =CB5+1 -> 2090 | CD5: =CC5+1 -> 2091 | CE5: =CD5+1 -> 2092 | CF5: =CE5+1 -> 2093 | CG5: =CF5+1 -> 2094 | CH5: =CG5+1 -> 2095 | CI5: =CH5+1 -> 2096 | CJ5: =CI5+1 -> 2097 | CK5: =CJ5+1 -> 2098 | CL5: =CK5+1 -> 2099 | CM5: =CL5+1 -> 2100 | CT5: (row)
CT6: 2
A7: Energy | CT7: =CT6+1 -> 3
CT8: =CT7+1 -> 4
A9: Natural Gas Purveyor | CT9: 5
B10: $/MMBTU | C10: ='LCC Assumption'!F38 -> 0 | D10: =C10*(1+D11) -> 0 | E10: 0 | F10: =E10*(1+F11) -> 0 | G10: 0 | H10: 0 | I10: 0 | J10: 0 | K10: 0 | L10: 0 | M10: 0 | N10: 0 | O10: 0 | P10: 0 | Q10: 0 | R10: 0 | S10: 0 | T10: 0 | U10: 0 | V10: 0 | W10: 0 | X10: 0 | Y10: 0 | Z10: 0 | AA10: 0 | AB10: 0 | AC10: 0 | AD10: 0 | AE10: 0 | AF10: 0 | AG10: 0 | AH10: =AG10*(1+AH11) -> 0 | AI10: =AH10*(1+AI11) -> 0 | AJ10: =AI10*(1+AJ11) -> 0 | AK10: =AJ10*(1+AK11) -> 0 | AL10: =AK10*(1+AL11) -> 0 | AM10: 0 | AN10: 0 | AO10: 0 | AP10: 0 | AQ10: 0 | AR10: 0 | AS10: 0 | AT10: 0 | AU10: 0 | AV10: 0 | AW10: 0 | AX10: 0 | AY10: 0 | AZ10: 0 | BA10: 0 | BB10: 0 | BC10: 0 | BD10: 0 | BE10: 0 | BF10: 0 | BG10: 0 | BH10: 0 | BI10: 0 | BJ10: 0 | BK10: 0 | BL10: 0 | BM10: 0 | BN10: 0 | BO10: 0 | BP10: 0 | BQ10: 0 | BR10: 0 | BS10: 0 | BT10: 0 | BU10: 0 | BV10: 0 | BW10: 0 | BX10: 0 | BY10: 0 | BZ10: 0 | CA10: 0 | CB10: 0 | CC10: 0 | CD10: 0 | CE10: 0 | CF10: 0 | CG10: 0 | CH10: 0 | CI10: 0 | CJ10: 0 | CK10: 0 | CL10: 0 | CM10: 0 | CT10: =#REF!+1 -> 
B11: O&M Cost Escalation (from Assumptions sheet) | D11: =CostEscalOM -> 0 | E11: =D11 -> 0 | F11: =E11 -> 0 | G11: 0 | H11: 0 | I11: 0 | J11: 0 | K11: 0 | L11: 0 | M11: 0 | N11: 0 | O11: 0 | P11: 0 | Q11: 0 | R11: 0 | S11: 0 | T11: 0 | U11: 0 | V11: 0 | W11: 0 | X11: 0 | Y11: 0 | Z11: 0 | AA11: 0 | AB11: 0 | AC11: 0 | AD11: 0 | AE11: 0 | AF11: 0 | AG11: 0 | AH11: 0 | AI11: 0 | AJ11: 0 | AK11: 0 | AL11: 0 | AM11: 0 | AN11: 0 | AO11: 0 | AP11: 0 | AQ11: 0 | AR11: 0 | AS11: 0 | AT11: 0 | AU11: 0 | AV11: 0 | AW11: 0 | AX11: 0 | AY11: 0 | AZ11: 0 | BA11: 0 | BB11: 0 | BC11: 0 | BD11: 0 | BE11: 0 | BF11: 0 | BG11: 0 | BH11: 0 | BI11: 0 | BJ11: 0 | BK11: 0 | BL11: 0 | BM11: 0 | BN11: 0 | BO11: 0 | BP11: 0 | BQ11: 0 | BR11: =BQ11 -> 0 | BS11: 0 | BT11: 0 | BU11: 0 | BV11: 0 | BW11: 0 | BX11: 0 | BY11: 0 | BZ11: 0 | CA11: 0 | CB11: 0 | CC11: 0 | CD11: 0 | CE11: 0 | CF11: 0 | CG11: 0 | CH11: 0 | CI11: 0 | CJ11: 0 | CK11: 0 | CL11: 0 | CM11: 0
A13: Electricity Purveyor
B14: Energy Charge $/kwh | C14: ='LCC Assumption'!F36 -> 0 | D14: =C14*(1+D16) -> 0 | E14: =D14*(1+E16) -> 0 | F14: =E14*(1+F16) -> 0 | G14: =F14*(1+G16) -> 0 | H14: 0 | I14: 0 | J14: 0 | K14: 0 | L14: 0 | M14: 0 | N14: 0 | O14: 0 | P14: 0 | Q14: 0 | R14: 0 | S14: 0 | T14: 0 | U14: 0 | V14: 0 | W14: 0 | X14: 0 | Y14: 0 | Z14: 0 | AA14: 0 | AB14: 0 | AC14: 0 | AD14: 0 | AE14: 0 | AF14: 0 | AG14: 0 | AH14: =AG14*(1+AH16) -> 0 | AI14: =AH14*(1+AI16) -> 0 | AJ14: =AI14*(1+AJ16) -> 0 | AK14: =AJ14*(1+AK16) -> 0 | AL14: =AK14*(1+AL16) -> 0 | AM14: 0 | AN14: 0 | AO14: 0 | AP14: 0 | AQ14: 0 | AR14: 0 | AS14: 0 | AT14: 0 | AU14: 0 | AV14: 0 | AW14: 0 | AX14: 0 | AY14: 0 | AZ14: 0 | BA14: 0 | BB14: 0 | BC14: 0 | BD14: 0 | BE14: 0 | BF14: 0 | BG14: 0 | BH14: 0 | BI14: 0 | BJ14: 0 | BK14: 0 | BL14: 0 | BM14: 0 | BN14: 0 | BO14: 0 | BP14: 0 | BQ14: 0 | BR14: 0 | BS14: 0 | BT14: 0 | BU14: 0 | BV14: 0 | BW14: 0 | BX14: 0 | BY14: 0 | BZ14: 0 | CA14: 0 | CB14: 0 | CC14: 0 | CD14: 0 | CE14: 0 | CF14: 0 | CG14: 0 | CH14: 0 | CI14: 0 | CJ14: 0 | CK14: 0 | CL14: 0 | CM14: 0
B15: Demand Charge $/kVa | C15: ='LCC Assumption'!F37 -> 0 | D15: =C15*(1+D16) -> 0 | E15: =D15*(1+E16) -> 0 | F15: 0 | G15: 0 | H15: 0 | I15: 0 | J15: 0 | K15: 0 | L15: 0 | M15: 0 | N15: 0 | O15: 0 | P15: 0 | Q15: 0 | R15: 0 | S15: 0 | T15: 0 | U15: 0 | V15: 0 | W15: 0 | X15: 0 | Y15: 0 | Z15: 0 | AA15: 0 | AB15: 0 | AC15: 0 | AD15: 0 | AE15: 0 | AF15: 0 | AG15: 0 | AH15: =AG15*(1+AH16) -> 0 | AI15: =AH15*(1+AI16) -> 0 | AJ15: =AI15*(1+AJ16) -> 0 | AK15: =AJ15*(1+AK16) -> 0 | AL15: =AK15*(1+AL16) -> 0 | AM15: 0 | AN15: 0 | AO15: 0 | AP15: 0 | AQ15: 0 | AR15: 0 | AS15: 0 | AT15: 0 | AU15: 0 | AV15: 0 | AW15: 0 | AX15: 0 | AY15: 0 | AZ15: 0 | BA15: 0 | BB15: 0 | BC15: 0 | BD15: 0 | BE15: 0 | BF15: 0 | BG15: 0 | BH15: 0 | BI15: 0 | BJ15: 0 | BK15: 0 | BL15: 0 | BM15: 0 | BN15: 0 | BO15: 0 | BP15: 0 | BQ15: 0 | BR15: 0 | BS15: 0 | BT15: 0 | BU15: 0 | BV15: 0 | BW15: 0 | BX15: 0 | BY15: 0 | BZ15: 0 | CA15: 0 | CB15: 0 | CC15: 0 | CD15: 0 | CE15: 0 | CF15: 0 | CG15: 0 | CH15: 0 | CI15: 0 | CJ15: 0 | CK15: 0 | CL15: 0 | CM15: 0
B16: O&M Cost Escalation (from Assumptions sheet) | D16: =CostEscalOM -> 0 | E16: =D16 -> 0 | F16: =E16 -> 0 | G16: 0 | H16: 0 | I16: 0 | J16: 0 | K16: 0 | L16: 0 | M16: 0 | N16: 0 | O16: 0 | P16: 0 | Q16: 0 | R16: 0 | S16: 0 | T16: 0 | U16: 0 | V16: 0 | W16: 0 | X16: 0 | Y16: 0 | Z16: 0 | AA16: 0 | AB16: 0 | AC16: 0 | AD16: 0 | AE16: 0 | AF16: 0 | AG16: 0 | AH16: 0 | AI16: 0 | AJ16: 0 | AK16: 0 | AL16: 0 | AM16: 0 | AN16: 0 | AO16: 0 | AP16: 0 | AQ16: 0 | AR16: 0 | AS16: 0 | AT16: 0 | AU16: 0 | AV16: 0 | AW16: 0 | AX16: 0 | AY16: 0 | AZ16: 0 | BA16: 0 | BB16: 0 | BC16: 0 | BD16: 0 | BE16: 0 | BF16: 0 | BG16: 0 | BH16: 0 | BI16: 0 | BJ16: 0 | BK16: 0 | BL16: 0 | BM16: 0 | BN16: 0 | BO16: 0 | BP16: 0 | BQ16: 0 | BR16: =BQ16 -> 0 | BS16: 0 | BT16: 0 | BU16: 0 | BV16: 0 | BW16: 0 | BX16: 0 | BY16: 0 | BZ16: 0 | CA16: 0 | CB16: 0 | CC16: 0 | CD16: 0 | CE16: 0 | CF16: 0 | CG16: 0 | CH16: 0 | CI16: 0 | CJ16: 0 | CK16: 0 | CL16: 0 | CM16: 0
CT17: =#REF!+1 -> 

Sheet LCC Capital (hidden)
A1: Life Cycle Cost Model
A2: =ProjName -> 
A3: LCC Capital Costs and Schedule, | E3: LNG Power for the Entire Plant
A4: ($000s)
I5: =FirstOps -> 0 | J5: =I5+1 -> 1 | K5: =J5+1 -> 2 | L5: =K5+1 -> 3 | M5: 4 | N5: 5 | O5: 6 | P5: 7 | Q5: 8 | R5: 9 | S5: 10 | T5: 11 | U5: 12 | V5: 13 | W5: 14 | X5: 15 | Y5: 16 | Z5: 17 | AA5: 18 | AB5: 19 | AC5: 20 | AD5: 21 | AE5: 22 | AF5: 23 | AG5: 24 | AH5: 25 | AI5: 26 | AJ5: 27 | AK5: 28 | AL5: 29 | AM5: 30 | AN5: 31 | AO5: 32 | AP5: 33 | AQ5: 34 | AR5: 35 | AS5: 36 | AT5: 37 | AU5: 38 | AV5: 39 | AW5: 40 | AX5: 41 | AY5: 42 | AZ5: 43 | BA5: 44 | BB5: 45 | BC5: 46 | BD5: 47 | BE5: 48 | BF5: 49
I7: 1 | J7: =I7+1 -> 2 | K7: =J7+1 -> 3 | L7: =K7+1 -> 4 | M7: 5 | N7: 6 | O7: 7 | P7: 8 | Q7: 9 | R7: 10 | S7: 11 | T7: 12 | U7: 13 | V7: 14 | W7: 15 | X7: 16 | Y7: 17 | Z7: 18 | AA7: 19 | AB7: 20 | AC7: 21 | AD7: 22 | AE7: 23 | AF7: 24 | AG7: 25 | AH7: 26 | AI7: 27 | AJ7: 28 | AK7: 29 | AL7: 30 | AM7: 31 | AN7: 32 | AO7: 33 | AP7: 34 | AQ7: 35 | AR7: 36 | AS7: 37 | AT7: 38 | AU7: 39 | AV7: 40 | AW7: 41 | AX7: 42 | AY7: 43 | AZ7: 44 | BA7: 45 | BB7: 46 | BC7: 47 | BD7: 48 | BE7: 49 | BF7: 50
A8: Present Values of Capital Components | F8: Totals
E9: =PresentYear -> 0 | F9: =SUM(I9:BF9)-H44 ->  | I9: =IF(CapitalTrtmt="d/s",I$69/(1+DiscRat)^(I$5-PresentYear),I$19/(1+DiscRat)^(I$5-PresentYear)) ->  | J9: =IF(CapitalTrtmt="d/s",J$69/(1+DiscRat)^(J$5-PresentYear),J$19/(1+DiscRat)^(J$5-PresentYear)) -> 0 | K9: 0 | L9: 0 | M9: 0 | N9: 0 | O9: 0 | P9: 0 | Q9: 0 | R9: 0 | S9: 0 | T9: 0 | U9: 0 | V9: 0 | W9: 0 | X9: 0 | Y9: 0 | Z9: 0 | AA9: 0 | AB9: 0 | AC9: 0 | AD9: 0 | AE9: 0 | AF9: 0 | AG9: 0 | AH9: 0 | AI9: 0 | AJ9: 0 | AK9: 0 | AL9: 0 | AM9: 0 | AN9: 0 | AO9: =IF(CapitalTrtmt="d/s",AO$69/(1+DiscRat)^(AO$5-PresentYear),AO$19/(1+DiscRat)^(AO$5-PresentYear)) -> 0 | AP9: 0 | AQ9: 0 | AR9: 0 | AS9: 0 | AT9: 0 | AU9: 0 | AV9: 0 | AW9: 0 | AX9: 0 | AY9: 0 | AZ9: 0 | BA9: 0 | BB9: 0 | BC9: 0 | BD9: 0 | BE9: 0 | BF9: 0
A11: Capital Costs ($000s) | F11: Initial
B12: Initial Capital Construction | F12: Const'n
C13: Estimated Construction Cost ("ECC") | E13: =EPCBaseYear -> 0 | F13: =Output!H44/1000 -> 0 | I13: =I30+I37+I43 -> 0 | J13: 0 | K13: 0 | L13: 0 | M13: 0 | N13: 0 | O13: 0 | P13: 0 | Q13: 0 | R13: 0 | S13: 0 | T13: 0 | U13: 0 | V13: 0 | W13: 0 | X13: 0 | Y13: 0 | Z13: 0 | AA13: 0 | AB13: 0 | AC13: 0 | AD13: 0 | AE13: 0 | AF13: 0 | AG13: 0 | AH13: 0 | AI13: 0 | AJ13: 0 | AK13: 0 | AL13: 0 | AM13: 0 | AN13: 0 | AO13: 0 | AP13: 0 | AQ13: 0 | AR13: 0 | AS13: 0 | AT13: 0 | AU13: 0 | AV13: 0 | AW13: 0 | AX13: 0 | AY13: 0 | AZ13: 0 | BA13: 0 | BB13: 0 | BC13: 0 | BD13: 0 | BE13: 0 | BF13: 0
C14: Ancillary cost* | E14: =EPCBaseYear -> 0 | F14: =SUM(F47:F48)+SUM(F49:F57)*F13+F58*F57*F13 -> 0 | I14: =SUM(I47:I49)+SUM(I50:I57)*I13+I58*I57*I13 -> 0 | J14: 0 | K14: 0 | L14: 0 | M14: 0 | N14: 0 | O14: 0 | P14: 0 | Q14: 0 | R14: 0 | S14: 0 | T14: 0 | U14: 0 | V14: 0 | W14: 0 | X14: 0 | Y14: 0 | Z14: 0 | AA14: 0 | AB14: 0 | AC14: 0 | AD14: 0 | AE14: 0 | AF14: 0 | AG14: 0 | AH14: 0 | AI14: 0 | AJ14: 0 | AK14: 0 | AL14: 0 | AM14: 0 | AN14: 0 | AO14: =SUM(AO47:AO49)+SUM(AO50:AO57)*AO13+AO58*AO57*AO13 -> 0 | AP14: 0 | AQ14: 0 | AR14: 0 | AS14: 0 | AT14: 0 | AU14: 0 | AV14: 0 | AW14: 0 | AX14: 0 | AY14: 0 | AZ14: 0 | BA14: 0 | BB14: 0 | BC14: 0 | BD14: 0 | BE14: 0 | BF14: 0
D15: Ancillary cost percentage of ECC | F15: =IF(ISNUMBER(F14/F13),F14/F13," ") ->  | I15: =IF(ISNUMBER(I14/I13),I14/I13," ") -> 
C17: Subtotal | E17: =EPCBaseYear -> 0 | F17: =F13+F14 -> 0 | I17: =I13+I14 -> 0 | J17: 0 | K17: 0 | L17: 0 | M17: 0 | N17: 0 | O17: 0 | P17: 0 | Q17: 0 | R17: 0 | S17: 0 | T17: 0 | U17: 0 | V17: 0 | W17: 0 | X17: 0 | Y17: 0 | Z17: 0 | AA17: 0 | AB17: 0 | AC17: 0 | AD17: 0 | AE17: 0 | AF17: 0 | AG17: 0 | AH17: 0 | AI17: 0 | AJ17: 0 | AK17: 0 | AL17: 0 | AM17: 0 | AN17: 0 | AO17: 0 | AP17: 0 | AQ17: 0 | AR17: 0 | AS17: 0 | AT17: 0 | AU17: 0 | AV17: 0 | AW17: 0 | AX17: 0 | AY17: 0 | AZ17: 0 | BA17: 0 | BB17: 0 | BC17: 0 | BD17: 0 | BE17: 0 | BF17: 0
C18: Contingency allowance | E18: =CapCostConting -> 0 | F18: =F17*$E18 -> 0 | I18: =I17*$E18 -> 0 | J18: =J17*$E18 -> 0 | K18: 0 | L18: 0 | M18: 0 | N18: 0 | O18: 0 | P18: 0 | Q18: 0 | R18: 0 | S18: 0 | T18: 0 | U18: 0 | V18: 0 | W18: 0 | X18: 0 | Y18: 0 | Z18: 0 | AA18: 0 | AB18: 0 | AC18: 0 | AD18: 0 | AE18: 0 | AF18: 0 | AG18: 0 | AH18: 0 | AI18: 0 | AJ18: 0 | AK18: 0 | AL18: 0 | AM18: 0 | AN18: 0 | AO18: 0 | AP18: 0 | AQ18: 0 | AR18: 0 | AS18: 0 | AT18: 0 | AU18: 0 | AV18: 0 | AW18: 0 | AX18: 0 | AY18: 0 | AZ18: 0 | BA18: 0 | BB18: 0 | BC18: 0 | BD18: 0 | BE18: 0 | BF18: 0
C19: Capital cost basis, not including… | E19: =EPCBaseYear -> 0 | F19: =SUM(F17:F18) -> 0 | I19: =IF(CapitalTrtmt="LS",F19," ") ->  | J19: =SUM(J17:J18) -> 0 | K19: 0 | L19: 0 | M19: 0 | N19: 0 | O19: 0 | P19: 0 | Q19: 0 | R19: 0 | S19: 0 | T19: 0 | U19: 0 | V19: 0 | W19: 0 | X19: 0 | Y19: 0 | Z19: 0 | AA19: 0 | AB19: 0 | AC19: 0 | AD19: 0 | AE19: 0 | AF19: 0 | AG19: 0 | AH19: 0 | AI19: 0 | AJ19: 0 | AK19: 0 | AL19: 0 | AM19: 0 | AN19: 0 | AO19: 0 | AP19: 0 | AQ19: 0 | AR19: 0 | AS19: 0 | AT19: 0 | AU19: 0 | AV19: 0 | AW19: 0 | AX19: 0 | AY19: 0 | AZ19: 0 | BA19: 0 | BB19: 0 | BC19: 0 | BD19: 0 | BE19: 0 | BF19: 0
C20: …financial costs or cost escalation
H21: End of
B22: Subsequent Capital Replacements | E22: Useful Life | F22: =EPCBaseYear -> 0 | H22: Life Cycle
C23: First Main Component | E23: (years) | F23: Costs | G23: Re-caps | H23: Residual | I23: Recapitalize Schedule . . .
C25: Principal component | E25: 20 | F25: 0 | G25: =IF(E25>0,TRUNC((LCCPeriod-1)/E25),0) -> 0 | H25: =IF(IF(E25>0,(1-((LCCPeriod/E25)-TRUNC(LCCPeriod/E25)))*F25,0)=F25,0,IF(E25>0,(1-((LCCPeriod/E25)-TRUNC(LCCPeriod/E25)))*F25,0)) -> 0 | I25: =IF($E25>0,IF(I$7<LCCPeriod,IF(I$7/$E25=INT(I$7/$E25),$F25,0),0),0) -> 0 | J25: 0 | K25: 0 | L25: 0 | M25: 0 | N25: 0 | O25: 0 | P25: 0 | Q25: 0 | R25: 0 | S25: 0 | T25: 0 | U25: 0 | V25: 0 | W25: 0 | X25: 0 | Y25: =IF($E25>0,IF(Y$7<LCCPeriod,IF(Y$7/$E25=INT(Y$7/$E25),$F25,0),0),0) -> 0 | Z25: 0 | AA25: 0 | AB25: 0 | AC25: 0 | AD25: 0 | AE25: 0 | AF25: 0 | AG25: 0 | AH25: 0 | AI25: 0 | AJ25: 0 | AK25: 0 | AL25: 0 | AM25: 0 | AN25: 0 | AO25: 0 | AP25: 0 | AQ25: 0 | AR25: 0 | AS25: 0 | AT25: 0 | AU25: 0 | AV25: 0 | AW25: 0 | AX25: 0 | AY25: 0 | AZ25: 0 | BA25: 0 | BB25: 0 | BC25: 0 | BD25: 0 | BE25: 0 | BF25: 0
C26: Sub-component | E26: 5 | F26: 0 | G26: =IF(E26>0,TRUNC((LCCPeriod-1)/E26),0) -> 0 | H26: 0 | I26: =IF(I$25>0,0,IF($E26>0,IF(I$7<LCCPeriod,IF(I$7/$E26=INT(I$7/$E26),$F26,0),0),0)) -> 0 | J26: 0 | K26: 0 | L26: 0 | M26: 0 | N26: 0 | O26: 0 | P26: 0 | Q26: 0 | R26: 0 | S26: =IF(S$25>0,0,IF($E26>0,IF(S$7<LCCPeriod,IF(S$7/$E26=INT(S$7/$E26),$F26,0),0),0)) -> 0 | T26: 0 | U26: 0 | V26: 0 | W26: 0 | X26: 0 | Y26: 0 | Z26: 0 | AA26: 0 | AB26: 0 | AC26: =IF(AC$25>0,0,IF($E26>0,IF(AC$7<LCCPeriod,IF(AC$7/$E26=INT(AC$7/$E26),$F26,0),0),0)) -> 0 | AD26: 0 | AE26: 0 | AF26: 0 | AG26: 0 | AH26: 0 | AI26: 0 | AJ26: 0 | AK26: 0 | AL26: 0 | AM26: =IF(AM$25>0,0,IF($E26>0,IF(AM$7<LCCPeriod,IF(AM$7/$E26=INT(AM$7/$E26),$F26,0),0),0)) -> 0 | AN26: 0 | AO26: 0 | AP26: 0 | AQ26: 0 | AR26: 0 | AS26: 0 | AT26: 0 | AU26: 0 | AV26: 0 | AW26: =IF(AW$25>0,0,IF($E26>0,IF(AW$7<LCCPeriod,IF(AW$7/$E26=INT(AW$7/$E26),$F26,0),0),0)) -> 0 | AX26: 0 | AY26: 0 | AZ26: 0 | BA26: 0 | BB26: 0 | BC26: 0 | BD26: 0 | BE26: 0 | BF26: 0
C27: Sub-component | E27: 5 | F27: 0 | G27: 0 | H27: 0 | I27: 0 | J27: 0 | K27: 0 | L27: 0 | M27: 0 | N27: 0 | O27: 0 | P27: 0 | Q27: 0 | R27: 0 | S27: 0 | T27: 0 | U27: 0 | V27: 0 | W27: 0 | X27: 0 | Y27: 0 | Z27: 0 | AA27: 0 | AB27: 0 | AC27: 0 | AD27: 0 | AE27: 0 | AF27: 0 | AG27: 0 | AH27: 0 | AI27: 0 | AJ27: 0 | AK27: 0 | AL27: 0 | AM27: 0 | AN27: 0 | AO27: 0 | AP27: 0 | AQ27: 0 | AR27: 0 | AS27: 0 | AT27: 0 | AU27: 0 | AV27: 0 | AW27: 0 | AX27: 0 | AY27: 0 | AZ27: 0 | BA27: 0 | BB27: 0 | BC27: 0 | BD27: 0 | BE27: 0 | BF27: 0
C28: Sub-component | E28: 5 | F28: 0 | G28: 0 | H28: 0 | I28: 0 | J28: 0 | K28: 0 | L28: 0 | M28: 0 | N28: 0 | O28: 0 | P28: 0 | Q28: 0 | R28: 0 | S28: 0 | T28: 0 | U28: 0 | V28: 0 | W28: 0 | X28: 0 | Y28: 0 | Z28: 0 | AA28: 0 | AB28: 0 | AC28: 0 | AD28: 0 | AE28: 0 | AF28: 0 | AG28: 0 | AH28: 0 | AI28: 0 | AJ28: 0 | AK28: 0 | AL28: 0 | AM28: 0 | AN28: 0 | AO28: 0 | AP28: 0 | AQ28: 0 | AR28: 0 | AS28: 0 | AT28: 0 | AU28: 0 | AV28: 0 | AW28: 0 | AX28: 0 | AY28: 0 | AZ28: 0 | BA28: 0 | BB28: 0 | BC28: 0 | BD28: 0 | BE28: 0 | BF28: 0
C29: Sub-component | E29: 5 | F29: 0 | G29: 0 | H29: 0 | I29: 0 | J29: 0 | K29: 0 | L29: 0 | M29: 0 | N29: 0 | O29: 0 | P29: 0 | Q29: 0 | R29: 0 | S29: 0 | T29: 0 | U29: 0 | V29: 0 | W29: 0 | X29: 0 | Y29: 0 | Z29: 0 | AA29: 0 | AB29: 0 | AC29: 0 | AD29: 0 | AE29: 0 | AF29: 0 | AG29: 0 | AH29: 0 | AI29: 0 | AJ29: 0 | AK29: 0 | AL29: 0 | AM29: 0 | AN29: 0 | AO29: 0 | AP29: 0 | AQ29: 0 | AR29: 0 | AS29: 0 | AT29: 0 | AU29: 0 | AV29: 0 | AW29: 0 | AX29: 0 | AY29: 0 | AZ29: 0 | BA29: 0 | BB29: 0 | BC29: 0 | BD29: 0 | BE29: 0 | BF29: 0
H30: =SUM(H25:H29) -> 0 | I30: =SUM(I25:I29) -> 0 | J30: 0 | K30: 0 | L30: 0 | M30: 0 | N30: 0 | O30: 0 | P30: 0 | Q30: 0 | R30: 0 | S30: 0 | T30: 0 | U30: 0 | V30: 0 | W30: 0 | X30: 0 | Y30: 0 | Z30: 0 | AA30: 0 | AB30: 0 | AC30: 0 | AD30: 0 | AE30: 0 | AF30: 0 | AG30: 0 | AH30: 0 | AI30: 0 | AJ30: 0 | AK30: 0 | AL30: 0 | AM30: 0 | AN30: 0 | AO30: 0 | AP30: 0 | AQ30: 0 | AR30: 0 | AS30: 0 | AT30: 0 | AU30: 0 | AV30: 0 | AW30: 0 | AX30: 0 | AY30: 0 | AZ30: 0 | BA30: 0 | BB30: 0 | BC30: 0 | BD30: 0 | BE30: 0 | BF30: 0
C31: Second Main Component
C32: Principal component | E32: 5 | F32: 0 | G32: =IF(E32>0,TRUNC((LCCPeriod-1)/E32),0) -> 0 | H32: =IF(IF(E32>0,(1-((LCCPeriod/E32)-TRUNC(LCCPeriod/E32)))*F32,0)=F32,0,IF(E32>0,(1-((LCCPeriod/E32)-TRUNC(LCCPeriod/E32)))*F32,0)) -> 0 | I32: 0 | J32: 0 | K32: 0 | L32: 0 | M32: 0 | N32: 0 | O32: 0 | P32: 0 | Q32: 0 | R32: 0 | S32: 0 | T32: 0 | U32: 0 | V32: 0 | W32: 0 | X32: 0 | Y32: =IF($E32>0,IF(Y$7<LCCPeriod,IF(Y$7/$E32=INT(Y$7/$E32),$F32,0),0),0) -> 0 | Z32: 0 | AA32: 0 | AB32: 0 | AC32: 0 | AD32: 0 | AE32: 0 | AF32: 0 | AG32: 0 | AH32: 0 | AI32: 0 | AJ32: 0 | AK32: 0 | AL32: 0 | AM32: 0 | AN32: 0 | AO32: 0 | AP32: 0 | AQ32: 0 | AR32: 0 | AS32: 0 | AT32: 0 | AU32: 0 | AV32: 0 | AW32: 0 | AX32: 0 | AY32: 0 | AZ32: 0 | BA32: 0 | BB32: 0 | BC32: 0 | BD32: 0 | BE32: 0 | BF32: 0
C33: Sub-component | E33: 5 | F33: 0 | G33: 0 | H33: 0 | I33: =IF(I$32>0,0,IF($E33>0,IF(I$7<LCCPeriod,IF(I$7/$E33=INT(I$7/$E33),$F33,0),0),0)) -> 0 | J33: 0 | K33: 0 | L33: 0 | M33: 0 | N33: 0 | O33: 0 | P33: 0 | Q33: 0 | R33: 0 | S33: =IF(S$32>0,0,IF($E33>0,IF(S$7<LCCPeriod,IF(S$7/$E33=INT(S$7/$E33),$F33,0),0),0)) -> 0 | T33: 0 | U33: 0 | V33: 0 | W33: 0 | X33: 0 | Y33: 0 | Z33: 0 | AA33: 0 | AB33: 0 | AC33: =IF(AC$32>0,0,IF($E33>0,IF(AC$7<LCCPeriod,IF(AC$7/$E33=INT(AC$7/$E33),$F33,0),0),0)) -> 0 | AD33: 0 | AE33: 0 | AF33: 0 | AG33: 0 | AH33: 0 | AI33: 0 | AJ33: 0 | AK33: 0 | AL33: 0 | AM33: =IF(AM$32>0,0,IF($E33>0,IF(AM$7<LCCPeriod,IF(AM$7/$E33=INT(AM$7/$E33),$F33,0),0),0)) -> 0 | AN33: 0 | AO33: 0 | AP33: 0 | AQ33: 0 | AR33: 0 | AS33: 0 | AT33: 0 | AU33: 0 | AV33: 0 | AW33: =IF(AW$32>0,0,IF($E33>0,IF(AW$7<LCCPeriod,IF(AW$7/$E33=INT(AW$7/$E33),$F33,0),0),0)) -> 0 | AX33: 0 | AY33: 0 | AZ33: 0 | BA33: 0 | BB33: 0 | BC33: 0 | BD33: 0 | BE33: 0 | BF33: 0
C34: Sub-component | E34: 5 | F34: 0 | G34: 0 | H34: 0 | I34: 0 | J34: 0 | K34: 0 | L34: 0 | M34: 0 | N34: 0 | O34: 0 | P34: 0 | Q34: 0 | R34: 0 | S34: 0 | T34: 0 | U34: 0 | V34: 0 | W34: 0 | X34: 0 | Y34: 0 | Z34: 0 | AA34: 0 | AB34: 0 | AC34: 0 | AD34: 0 | AE34: 0 | AF34: 0 | AG34: 0 | AH34: 0 | AI34: 0 | AJ34: 0 | AK34: 0 | AL34: 0 | AM34: 0 | AN34: 0 | AO34: 0 | AP34: 0 | AQ34: 0 | AR34: 0 | AS34: 0 | AT34: 0 | AU34: 0 | AV34: 0 | AW34: 0 | AX34: 0 | AY34: 0 | AZ34: 0 | BA34: 0 | BB34: 0 | BC34: 0 | BD34: 0 | BE34: 0 | BF34: 0
C35: Sub-component | E35: 5 | F35: 0 | G35: 0 | H35: 0 | I35: 0 | J35: 0 | K35: 0 | L35: 0 | M35: 0 | N35: 0 | O35: 0 | P35: 0 | Q35: 0 | R35: 0 | S35: 0 | T35: 0 | U35: 0 | V35: 0 | W35: 0 | X35: 0 | Y35: 0 | Z35: 0 | AA35: 0 | AB35: 0 | AC35: 0 | AD35: 0 | AE35: 0 | AF35: 0 | AG35: 0 | AH35: 0 | AI35: 0 | AJ35: 0 | AK35: 0 | AL35: 0 | AM35: 0 | AN35: 0 | AO35: 0 | AP35: 0 | AQ35: 0 | AR35: 0 | AS35: 0 | AT35: 0 | AU35: 0 | AV35: 0 | AW35: 0 | AX35: 0 | AY35: 0 | AZ35: 0 | BA35: 0 | BB35: 0 | BC35: 0 | BD35: 0 | BE35: 0 | BF35: 0
C36: Sub-component | E36: 5 | F36: 0 | G36: 0 | H36: 0 | I36: 0 | J36: 0 | K36: 0 | L36: 0 | M36: 0 | N36: 0 | O36: 0 | P36: 0 | Q36: 0 | R36: 0 | S36: 0 | T36: 0 | U36: 0 | V36: 0 | W36: 0 | X36: 0 | Y36: 0 | Z36: 0 | AA36: 0 | AB36: 0 | AC36: 0 | AD36: 0 | AE36: 0 | AF36: 0 | AG36: 0 | AH36: 0 | AI36: 0 | AJ36: 0 | AK36: 0 | AL36: 0 | AM36: 0 | AN36: 0 | AO36: 0 | AP36: 0 | AQ36: 0 | AR36: 0 | AS36: 0 | AT36: 0 | AU36: 0 | AV36: 0 | AW36: 0 | AX36: 0 | AY36: 0 | AZ36: 0 | BA36: 0 | BB36: 0 | BC36: 0 | BD36: 0 | BE36: 0 | BF36: 0
F37: =IF((F25+F32)>F13,"Oops, too much alloction!"," ") ->  | H37: =SUM(H32:H36) -> 0 | I37: =SUM(I32:I36) -> 0 | J37: =SUM(J32:J36) -> 0 | K37: =SUM(K32:K36) -> 0 | L37: 0 | M37: 0 | N37: 0 | O37: 0 | P37: 0 | Q37: 0 | R37: 0 | S37: 0 | T37: 0 | U37: 0 | V37: 0 | W37: 0 | X37: 0 | Y37: 0 | Z37: 0 | AA37: 0 | AB37: 0 | AC37: 0 | AD37: 0 | AE37: 0 | AF37: 0 | AG37: 0 | AH37: 0 | AI37: 0 | AJ37: 0 | AK37: 0 | AL37: 0 | AM37: 0 | AN37: 0 | AO37: 0 | AP37: 0 | AQ37: 0 | AR37: 0 | AS37: 0 | AT37: 0 | AU37: 0 | AV37: 0 | AW37: 0 | AX37: 0 | AY37: 0 | AZ37: 0 | BA37: 0 | BB37: 0 | BC37: 0 | BD37: 0 | BE37: 0 | BF37: 0
B38: Existing Depreciating Assets
C39: Name | E39: 25 | F39: 0 | G39: =IF(E39>0,TRUNC((LCCPeriod-1-E40)/E39+1),0) -> 0 | H39: =IF(IF(E39>0,(1-(((LCCPeriod-E40)/E39)-TRUNC((LCCPeriod-E40)/E39)))*F39,0)=F39,0,IF(E39>0,(1-(((LCCPeriod-E40)/E39)-TRUNC((LCCPeriod-E40)/E39)))*F39,0)) -> 0 | I39: =IF(I$7=$E40,$F39,IF(I$7>$E40,IF(I$7<LCCPeriod,IF((I$7-$E40)/($E39)=INT((I$7-$E40)/($E39)),$F39,0),0),0)) -> 0 | J39: 0 | K39: 0 | L39: 0 | M39: 0 | N39: 0 | O39: 0 | P39: 0 | Q39: 0 | R39: 0 | S39: 0 | T39: 0 | U39: 0 | V39: 0 | W39: 0 | X39: 0 | Y39: 0 | Z39: 0 | AA39: 0 | AB39: 0 | AC39: 0 | AD39: 0 | AE39: 0 | AF39: 0 | AG39: 0 | AH39: 0 | AI39: 0 | AJ39: 0 | AK39: 0 | AL39: 0 | AM39: 0 | AN39: 0 | AO39: 0 | AP39: 0 | AQ39: 0 | AR39: 0 | AS39: 0 | AT39: 0 | AU39: 0 | AV39: 0 | AW39: 0 | AX39: 0 | AY39: 0 | AZ39: 0 | BA39: 0 | BB39: 0 | BC39: 0 | BD39: 0 | BE39: 0 | BF39: 0
D40: Estimated remaining life: | E40: 20
C41: Name | E41: 10 | F41: 0 | G41: =IF(E41>0,TRUNC((LCCPeriod-1-E42)/E41+1),0) -> -1 | H41: =IF(IF(E41>0,(1-(((LCCPeriod-E42)/E41)-TRUNC((LCCPeriod-E42)/E41)))*F41,0)=F41,0,IF(E41>0,(1-(((LCCPeriod-E42)/E41)-TRUNC((LCCPeriod-E42)/E41)))*F41,0)) -> 0 | I41: =IF(I$7=$E42,$F41,IF(I$7>$E42,IF(I$7<LCCPeriod,IF((I$7-$E42)/($E41)=INT((I$7-$E42)/($E41)),$F41,0),0),0)) -> 0 | J41: 0 | K41: 0 | L41: 0 | M41: 0 | N41: 0 | O41: 0 | P41: 0 | Q41: 0 | R41: 0 | S41: 0 | T41: 0 | U41: 0 | V41: 0 | W41: 0 | X41: 0 | Y41: 0 | Z41: 0 | AA41: 0 | AB41: 0 | AC41: 0 | AD41: 0 | AE41: 0 | AF41: 0 | AG41: 0 | AH41: 0 | AI41: 0 | AJ41: 0 | AK41: 0 | AL41: 0 | AM41: 0 | AN41: 0 | AO41: 0 | AP41: 0 | AQ41: 0 | AR41: 0 | AS41: 0 | AT41: 0 | AU41: 0 | AV41: 0 | AW41: 0 | AX41: 0 | AY41: 0 | AZ41: 0 | BA41: 0 | BB41: 0 | BC41: 0 | BD41: 0 | BE41: 0 | BF41: 0
D42: Estimated remaining life: | E42: 20
C43: Sum of existing asset re-cap costs | H43: =SUM(H39:H41) -> 0 | I43: =SUM(I39:I41) -> 0 | J43: =SUM(J39:J41) -> 0 | K43: =SUM(K39:K41) -> 0 | L43: =SUM(L39:L41) -> 0 | M43: =SUM(M39:M41) -> 0 | N43: 0 | O43: 0 | P43: 0 | Q43: 0 | R43: 0 | S43: 0 | T43: 0 | U43: 0 | V43: 0 | W43: 0 | X43: 0 | Y43: 0 | Z43: 0 | AA43: 0 | AB43: 0 | AC43: 0 | AD43: 0 | AE43: 0 | AF43: 0 | AG43: 0 | AH43: 0 | AI43: 0 | AJ43: 0 | AK43: 0 | AL43: 0 | AM43: 0 | AN43: 0 | AO43: 0 | AP43: 0 | AQ43: 0 | AR43: 0 | AS43: 0 | AT43: 0 | AU43: 0 | AV43: 0 | AW43: 0 | AX43: 0 | AY43: 0 | AZ43: 0 | BA43: 0 | BB43: 0 | BC43: 0 | BD43: 0 | BE43: 0 | BF43: 0
F44: PV of Residual Values: | H44: =(H$30+H$37+H$43)/(1+DiscRat)^(LCCPeriod+1-(PresentYear-EPCBaseYear)) -> 0
B46: Ancillary Cost Components* | E46: =EPCBaseYear -> 0
C47: Land acquisition or rights of way | E47: Dollar value | F47: 0 | I47: =IF(I$13>0,"N/A",0) -> 0 | J47: =IF(J$13>0,"N/A",0) -> 0 | K47: 0 | L47: 0 | M47: 0 | N47: 0 | O47: 0 | P47: 0 | Q47: 0 | R47: 0 | S47: 0 | T47: 0 | U47: 0 | V47: 0 | W47: 0 | X47: 0 | Y47: 0 | Z47: 0 | AA47: 0 | AB47: 0 | AC47: 0 | AD47: 0 | AE47: 0 | AF47: 0 | AG47: 0 | AH47: 0 | AI47: 0 | AJ47: 0 | AK47: 0 | AL47: 0 | AM47: 0 | AN47: 0 | AO47: 0 | AP47: 0 | AQ47: 0 | AR47: 0 | AS47: 0 | AT47: 0 | AU47: 0 | AV47: 0 | AW47: 0 | AX47: 0 | AY47: 0 | AZ47: 0 | BA47: 0 | BB47: 0 | BC47: 0 | BD47: 0 | BE47: 0 | BF47: 0
C48: Environmental mitigation | E48: Dollar value | F48: 0 | I48: =IF(I$13>0,"N/A",0) -> 0 | J48: 0 | K48: 0 | L48: 0 | M48: 0 | N48: 0 | O48: 0 | P48: 0 | Q48: 0 | R48: 0 | S48: 0 | T48: 0 | U48: 0 | V48: 0 | W48: 0 | X48: 0 | Y48: 0 | Z48: 0 | AA48: 0 | AB48: 0 | AC48: 0 | AD48: 0 | AE48: 0 | AF48: 0 | AG48: 0 | AH48: 0 | AI48: 0 | AJ48: 0 | AK48: 0 | AL48: 0 | AM48: 0 | AN48: 0 | AO48: 0 | AP48: 0 | AQ48: 0 | AR48: 0 | AS48: 0 | AT48: 0 | AU48: 0 | AV48: 0 | AW48: 0 | AX48: 0 | AY48: 0 | AZ48: 0 | BA48: 0 | BB48: 0 | BC48: 0 | BD48: 0 | BE48: 0 | BF48: 0
C49: Permits | E49: % of ECC | F49: 0 | I49: =IF(I$13>0,$F49,0) -> 0 | J49: =IF(J$13>0,$F49,0) -> 0 | K49: 0 | L49: 0 | M49: 0 | N49: 0 | O49: 0 | P49: 0 | Q49: 0 | R49: 0 | S49: 0 | T49: 0 | U49: 0 | V49: 0 | W49: 0 | X49: 0 | Y49: 0 | Z49: 0 | AA49: 0 | AB49: 0 | AC49: 0 | AD49: 0 | AE49: 0 | AF49: 0 | AG49: 0 | AH49: 0 | AI49: 0 | AJ49: 0 | AK49: 0 | AL49: 0 | AM49: 0 | AN49: 0 | AO49: 0 | AP49: 0 | AQ49: 0 | AR49: 0 | AS49: 0 | AT49: 0 | AU49: 0 | AV49: 0 | AW49: 0 | AX49: 0 | AY49: 0 | AZ49: 0 | BA49: 0 | BB49: 0 | BC49: 0 | BD49: 0 | BE49: 0 | BF49: 0
C50: Engineering (pre thru final) | E50: % of ECC | F50: 0 | I50: =IF(I$13>0,$F50,0) -> 0 | J50: 0 | K50: 0 | L50: 0 | M50: 0 | N50: 0 | O50: 0 | P50: 0 | Q50: 0 | R50: 0 | S50: 0 | T50: 0 | U50: 0 | V50: 0 | W50: 0 | X50: 0 | Y50: 0 | Z50: 0 | AA50: 0 | AB50: 0 | AC50: 0 | AD50: 0 | AE50: 0 | AF50: 0 | AG50: 0 | AH50: 0 | AI50: 0 | AJ50: 0 | AK50: 0 | AL50: 0 | AM50: 0 | AN50: 0 | AO50: 0 | AP50: 0 | AQ50: 0 | AR50: 0 | AS50: 0 | AT50: 0 | AU50: 0 | AV50: 0 | AW50: 0 | AX50: 0 | AY50: 0 | AZ50: 0 | BA50: 0 | BB50: 0 | BC50: 0 | BD50: 0 | BE50: 0 | BF50: 0
C51: Constn mgmt/observation | E51: % of ECC | F51: 0 | I51: =IF(I$13>0,$F51,0) -> 0 | J51: 0 | K51: 0 | L51: 0 | M51: 0 | N51: 0 | O51: 0 | P51: 0 | Q51: 0 | R51: 0 | S51: 0 | T51: 0 | U51: 0 | V51: 0 | W51: 0 | X51: 0 | Y51: 0 | Z51: 0 | AA51: 0 | AB51: 0 | AC51: 0 | AD51: 0 | AE51: 0 | AF51: 0 | AG51: 0 | AH51: 0 | AI51: 0 | AJ51: 0 | AK51: 0 | AL51: 0 | AM51: 0 | AN51: 0 | AO51: 0 | AP51: 0 | AQ51: 0 | AR51: 0 | AS51: 0 | AT51: 0 | AU51: 0 | AV51: 0 | AW51: 0 | AX51: 0 | AY51: 0 | AZ51: 0 | BA51: 0 | BB51: 0 | BC51: 0 | BD51: 0 | BE51: 0 | BF51: 0
C52: Administration/legal | E52: % of ECC | F52: 0 | I52: 0 | J52: 0 | K52: 0 | L52: 0 | M52: 0 | N52: 0 | O52: 0 | P52: 0 | Q52: 0 | R52: 0 | S52: 0 | T52: 0 | U52: 0 | V52: 0 | W52: 0 | X52: 0 | Y52: 0 | Z52: 0 | AA52: 0 | AB52: 0 | AC52: 0 | AD52: 0 | AE52: 0 | AF52: 0 | AG52: 0 | AH52: 0 | AI52: 0 | AJ52: 0 | AK52: 0 | AL52: 0 | AM52: 0 | AN52: 0 | AO52: 0 | AP52: 0 | AQ52: 0 | AR52: 0 | AS52: 0 | AT52: 0 | AU52: 0 | AV52: 0 | AW52: 0 | AX52: 0 | AY52: 0 | AZ52: 0 | BA52: 0 | BB52: 0 | BC52: 0 | BD52: 0 | BE52: 0 | BF52: 0
C53: (other) | F53: 0 | I53: 0 | J53: 0 | K53: 0 | L53: 0 | M53: 0 | N53: 0 | O53: 0 | P53: 0 | Q53: 0 | R53: 0 | S53: 0 | T53: 0 | U53: 0 | V53: 0 | W53: 0 | X53: 0 | Y53: 0 | Z53: 0 | AA53: 0 | AB53: 0 | AC53: 0 | AD53: 0 | AE53: 0 | AF53: 0 | AG53: 0 | AH53: 0 | AI53: 0 | AJ53: 0 | AK53: 0 | AL53: 0 | AM53: 0 | AN53: 0 | AO53: 0 | AP53: 0 | AQ53: 0 | AR53: 0 | AS53: 0 | AT53: 0 | AU53: 0 | AV53: 0 | AW53: 0 | AX53: 0 | AY53: 0 | AZ53: 0 | BA53: 0 | BB53: 0 | BC53: 0 | BD53: 0 | BE53: 0 | BF53: 0
C54: (other) | F54: 0 | I54: 0 | J54: 0 | K54: 0 | L54: 0 | M54: 0 | N54: 0 | O54: 0 | P54: 0 | Q54: 0 | R54: 0 | S54: 0 | T54: 0 | U54: 0 | V54: 0 | W54: 0 | X54: 0 | Y54: 0 | Z54: 0 | AA54: 0 | AB54: 0 | AC54: 0 | AD54: 0 | AE54: 0 | AF54: 0 | AG54: 0 | AH54: 0 | AI54: =IF(AI$13>0,$F54,0) -> 0 | AJ54: 0 | AK54: 0 | AL54: 0 | AM54: 0 | AN54: 0 | AO54: 0 | AP54: 0 | AQ54: 0 | AR54: 0 | AS54: 0 | AT54: 0 | AU54: 0 | AV54: 0 | AW54: 0 | AX54: 0 | AY54: 0 | AZ54: 0 | BA54: 0 | BB54: 0 | BC54: 0 | BD54: 0 | BE54: 0 | BF54: 0
C55: (other) | F55: 0 | I55: 0 | J55: 0 | K55: 0 | L55: 0 | M55: 0 | N55: 0 | O55: 0 | P55: 0 | Q55: 0 | R55: 0 | S55: 0 | T55: 0 | U55: 0 | V55: 0 | W55: 0 | X55: 0 | Y55: =IF(Y$13>0,$F55,0) -> 0 | Z55: 0 | AA55: 0 | AB55: 0 | AC55: 0 | AD55: 0 | AE55: 0 | AF55: 0 | AG55: 0 | AH55: 0 | AI55: 0 | AJ55: 0 | AK55: 0 | AL55: 0 | AM55: 0 | AN55: 0 | AO55: 0 | AP55: 0 | AQ55: 0 | AR55: 0 | AS55: 0 | AT55: 0 | AU55: 0 | AV55: 0 | AW55: 0 | AX55: 0 | AY55: 0 | AZ55: 0 | BA55: 0 | BB55: 0 | BC55: 0 | BD55: 0 | BE55: 0 | BF55: 0
C56: (other) | F56: 0 | I56: 0 | J56: 0 | K56: 0 | L56: 0 | M56: 0 | N56: 0 | O56: 0 | P56: 0 | Q56: 0 | R56: 0 | S56: 0 | T56: 0 | U56: 0 | V56: 0 | W56: 0 | X56: 0 | Y56: 0 | Z56: 0 | AA56: 0 | AB56: 0 | AC56: 0 | AD56: 0 | AE56: 0 | AF56: 0 | AG56: 0 | AH56: 0 | AI56: 0 | AJ56: 0 | AK56: 0 | AL56: 0 | AM56: 0 | AN56: 0 | AO56: 0 | AP56: 0 | AQ56: 0 | AR56: 0 | AS56: 0 | AT56: 0 | AU56: 0 | AV56: 0 | AW56: 0 | AX56: 0 | AY56: 0 | AZ56: 0 | BA56: 0 | BB56: 0 | BC56: 0 | BD56: 0 | BE56: 0 | BF56: 0
C57: Support of the Arts | E57: % of ECC | F57: 0 | J57: 0 | K57: 0 | L57: 0 | M57: 0 | N57: 0 | O57: 0 | P57: 0 | Q57: 0 | R57: 0 | S57: 0 | T57: 0 | U57: 0 | V57: 0 | W57: 0 | X57: 0 | Y57: 0 | Z57: 0 | AA57: 0 | AB57: 0 | AC57: 0 | AD57: 0 | AE57: 0 | AF57: 0 | AG57: 0 | AH57: 0 | AI57: 0 | AJ57: 0 | AK57: 0 | AL57: 0 | AM57: 0 | AN57: 0 | AO57: 0 | AP57: 0 | AQ57: 0 | AR57: 0 | AS57: 0 | AT57: 0 | AU57: 0 | AV57: 0 | AW57: 0 | AX57: 0 | AY57: 0 | AZ57: 0 | BA57: 0 | BB57: 0 | BC57: 0 | BD57: 0 | BE57: 0 | BF57: 0
C58: Sales tax | E58: % of ECC | F58: 0 | I58: 0 | J58: 0 | K58: 0 | L58: 0 | M58: 0 | N58: 0 | O58: 0 | P58: 0 | Q58: 0 | R58: 0 | S58: 0 | T58: 0 | U58: 0 | V58: 0 | W58: 0 | X58: 0 | Y58: 0 | Z58: 0 | AA58: 0 | AB58: 0 | AC58: 0 | AD58: 0 | AE58: 0 | AF58: 0 | AG58: 0 | AH58: 0 | AI58: 0 | AJ58: 0 | AK58: 0 | AL58: 0 | AM58: 0 | AN58: 0 | AO58: 0 | AP58: 0 | AQ58: 0 | AR58: 0 | AS58: 0 | AT58: 0 | AU58: 0 | AV58: 0 | AW58: 0 | AX58: 0 | AY58: 0 | AZ58: 0 | BA58: 0 | BB58: 0 | BC58: 0 | BD58: 0 | BE58: 0 | BF58: 0
A61: =IF(CapitalTrtmt="LS","The following rows are not used with the Lump Sum Capital Treatment method"," ") -> 
A62: Annual Debt Service Determinations | F62: Initial
B63: Cost in unescalated dollars | F63: =F19 -> 0 | M63: =M19 -> 0 | N63: 0 | O63: 0 | P63: 0 | Q63: 0 | R63: 0 | S63: 0 | T63: 0 | U63: 0 | V63: 0 | W63: 0 | X63: 0 | Y63: 0 | Z63: 0 | AA63: 0 | AB63: 0 | AC63: 0 | AD63: 0 | AE63: 0 | AF63: 0 | AG63: 0 | AH63: 0 | AI63: 0 | AJ63: 0 | AK63: 0 | AL63: 0 | AM63: 0 | AN63: 0 | AO63: 0 | AP63: 0 | AQ63: 0 | AR63: 0 | AS63: 0 | AT63: 0 | AU63: 0 | AV63: 0 | AW63: 0 | AX63: 0 | AY63: 0 | AZ63: 0 | BA63: 0 | BB63: 0 | BC63: 0 | BD63: 0 | BE63: 0 | BF63: 0
B64: Proceeds required, escalated | E64: (escalated) | F64: =F19*(1+CostEscalCap)^($I$5-1-EPCBaseYear) -> 0 | M64: =M63*(1+CostEscalCap)^(M5-EPCBaseYear) -> 0 | N64: 0 | O64: 0 | P64: 0 | Q64: 0 | R64: 0 | S64: 0 | T64: 0 | U64: 0 | V64: 0 | W64: 0 | X64: 0 | Y64: 0 | Z64: 0 | AA64: 0 | AB64: 0 | AC64: 0 | AD64: 0 | AE64: 0 | AF64: 0 | AG64: 0 | AH64: 0 | AI64: 0 | AJ64: 0 | AK64: 0 | AL64: 0 | AM64: 0 | AN64: 0 | AO64: 0 | AP64: 0 | AQ64: 0 | AR64: 0 | AS64: 0 | AT64: 0 | AU64: 0 | AV64: 0 | AW64: 0 | AX64: 0 | AY64: 0 | AZ64: 0 | BA64: 0 | BB64: 0 | BC64: 0 | BD64: 0 | BE64: 0 | BF64: 0
B65: Bond sizing | F65: =F64/(1-BondSofts) -> 0 | M65: =M64/(1-BondSofts) -> 0 | N65: 0 | O65: 0 | P65: 0 | Q65: 0 | R65: 0 | S65: 0 | T65: 0 | U65: 0 | V65: 0 | W65: 0 | X65: 0 | Y65: 0 | Z65: 0 | AA65: 0 | AB65: 0 | AC65: 0 | AD65: 0 | AE65: 0 | AF65: 0 | AG65: 0 | AH65: 0 | AI65: 0 | AJ65: 0 | AK65: 0 | AL65: 0 | AM65: 0 | AN65: 0 | AO65: 0 | AP65: 0 | AQ65: 0 | AR65: 0 | AS65: 0 | AT65: 0 | AU65: 0 | AV65: 0 | AW65: 0 | AX65: 0 | AY65: 0 | AZ65: 0 | BA65: 0 | BB65: 0 | BC65: 0 | BD65: 0 | BE65: 0 | BF65: 0
B66: Annual debt service | E66: (No coverage) | F66: =-PMT(BondInt,BondMat,F65) ->  | M66: =-PMT(BondInt,BondMat,M65) -> 
A68: Debt Service Projection
B69: Sum of projected annual debt service | I69: =SUM(I70:I169) ->  | J69: =SUM(J70:J169) -> 0 | K69: 0 | L69: 0 | M69: 0
D70: Initial financing | I70: =F$66 ->  | J70: =IF((J$5-FirstOps+1)<=BondMat,I70,0) -> 0 | K70: 0 | L70: 0 | M70: 0 | N70: 0 | O70: 0 | P70: 0 | Q70: 0 | R70: 0 | S70: 0 | T70: 0 | U70: 0 | V70: 0 | W70: 0 | X70: 0 | Y70: 0 | Z70: 0 | AA70: 0 | AB70: 0 | AC70: 0 | AD70: 0 | AE70: 0 | AF70: 0 | AG70: 0 | AH70: 0 | AI70: 0 | AJ70: 0 | AK70: 0 | AL70: 0 | AM70: 0 | AN70: 0 | AO70: 0 | AP70: 0 | AQ70: 0 | AR70: 0 | AS70: 0 | AT70: 0 | AU70: 0 | AV70: 0 | AW70: 0 | AX70: 0 | AY70: 0 | AZ70: 0 | BA70: 0 | BB70: 0 | BC70: 0 | BD70: 0 | BE70: 0 | BF70: 0
D71: =I5 -> 0 | J71: =I$66 -> 0 | K71: =IF((K$5-$D71)<=BondMat,J71,0) -> 0 | L71: 0 | M71: 0 | N71: 0 | O71: 0 | P71: 0 | Q71: 0 | R71: 0 | S71: 0 | T71: 0 | U71: 0 | V71: 0 | W71: 0 | X71: 0 | Y71: 0 | Z71: 0 | AA71: =IF((AA$5-$D71)<=BondMat,Z71,0) -> 0 | AB71: 0 | AC71: 0 | AD71: 0 | AE71: 0 | AF71: 0 | AG71: 0 | AH71: 0 | AI71: 0 | AJ71: 0 | AK71: 0 | AL71: 0 | AM71: 0 | AN71: 0 | AO71: 0 | AP71: 0 | AQ71: =IF((AQ$5-$D71)<=BondMat,AP71,0) -> 0 | AR71: 0 | AS71: 0 | AT71: 0 | AU71: 0 | AV71: 0 | AW71: 0 | AX71: 0 | AY71: 0 | AZ71: 0 | BA71: 0 | BB71: 0 | BC71: 0 | BD71: 0 | BE71: 0 | BF71: 0
D72: =D71+1 -> 1 | K72: =J$66 -> 0 | L72: 0 | M72: 0 | N72: 0 | O72: 0 | P72: 0 | Q72: 0 | R72: 0 | S72: 0 | T72: 0 | U72: 0 | V72: 0 | W72: 0 | X72: 0 | Y72: 0 | Z72: 0 | AA72: 0 | AB72: 0 | AC72: 0 | AD72: 0 | AE72: 0 | AF72: 0 | AG72: 0 | AH72: 0 | AI72: 0 | AJ72: 0 | AK72: 0 | AL72: 0 | AM72: 0 | AN72: 0 | AO72: 0 | AP72: 0 | AQ72: 0 | AR72: 0 | AS72: 0 | AT72: 0 | AU72: 0 | AV72: 0 | AW72: 0 | AX72: 0 | AY72: 0 | AZ72: 0 | BA72: 0 | BB72: 0 | BC72: 0 | BD72: 0 | BE72: 0 | BF72: 0
D73: =D72+1 -> 2 | L73: =K$66 -> 0 | M73: 0 | N73: 0 | O73: 0 | P73: 0 | Q73: 0 | R73: 0 | S73: 0 | T73: 0 | U73: 0 | V73: 0 | W73: 0 | X73: 0 | Y73: 0 | Z73: 0 | AA73: 0 | AB73: 0 | AC73: 0 | AD73: 0 | AE73: 0 | AF73: 0 | AG73: 0 | AH73: 0 | AI73: 0 | AJ73: 0 | AK73: 0 | AL73: 0 | AM73: 0 | AN73: 0 | AO73: 0 | AP73: 0 | AQ73: 0 | AR73: 0 | AS73: 0 | AT73: 0 | AU73: 0 | AV73: 0 | AW73: 0 | AX73: 0 | AY73: 0 | AZ73: 0 | BA73: 0 | BB73: 0 | BC73: 0 | BD73: 0 | BE73: 0 | BF73: 0
D74: 3 | M74: =L$66 -> 0 | N74: 0 | O74: 0 | P74: 0 | Q74: 0 | R74: 0 | S74: 0 | T74: 0 | U74: 0 | V74: 0 | W74: 0 | X74: 0 | Y74: 0 | Z74: 0 | AA74: 0 | AB74: 0 | AC74: 0 | AD74: 0 | AE74: 0 | AF74: 0 | AG74: 0 | AH74: 0 | AI74: 0 | AJ74: 0 | AK74: 0 | AL74: 0 | AM74: 0 | AN74: 0 | AO74: 0 | AP74: 0 | AQ74: 0 | AR74: 0 | AS74: 0 | AT74: 0 | AU74: 0 | AV74: 0 | AW74: 0 | AX74: 0 | AY74: 0 | AZ74: 0 | BA74: 0 | BB74: 0 | BC74: 0 | BD74: 0 | BE74: 0 | BF74: 0
D75: 4 | N75: =M$66 ->  | O75: 0 | P75: 0 | Q75: 0 | R75: 0 | S75: 0 | T75: 0 | U75: 0 | V75: 0 | W75: 0 | X75: 0 | Y75: 0 | Z75: 0 | AA75: 0 | AB75: 0 | AC75: 0 | AD75: 0 | AE75: 0 | AF75: 0 | AG75: 0 | AH75: 0 | AI75: 0 | AJ75: 0 | AK75: 0 | AL75: 0 | AM75: 0 | AN75: 0 | AO75: 0 | AP75: 0 | AQ75: 0 | AR75: 0 | AS75: 0 | AT75: 0 | AU75: 0 | AV75: 0 | AW75: 0 | AX75: 0 | AY75: 0 | AZ75: 0 | BA75: 0 | BB75: 0 | BC75: 0 | BD75: 0 | BE75: 0 | BF75: 0
D76: 5 | O76: =N$66 ->  | P76: 0 | Q76: 0 | R76: 0 | S76: 0 | T76: 0 | U76: 0 | V76: 0 | W76: 0 | X76: 0 | Y76: 0 | Z76: 0 | AA76: 0 | AB76: 0 | AC76: 0 | AD76: 0 | AE76: 0 | AF76: 0 | AG76: 0 | AH76: 0 | AI76: 0 | AJ76: 0 | AK76: 0 | AL76: 0 | AM76: 0 | AN76: 0 | AO76: 0 | AP76: 0 | AQ76: 0 | AR76: 0 | AS76: 0 | AT76: 0 | AU76: 0 | AV76: 0 | AW76: 0 | AX76: 0 | AY76: 0 | AZ76: 0 | BA76: 0 | BB76: 0 | BC76: 0 | BD76: 0 | BE76: 0 | BF76: 0
D77: 6 | P77: =O$66 ->  | Q77: 0 | R77: 0 | S77: 0 | T77: 0 | U77: 0 | V77: 0 | W77: 0 | X77: 0 | Y77: 0 | Z77: 0 | AA77: 0 | AB77: 0 | AC77: 0 | AD77: 0 | AE77: 0 | AF77: 0 | AG77: 0 | AH77: 0 | AI77: 0 | AJ77: 0 | AK77: 0 | AL77: 0 | AM77: 0 | AN77: 0 | AO77: 0 | AP77: 0 | AQ77: 0 | AR77: 0 | AS77: 0 | AT77: 0 | AU77: 0 | AV77: 0 | AW77: 0 | AX77: 0 | AY77: 0 | AZ77: 0 | BA77: 0 | BB77: 0 | BC77: 0 | BD77: 0 | BE77: 0 | BF77: 0
D78: 7 | Q78: =P$66 ->  | R78: 0 | S78: 0 | T78: 0 | U78: 0 | V78: 0 | W78: 0 | X78: 0 | Y78: 0 | Z78: 0 | AA78: 0 | AB78: 0 | AC78: 0 | AD78: 0 | AE78: 0 | AF78: 0 | AG78: 0 | AH78: 0 | AI78: 0 | AJ78: 0 | AK78: 0 | AL78: 0 | AM78: 0 | AN78: 0 | AO78: 0 | AP78: 0 | AQ78: 0 | AR78: 0 | AS78: 0 | AT78: 0 | AU78: 0 | AV78: 0 | AW78: 0 | AX78: 0 | AY78: 0 | AZ78: 0 | BA78: 0 | BB78: 0 | BC78: 0 | BD78: 0 | BE78: 0 | BF78: 0
D79: 8 | R79: =Q$66 ->  | S79: 0 | T79: 0 | U79: 0 | V79: 0 | W79: 0 | X79: 0 | Y79: 0 | Z79: 0 | AA79: 0 | AB79: 0 | AC79: 0 | AD79: 0 | AE79: 0 | AF79: 0 | AG79: 0 | AH79: 0 | AI79: 0 | AJ79: 0 | AK79: 0 | AL79: 0 | AM79: 0 | AN79: 0 | AO79: 0 | AP79: 0 | AQ79: 0 | AR79: 0 | AS79: 0 | AT79: 0 | AU79: 0 | AV79: 0 | AW79: 0 | AX79: 0 | AY79: 0 | AZ79: 0 | BA79: 0 | BB79: 0 | BC79: 0 | BD79: 0 | BE79: 0 | BF79: 0
D80: 9 | S80: =R$66 ->  | T80: 0 | U80: 0 | V80: 0 | W80: 0 | X80: 0 | Y80: 0 | Z80: 0 | AA80: 0 | AB80: 0 | AC80: 0 | AD80: 0 | AE80: 0 | AF80: 0 | AG80: 0 | AH80: 0 | AI80: 0 | AJ80: 0 | AK80: 0 | AL80: 0 | AM80: 0 | AN80: 0 | AO80: 0 | AP80: 0 | AQ80: 0 | AR80: 0 | AS80: 0 | AT80: 0 | AU80: 0 | AV80: 0 | AW80: 0 | AX80: 0 | AY80: 0 | AZ80: 0 | BA80: 0 | BB80: 0 | BC80: 0 | BD80: 0 | BE80: 0 | BF80: 0
D81: 10 | T81: =S$66 ->  | U81: 0 | V81: 0 | W81: 0 | X81: 0 | Y81: 0 | Z81: 0 | AA81: 0 | AB81: 0 | AC81: 0 | AD81: 0 | AE81: 0 | AF81: 0 | AG81: 0 | AH81: 0 | AI81: 0 | AJ81: 0 | AK81: 0 | AL81: 0 | AM81: 0 | AN81: 0 | AO81: 0 | AP81: 0 | AQ81: 0 | AR81: 0 | AS81: 0 | AT81: 0 | AU81: 0 | AV81: 0 | AW81: 0 | AX81: 0 | AY81: 0 | AZ81: 0 | BA81: 0 | BB81: 0 | BC81: 0 | BD81: 0 | BE81: 0 | BF81: 0
D82: 11 | U82: =T$66 ->  | V82: 0 | W82: 0 | X82: 0 | Y82: 0 | Z82: 0 | AA82: 0 | AB82: 0 | AC82: 0 | AD82: 0 | AE82: 0 | AF82: 0 | AG82: 0 | AH82: 0 | AI82: 0 | AJ82: 0 | AK82: 0 | AL82: 0 | AM82: 0 | AN82: 0 | AO82: 0 | AP82: 0 | AQ82: 0 | AR82: 0 | AS82: 0 | AT82: 0 | AU82: 0 | AV82: 0 | AW82: 0 | AX82: 0 | AY82: 0 | AZ82: 0 | BA82: 0 | BB82: 0 | BC82: 0 | BD82: 0 | BE82: 0 | BF82: 0
D83: 12 | V83: =U$66 ->  | W83: 0 | X83: 0 | Y83: 0 | Z83: 0 | AA83: 0 | AB83: 0 | AC83: 0 | AD83: 0 | AE83: 0 | AF83: 0 | AG83: 0 | AH83: 0 | AI83: 0 | AJ83: 0 | AK83: 0 | AL83: 0 | AM83: 0 | AN83: 0 | AO83: 0 | AP83: 0 | AQ83: 0 | AR83: 0 | AS83: 0 | AT83: 0 | AU83: 0 | AV83: 0 | AW83: 0 | AX83: 0 | AY83: 0 | AZ83: 0 | BA83: 0 | BB83: 0 | BC83: 0 | BD83: 0 | BE83: 0 | BF83: 0
D84: 13 | W84: =V$66 ->  | X84: 0 | Y84: 0 | Z84: 0 | AA84: 0 | AB84: 0 | AC84: 0 | AD84: 0 | AE84: 0 | AF84: 0 | AG84: 0 | AH84: 0 | AI84: 0 | AJ84: 0 | AK84: 0 | AL84: 0 | AM84: 0 | AN84: 0 | AO84: 0 | AP84: 0 | AQ84: 0 | AR84: 0 | AS84: 0 | AT84: 0 | AU84: 0 | AV84: 0 | AW84: 0 | AX84: 0 | AY84: 0 | AZ84: 0 | BA84: 0 | BB84: 0 | BC84: 0 | BD84: 0 | BE84: 0 | BF84: 0
D85: 14 | X85: =W$66 ->  | Y85: 0 | Z85: 0 | AA85: 0 | AB85: 0 | AC85: 0 | AD85: 0 | AE85: 0 | AF85: 0 | AG85: 0 | AH85: 0 | AI85: 0 | AJ85: 0 | AK85: 0 | AL85: 0 | AM85: 0 | AN85: 0 | AO85: 0 | AP85: 0 | AQ85: 0 | AR85: 0 | AS85: 0 | AT85: 0 | AU85: 0 | AV85: 0 | AW85: 0 | AX85: 0 | AY85: 0 | AZ85: 0 | BA85: 0 | BB85: 0 | BC85: 0 | BD85: 0 | BE85: 0 | BF85: 0
D86: 15 | Y86: =X$66 ->  | Z86: 0 | AA86: 0 | AB86: 0 | AC86: 0 | AD86: 0 | AE86: 0 | AF86: 0 | AG86: 0 | AH86: 0 | AI86: 0 | AJ86: 0 | AK86: 0 | AL86: 0 | AM86: 0 | AN86: 0 | AO86: 0 | AP86: =IF((AP$5-$D86)<=BondMat,AO86,0) -> 0 | AQ86: 0 | AR86: 0 | AS86: 0 | AT86: 0 | AU86: 0 | AV86: 0 | AW86: 0 | AX86: 0 | AY86: 0 | AZ86: 0 | BA86: 0 | BB86: 0 | BC86: 0 | BD86: 0 | BE86: 0 | BF86: 0
D87: 16 | Z87: =Y$66 ->  | AA87: =IF((AA$5-$D87)<=BondMat,Z87,0) -> 0 | AB87: 0 | AC87: 0 | AD87: 0 | AE87: 0 | AF87: 0 | AG87: 0 | AH87: 0 | AI87: 0 | AJ87: 0 | AK87: 0 | AL87: 0 | AM87: 0 | AN87: 0 | AO87: 0 | AP87: 0 | AQ87: 0 | AR87: 0 | AS87: 0 | AT87: 0 | AU87: 0 | AV87: 0 | AW87: 0 | AX87: 0 | AY87: 0 | AZ87: 0 | BA87: 0 | BB87: 0 | BC87: 0 | BD87: 0 | BE87: 0 | BF87: =IF((BF$5-$D87)<=BondMat,BE87,0) -> 0
D88: 17 | AA88: =Z$66 ->  | AB88: 0 | AC88: 0 | AD88: 0 | AE88: 0 | AF88: 0 | AG88: 0 | AH88: 0 | AI88: 0 | AJ88: 0 | AK88: 0 | AL88: 0 | AM88: 0 | AN88: 0 | AO88: 0 | AP88: 0 | AQ88: 0 | AR88: 0 | AS88: 0 | AT88: 0 | AU88: 0 | AV88: 0 | AW88: 0 | AX88: 0 | AY88: 0 | AZ88: 0 | BA88: 0 | BB88: 0 | BC88: 0 | BD88: 0 | BE88: 0 | BF88: 0
D89: 18 | AB89: =AA$66 ->  | AC89: 0 | AD89: 0 | AE89: 0 | AF89: 0 | AG89: 0 | AH89: 0 | AI89: 0 | AJ89: 0 | AK89: 0 | AL89: 0 | AM89: 0 | AN89: 0 | AO89: 0 | AP89: 0 | AQ89: 0 | AR89: 0 | AS89: 0 | AT89: 0 | AU89: 0 | AV89: 0 | AW89: 0 | AX89: 0 | AY89: 0 | AZ89: 0 | BA89: 0 | BB89: 0 | BC89: 0 | BD89: 0 | BE89: 0 | BF89: 0
D90: 19 | AC90: =AB$66 ->  | AD90: 0 | AE90: 0 | AF90: 0 | AG90: 0 | AH90: 0 | AI90: 0 | AJ90: 0 | AK90: 0 | AL90: 0 | AM90: 0 | AN90: 0 | AO90: 0 | AP90: 0 | AQ90: 0 | AR90: 0 | AS90: 0 | AT90: 0 | AU90: 0 | AV90: 0 | AW90: 0 | AX90: 0 | AY90: 0 | AZ90: 0 | BA90: 0 | BB90: 0 | BC90: 0 | BD90: 0 | BE90: 0 | BF90: 0
D91: 20 | AD91: =AC$66 ->  | AE91: 0 | AF91: 0 | AG91: 0 | AH91: 0 | AI91: 0 | AJ91: 0 | AK91: 0 | AL91: 0 | AM91: 0 | AN91: 0 | AO91: 0 | AP91: 0 | AQ91: 0 | AR91: 0 | AS91: 0 | AT91: 0 | AU91: 0 | AV91: 0 | AW91: 0 | AX91: 0 | AY91: 0 | AZ91: 0 | BA91: 0 | BB91: 0 | BC91: 0 | BD91: 0 | BE91: 0 | BF91: 0
D92: 21 | AE92: =AD$66 ->  | AF92: 0 | AG92: 0 | AH92: 0 | AI92: 0 | AJ92: 0 | AK92: 0 | AL92: 0 | AM92: 0 | AN92: 0 | AO92: 0 | AP92: 0 | AQ92: 0 | AR92: 0 | AS92: 0 | AT92: 0 | AU92: 0 | AV92: 0 | AW92: 0 | AX92: 0 | AY92: 0 | AZ92: 0 | BA92: 0 | BB92: 0 | BC92: 0 | BD92: 0 | BE92: 0 | BF92: 0
D93: 22 | AF93: =AE$66 ->  | AG93: 0 | AH93: 0 | AI93: 0 | AJ93: 0 | AK93: 0 | AL93: 0 | AM93: 0 | AN93: 0 | AO93: 0 | AP93: 0 | AQ93: 0 | AR93: 0 | AS93: 0 | AT93: 0 | AU93: 0 | AV93: 0 | AW93: 0 | AX93: 0 | AY93: 0 | AZ93: 0 | BA93: 0 | BB93: 0 | BC93: 0 | BD93: 0 | BE93: 0 | BF93: 0
D94: 23 | AG94: =AF$66 ->  | AH94: 0 | AI94: 0 | AJ94: 0 | AK94: 0 | AL94: 0 | AM94: 0 | AN94: 0 | AO94: 0 | AP94: 0 | AQ94: 0 | AR94: 0 | AS94: 0 | AT94: 0 | AU94: 0 | AV94: 0 | AW94: 0 | AX94: 0 | AY94: 0 | AZ94: 0 | BA94: 0 | BB94: 0 | BC94: 0 | BD94: 0 | BE94: 0 | BF94: 0
D95: 24 | AH95: =AG$66 ->  | AI95: 0 | AJ95: 0 | AK95: 0 | AL95: 0 | AM95: 0 | AN95: 0 | AO95: 0 | AP95: 0 | AQ95: 0 | AR95: 0 | AS95: 0 | AT95: 0 | AU95: 0 | AV95: 0 | AW95: 0 | AX95: 0 | AY95: 0 | AZ95: 0 | BA95: 0 | BB95: 0 | BC95: 0 | BD95: 0 | BE95: 0 | BF95: 0
D96: 25 | AI96: =AH$66 ->  | AJ96: 0 | AK96: 0 | AL96: 0 | AM96: 0 | AN96: 0 | AO96: 0 | AP96: 0 | AQ96: 0 | AR96: 0 | AS96: 0 | AT96: 0 | AU96: 0 | AV96: 0 | AW96: 0 | AX96: 0 | AY96: 0 | AZ96: 0 | BA96: 0 | BB96: 0 | BC96: 0 | BD96: 0 | BE96: 0 | BF96: 0
D97: 26 | AJ97: =AI$66 ->  | AK97: 0 | AL97: 0 | AM97: 0 | AN97: 0 | AO97: 0 | AP97: 0 | AQ97: 0 | AR97: 0 | AS97: 0 | AT97: 0 | AU97: 0 | AV97: 0 | AW97: 0 | AX97: 0 | AY97: 0 | AZ97: 0 | BA97: 0 | BB97: 0 | BC97: 0 | BD97: 0 | BE97: 0 | BF97: 0
D98: 27 | AK98: =AJ$66 ->  | AL98: 0 | AM98: 0 | AN98: 0 | AO98: 0 | AP98: 0 | AQ98: 0 | AR98: 0 | AS98: 0 | AT98: 0 | AU98: 0 | AV98: 0 | AW98: 0 | AX98: 0 | AY98: 0 | AZ98: 0 | BA98: 0 | BB98: 0 | BC98: 0 | BD98: 0 | BE98: 0 | BF98: 0
D99: 28 | AL99: =AK$66 ->  | AM99: 0 | AN99: 0 | AO99: 0 | AP99: 0 | AQ99: 0 | AR99: 0 | AS99: 0 | AT99: 0 | AU99: 0 | AV99: 0 | AW99: 0 | AX99: 0 | AY99: 0 | AZ99: 0 | BA99: 0 | BB99: 0 | BC99: 0 | BD99: 0 | BE99: 0 | BF99: 0
D100: 29 | AM100: =AL$66 ->  | AN100: 0 | AO100: 0 | AP100: 0 | AQ100: 0 | AR100: 0 | AS100: 0 | AT100: 0 | AU100: 0 | AV100: 0 | AW100: 0 | AX100: 0 | AY100: 0 | AZ100: 0 | BA100: 0 | BB100: 0 | BC100: 0 | BD100: 0 | BE100: 0 | BF100: 0
D101: 30 | AN101: =AM$66 ->  | AO101: 0 | AP101: 0 | AQ101: 0 | AR101: 0 | AS101: 0 | AT101: 0 | AU101: 0 | AV101: 0 | AW101: 0 | AX101: 0 | AY101: 0 | AZ101: 0 | BA101: 0 | BB101: 0 | BC101: 0 | BD101: 0 | BE101: 0 | BF101: 0
D102: 31 | AO102: =AN$66 ->  | AP102: 0 | AQ102: =IF((AQ$5-$D102)<=BondMat,AP102,0) -> 0 | AR102: 0 | AS102: 0 | AT102: 0 | AU102: 0 | AV102: 0 | AW102: 0 | AX102: 0 | AY102: 0 | AZ102: 0 | BA102: 0 | BB102: 0 | BC102: 0 | BD102: 0 | BE102: 0 | BF102: 0
D103: 32 | AP103: =AO$66 ->  | AQ103: 0 | AR103: 0 | AS103: 0 | AT103: 0 | AU103: 0 | AV103: 0 | AW103: 0 | AX103: 0 | AY103: 0 | AZ103: 0 | BA103: 0 | BB103: 0 | BC103: 0 | BD103: 0 | BE103: 0 | BF103: 0
D104: 33 | AQ104: =AP$66 ->  | AR104: 0 | AS104: 0 | AT104: 0 | AU104: 0 | AV104: 0 | AW104: 0 | AX104: 0 | AY104: 0 | AZ104: 0 | BA104: 0 | BB104: 0 | BC104: 0 | BD104: 0 | BE104: 0 | BF104: 0
D105: 34 | AR105: =AQ$66 ->  | AS105: 0 | AT105: 0 | AU105: 0 | AV105: 0 | AW105: 0 | AX105: 0 | AY105: 0 | AZ105: 0 | BA105: 0 | BB105: 0 | BC105: 0 | BD105: 0 | BE105: 0 | BF105: 0
D106: 35 | AS106: =AR$66 ->  | AT106: 0 | AU106: 0 | AV106: 0 | AW106: 0 | AX106: 0 | AY106: 0 | AZ106: 0 | BA106: 0 | BB106: 0 | BC106: 0 | BD106: 0 | BE106: 0 | BF106: 0
D107: 36 | AT107: =AS$66 ->  | AU107: 0 | AV107: 0 | AW107: 0 | AX107: 0 | AY107: 0 | AZ107: 0 | BA107: 0 | BB107: 0 | BC107: 0 | BD107: 0 | BE107: 0 | BF107: 0
D108: 37 | AU108: =AT$66 ->  | AV108: 0 | AW108: 0 | AX108: 0 | AY108: 0 | AZ108: 0 | BA108: 0 | BB108: 0 | BC108: 0 | BD108: 0 | BE108: 0 | BF108: 0
D109: 38 | AV109: =AU$66 ->  | AW109: 0 | AX109: 0 | AY109: 0 | AZ109: 0 | BA109: 0 | BB109: 0 | BC109: 0 | BD109: 0 | BE109: 0 | BF109: 0
D110: 39 | AW110: =AV$66 ->  | AX110: 0 | AY110: 0 | AZ110: 0 | BA110: 0 | BB110: 0 | BC110: 0 | BD110: 0 | BE110: 0 | BF110: 0
D111: 40 | AX111: =AW$66 ->  | AY111: 0 | AZ111: 0 | BA111: 0 | BB111: 0 | BC111: 0 | BD111: 0 | BE111: 0 | BF111: 0
D112: 41 | AY112: =AX$66 ->  | AZ112: 0 | BA112: 0 | BB112: 0 | BC112: 0 | BD112: 0 | BE112: 0 | BF112: 0
D113: 42 | AZ113: =AY$66 ->  | BA113: 0 | BB113: 0 | BC113: 0 | BD113: 0 | BE113: 0 | BF113: 0
D114: 43 | BA114: =AZ$66 ->  | BB114: =IF((BB$5-$D114)<=BondMat,BA114,0) -> 0 | BC114: =IF((BC$5-$D114)<=BondMat,BB114,0) -> 0 | BD114: =IF((BD$5-$D114)<=BondMat,BC114,0) -> 0 | BE114: =IF((BE$5-$D114)<=BondMat,BD114,0) -> 0 | BF114: 0
D115: 44 | BB115: =BA$66 ->  | BC115: =IF((BC$5-$D115)<=BondMat,BB115,0) -> 0 | BD115: =IF((BD$5-$D115)<=BondMat,BC115,0) -> 0 | BE115: =IF((BE$5-$D115)<=BondMat,BD115,0) -> 0 | BF115: 0
D116: 45 | BC116: =BB$66 ->  | BD116: =IF((BD$5-$D116)<=BondMat,BC116,0) -> 0 | BE116: =IF((BE$5-$D116)<=BondMat,BD116,0) -> 0 | BF116: 0
D117: 46 | BD117: =BC$66 ->  | BE117: =IF((BE$5-$D117)<=BondMat,BD117,0) -> 0 | BF117: 0
D118: 47 | BE118: =BD$66 ->  | BF118: =IF((BF$5-$D118)<=BondMat,BE118,0) -> 0
D119: 48 | BF119: =BE$66 -> 

Sheet LCC O&M (hidden)
A1: Life Cycle Cost Model
A2: =ProjName -> 
A3: LCC O&M Costs and Intangibles, | E3: LNG for the Entire Plant
A4: ($0s)
F5: ='LCC Capital '!I5 -> 0 | G5: =F5+1 -> 1 | H5: =G5+1 -> 2 | I5: 3 | J5: 4 | K5: 5 | L5: 6 | M5: 7 | N5: 8 | O5: 9 | P5: 10 | Q5: 11 | R5: 12 | S5: 13 | T5: 14 | U5: 15 | V5: 16 | W5: 17 | X5: 18 | Y5: 19 | Z5: 20 | AA5: 21 | AB5: 22 | AC5: 23 | AD5: 24 | AE5: 25 | AF5: 26 | AG5: 27 | AH5: 28 | AI5: 29 | AJ5: 30 | AK5: 31 | AL5: 32 | AM5: 33 | AN5: 34 | AO5: 35 | AP5: 36 | AQ5: 37 | AR5: 38 | AS5: 39 | AT5: 40 | AU5: 41 | AV5: 42 | AW5: 43 | AX5: 44 | AY5: 45 | AZ5: 46 | BA5: 47 | BB5: 48 | BC5: 49
F7: 1 | G7: =F7+1 -> 2 | H7: =G7+1 -> 3 | I7: 4 | J7: 5 | K7: 6 | L7: 7 | M7: 8 | N7: 9 | O7: 10 | P7: 11 | Q7: 12 | R7: 13 | S7: 14 | T7: 15 | U7: 16 | V7: 17 | W7: 18 | X7: 19 | Y7: 20 | Z7: 21 | AA7: 22 | AB7: 23 | AC7: 24 | AD7: 25 | AE7: 26 | AF7: 27 | AG7: 28 | AH7: 29 | AI7: 30 | AJ7: 31 | AK7: 32 | AL7: 33 | AM7: 34 | AN7: 35 | AO7: 36 | AP7: 37 | AQ7: 38 | AR7: 39 | AS7: 40 | AT7: 41 | AU7: 42 | AV7: 43 | AW7: 44 | AX7: 45 | AY7: 46 | AZ7: 47 | BA7: 48 | BB7: 49 | BC7: 50
A8: PV of O&M and Intang. Costs
B9: Total | E9: =PresentYear -> 0 | F9: =SUM(F10:BC10) -> 
B10: Annual | E10: =PresentYear -> 0 | F10: =F$20/(1+DiscRat)^(F$5-PresentYear) ->  | G10: =IF(G$7<=LCCPeriod,(G$20/(1+DiscRat)^(G$5-PresentYear)),0) -> 0 | H10: 0 | I10: 0 | J10: 0 | K10: 0 | L10: 0 | M10: 0 | N10: 0 | O10: 0 | P10: 0 | Q10: 0 | R10: 0 | S10: 0 | T10: 0 | U10: 0 | V10: 0 | W10: 0 | X10: 0 | Y10: 0 | Z10: 0 | AA10: 0 | AB10: 0 | AC10: 0 | AD10: 0 | AE10: 0 | AF10: 0 | AG10: 0 | AH10: 0 | AI10: 0 | AJ10: 0 | AK10: 0 | AL10: 0 | AM10: =IF(AM$7<=LCCPeriod,(AM$20/(1+DiscRat)^(AM$5-PresentYear)),0) -> 0 | AN10: 0 | AO10: 0 | AP10: 0 | AQ10: 0 | AR10: 0 | AS10: 0 | AT10: 0 | AU10: 0 | AV10: 0 | AW10: 0 | AX10: 0 | AY10: 0 | AZ10: 0 | BA10: 0 | BB10: 0 | BC10: 0
A12: PV of Benefits
B13: Total | E13: =PresentYear -> 0 | F13: =SUM(F14:BC14) -> 0
B14: Annual | E14: =PresentYear -> 0 | F14: =F$17/(1+DiscRat)^(F$5-PresentYear) -> 0 | G14: =IF(G$7<=LCCPeriod,(G$17/(1+DiscRat)^(G$5-PresentYear)),0) -> 0 | H14: 0 | I14: 0 | J14: 0 | K14: 0 | L14: 0 | M14: 0 | N14: 0 | O14: 0 | P14: 0 | Q14: 0 | R14: 0 | S14: 0 | T14: 0 | U14: 0 | V14: 0 | W14: 0 | X14: 0 | Y14: 0 | Z14: 0 | AA14: 0 | AB14: 0 | AC14: 0 | AD14: 0 | AE14: 0 | AF14: 0 | AG14: 0 | AH14: 0 | AI14: 0 | AJ14: 0 | AK14: 0 | AL14: 0 | AM14: =IF(AM$7<=LCCPeriod,(AM$17/(1+DiscRat)^(AM$5-PresentYear)),0) -> 0 | AN14: 0 | AO14: 0 | AP14: 0 | AQ14: 0 | AR14: 0 | AS14: 0 | AT14: 0 | AU14: 0 | AV14: 0 | AW14: 0 | AX14: 0 | AY14: 0 | AZ14: 0 | BA14: 0 | BB14: 0 | BC14: 0
A16: Component Summaries
B17: Benefits (Revenue for Energy Sale) | F17: =F30 -> 0 | G17: =G30 -> 0 | H17: =H30 -> 0 | I17: 0 | J17: 0 | K17: 0 | L17: 0 | M17: 0 | N17: 0 | O17: 0 | P17: 0 | Q17: 0 | R17: 0 | S17: 0 | T17: 0 | U17: 0 | V17: 0 | W17: 0 | X17: 0 | Y17: 0 | Z17: 0 | AA17: 0 | AB17: 0 | AC17: 0 | AD17: 0 | AE17: 0 | AF17: 0 | AG17: 0 | AH17: 0 | AI17: 0 | AJ17: 0 | AK17: 0 | AL17: 0 | AM17: 0 | AN17: 0 | AO17: 0 | AP17: 0 | AQ17: 0 | AR17: 0 | AS17: 0 | AT17: 0 | AU17: 0 | AV17: 0 | AW17: 0 | AX17: 0 | AY17: 0 | AZ17: 0 | BA17: 0 | BB17: 0 | BC17: 0
B19: O&M | F19: =F40 ->  | G19: =G40 ->  | H19: =H40 -> 
B20: Total (not incl Benefits) | F20: =SUM(F19:F19) ->  | AL20: =SUM(AL19:AL19) -> 
A22: Details
A24: Benefits
C25: 1. | D25: Total Revenues | E25: =EPCBaseYear -> 0 | F25: =Benefits!I41 -> 0 | G25: =F25 -> 0 | H25: =G25 -> 0 | I25: 0 | J25: 0 | K25: 0 | L25: 0 | M25: 0 | N25: 0 | O25: 0 | P25: 0 | Q25: 0 | R25: 0 | S25: 0 | T25: 0 | U25: 0 | V25: 0 | W25: 0 | X25: 0 | Y25: 0 | Z25: 0 | AA25: 0 | AB25: 0 | AC25: 0 | AD25: 0 | AE25: 0 | AF25: 0 | AG25: 0 | AH25: 0 | AI25: 0 | AJ25: 0 | AK25: 0 | AL25: 0 | AM25: 0 | AN25: 0 | AO25: 0 | AP25: 0 | AQ25: 0 | AR25: 0 | AS25: 0 | AT25: 0 | AU25: 0 | AV25: 0 | AW25: 0 | AX25: 0 | AY25: 0 | AZ25: 0 | BA25: 0 | BB25: 0 | BC25: 0
C26: 2. | E26: =EPCBaseYear -> 0 | F26: 0 | G26: =F26 -> 0 | H26: =G26 -> 0 | I26: 0 | J26: 0 | K26: 0 | L26: 0 | M26: 0 | N26: 0 | O26: 0 | P26: 0 | Q26: 0 | R26: 0 | S26: 0 | T26: 0 | U26: 0 | V26: 0 | W26: 0 | X26: 0 | Y26: 0 | Z26: 0 | AA26: 0 | AB26: 0 | AC26: 0 | AD26: 0 | AE26: 0 | AF26: 0 | AG26: 0 | AH26: 0 | AI26: 0 | AJ26: 0 | AK26: 0 | AL26: 0 | AM26: 0 | AN26: 0 | AO26: 0 | AP26: 0 | AQ26: 0 | AR26: 0 | AS26: 0 | AT26: 0 | AU26: 0 | AV26: 0 | AW26: 0 | AX26: 0 | AY26: 0 | AZ26: 0 | BA26: 0 | BB26: 0 | BC26: 0
C27: 3. | E27: =EPCBaseYear -> 0 | F27: 0 | G27: =F27 -> 0 | H27: 0 | I27: =H27 -> 0 | J27: =I27 -> 0 | K27: =J27 -> 0 | L27: =K27 -> 0 | M27: =L27 -> 0 | N27: =M27 -> 0 | O27: =N27 -> 0 | P27: =O27 -> 0 | Q27: =P27 -> 0 | R27: =Q27 -> 0 | S27: =R27 -> 0 | T27: =S27 -> 0 | U27: =T27 -> 0 | V27: =U27 -> 0 | W27: =V27 -> 0 | X27: =W27 -> 0 | Y27: =X27 -> 0 | Z27: =Y27 -> 0 | AA27: =Z27 -> 0 | AB27: =AA27 -> 0 | AC27: =AB27 -> 0 | AD27: =AC27 -> 0 | AE27: =AD27 -> 0 | AF27: =AE27 -> 0 | AG27: =AF27 -> 0 | AH27: =AG27 -> 0 | AI27: =AH27 -> 0 | AJ27: =AI27 -> 0 | AK27: =AJ27 -> 0 | AL27: =AK27 -> 0 | AM27: =AL27 -> 0 | AN27: =AM27 -> 0 | AO27: =AN27 -> 0 | AP27: =AO27 -> 0 | AQ27: =AP27 -> 0 | AR27: =AQ27 -> 0 | AS27: =AR27 -> 0 | AT27: =AS27 -> 0 | AU27: =AT27 -> 0 | AV27: =AU27 -> 0 | AW27: =AV27 -> 0 | AX27: =AW27 -> 0 | AY27: =AX27 -> 0 | AZ27: =AY27 -> 0 | BA27: =AZ27 -> 0 | BB27: =BA27 -> 0 | BC27: =BB27 -> 0
C28: 4. | E28: =EPCBaseYear -> 0 | F28: 0 | G28: =F28 -> 0 | H28: =G28 -> 0 | I28: =H28 -> 0 | J28: =I28 -> 0 | K28: =J28 -> 0 | L28: =K28 -> 0 | M28: =L28 -> 0 | N28: =M28 -> 0 | O28: =N28 -> 0 | P28: =O28 -> 0 | Q28: =P28 -> 0 | R28: =Q28 -> 0 | S28: =R28 -> 0 | T28: =S28 -> 0 | U28: =T28 -> 0 | V28: =U28 -> 0 | W28: =V28 -> 0 | X28: =W28 -> 0 | Y28: =X28 -> 0 | Z28: =Y28 -> 0 | AA28: =Z28 -> 0 | AB28: =AA28 -> 0 | AC28: =AB28 -> 0 | AD28: =AC28 -> 0 | AE28: =AD28 -> 0 | AF28: =AE28 -> 0 | AG28: =AF28 -> 0 | AH28: =AG28 -> 0 | AI28: =AH28 -> 0 | AJ28: =AI28 -> 0 | AK28: =AJ28 -> 0 | AL28: =AK28 -> 0 | AM28: =AL28 -> 0 | AN28: =AM28 -> 0 | AO28: =AN28 -> 0 | AP28: =AO28 -> 0 | AQ28: =AP28 -> 0 | AR28: =AQ28 -> 0 | AS28: =AR28 -> 0 | AT28: =AS28 -> 0 | AU28: =AT28 -> 0 | AV28: =AU28 -> 0 | AW28: =AV28 -> 0 | AX28: =AW28 -> 0 | AY28: =AX28 -> 0 | AZ28: =AY28 -> 0 | BA28: =AZ28 -> 0 | BB28: =BA28 -> 0 | BC28: =BB28 -> 0
D29: Sum of benefits | E29: =EPCBaseYear -> 0 | F29: =SUM(F25:F28) -> 0 | G29: =SUM(G25:G28) -> 0 | H29: =SUM(H25:H28) -> 0 | I29: 0 | J29: 0 | K29: 0 | L29: 0 | M29: 0 | N29: 0 | O29: 0 | P29: 0 | Q29: 0 | R29: 0 | S29: 0 | T29: 0 | U29: 0 | V29: 0 | W29: 0 | X29: 0 | Y29: 0 | Z29: 0 | AA29: 0 | AB29: 0 | AC29: 0 | AD29: 0 | AE29: 0 | AF29: 0 | AG29: 0 | AH29: 0 | AI29: 0 | AJ29: 0 | AK29: 0 | AL29: 0 | AM29: 0 | AN29: 0 | AO29: 0 | AP29: 0 | AQ29: 0 | AR29: 0 | AS29: 0 | AT29: 0 | AU29: 0 | AV29: 0 | AW29: 0 | AX29: 0 | AY29: 0 | AZ29: 0 | BA29: 0 | BB29: 0 | BC29: 0
D30: Escalated to indicated year | E30: =CostEscalOM -> 0 | F30: =F29*(1+RateSQ)^(F$5-EPCBaseYear) -> 0 | G30: =G29*(1+RateSQ)^(G$5-EPCBaseYear) -> 0 | H30: =H29*(1+RateSQ)^(H$5-EPCBaseYear) -> 0 | I30: 0 | J30: 0 | K30: 0 | L30: 0 | M30: 0 | N30: 0 | O30: 0 | P30: 0 | Q30: 0 | R30: 0 | S30: 0 | T30: 0 | U30: 0 | V30: 0 | W30: 0 | X30: 0 | Y30: 0 | Z30: 0 | AA30: 0 | AB30: 0 | AC30: 0 | AD30: 0 | AE30: 0 | AF30: 0 | AG30: 0 | AH30: 0 | AI30: 0 | AJ30: 0 | AK30: 0 | AL30: 0 | AM30: 0 | AN30: 0 | AO30: 0 | AP30: 0 | AQ30: 0 | AR30: 0 | AS30: 0 | AT30: 0 | AU30: 0 | AV30: 0 | AW30: 0 | AX30: 0 | AY30: 0 | AZ30: 0 | BA30: 0 | BB30: 0 | BC30: 0
A35: Operations and Maintenance
B36: Summaries, escalated costs
C37: Energy | F37: =F54 ->  | G37: =G54 ->  | H37: =H54 -> 
C38: Materials & Supplies | F38: =F64 -> 0 | G38: =G64 -> 0 | H38: =H64 -> 0 | I38: 0 | J38: 0 | K38: 0 | L38: 0 | M38: 0 | N38: 0 | O38: 0 | P38: 0 | Q38: 0 | R38: 0 | S38: 0 | T38: 0 | U38: 0 | V38: 0 | W38: 0 | X38: 0 | Y38: 0 | Z38: 0 | AA38: 0 | AB38: 0 | AC38: 0 | AD38: 0 | AE38: 0 | AF38: 0 | AG38: 0 | AH38: 0 | AI38: 0 | AJ38: 0 | AK38: 0 | AL38: 0 | AM38: 0 | AN38: 0 | AO38: 0 | AP38: 0 | AQ38: 0 | AR38: 0 | AS38: 0 | AT38: 0 | AU38: 0 | AV38: 0 | AW38: 0 | AX38: 0 | AY38: 0 | AZ38: 0 | BA38: 0 | BB38: 0 | BC38: 0
C39: Labor | F39: =F73 -> 0 | G39: =G73 -> 0 | H39: =H73 -> 0 | I39: 0 | J39: 0 | K39: 0 | L39: 0 | M39: 0 | N39: 0 | O39: 0 | P39: 0 | Q39: 0 | R39: 0 | S39: 0 | T39: 0 | U39: 0 | V39: 0 | W39: 0 | X39: 0 | Y39: 0 | Z39: 0 | AA39: 0 | AB39: 0 | AC39: 0 | AD39: 0 | AE39: 0 | AF39: 0 | AG39: 0 | AH39: 0 | AI39: 0 | AJ39: 0 | AK39: 0 | AL39: 0 | AM39: 0 | AN39: 0 | AO39: 0 | AP39: 0 | AQ39: 0 | AR39: 0 | AS39: 0 | AT39: 0 | AU39: 0 | AV39: 0 | AW39: 0 | AX39: 0 | AY39: 0 | AZ39: 0 | BA39: 0 | BB39: 0 | BC39: 0
C40: Total O&M | F40: =SUM(F37:F39) ->  | G40: =SUM(G37:G39) ->  | AL40: =SUM(AL37:AL39) -> 
B42: Energy
C43: Natural gas (MMBTU) | F43: 0 | G43: =F43 -> 0 | H43: =G43 -> 0 | I43: 0 | J43: 0 | K43: 0 | L43: 0 | M43: 0 | N43: 0 | O43: 0 | P43: 0 | Q43: 0 | R43: 0 | S43: 0 | T43: 0 | U43: 0 | V43: 0 | W43: 0 | X43: 0 | Y43: 0 | Z43: 0 | AA43: 0 | AB43: 0 | AC43: 0 | AD43: 0 | AE43: 0 | AF43: 0 | AG43: 0 | AH43: 0 | AI43: 0 | AJ43: 0 | AK43: 0 | AL43: 0 | AM43: 0 | AN43: 0 | AO43: 0 | AP43: 0 | AQ43: 0 | AR43: 0 | AS43: 0 | AT43: 0 | AU43: 0 | AV43: 0 | AW43: 0 | AX43: 0 | AY43: 0 | AZ43: 0 | BA43: 0 | BB43: 0 | BC43: 0
C44: Natural gas cost, escalated | E44: (embedded) | F44: =F43*ROUND(HLOOKUP(F$5,OMUnitCosts,6,FALSE),2) ->  | AL44: =AL43*ROUND(HLOOKUP(AL$5,OMUnitCosts,6,FALSE),2) -> 
C46: Electricity
D47: Base elec. use, kwh/yr | F47: 0
D48: Elec.consump.growth/yr | F48: =ElecGrowth -> 0 | G48: 0 | H48: 0 | I48: 0 | J48: 0 | K48: 0 | L48: 0 | M48: 0 | N48: 0 | O48: 0 | P48: 0 | Q48: 0 | R48: 0 | S48: 0 | T48: 0 | U48: 0 | V48: 0 | W48: 0 | X48: 0 | Y48: 0 | Z48: 0 | AA48: 0 | AB48: 0 | AC48: 0 | AD48: 0 | AE48: 0 | AF48: 0 | AG48: 0 | AH48: 0 | AI48: 0 | AJ48: 0 | AK48: 0 | AL48: =ElecGrowth -> 0 | AM48: 0 | AN48: 0 | AO48: 0 | AP48: 0 | AQ48: 0 | AR48: 0 | AS48: 0 | AT48: 0 | AU48: 0 | AV48: 0 | AW48: 0 | AX48: 0 | AY48: 0 | AZ48: 0 | BA48: 0 | BB48: 0 | BC48: 0
D49: Electricity use, kwh | F49: =F47*(1+F48)^(F5-EPCBaseYear) -> 0 | G49: =F49*(1+G48) -> 0 | H49: =G49*(1+H48) -> 0 | I49: 0 | J49: 0 | K49: 0 | L49: 0 | M49: 0 | N49: 0 | O49: 0 | P49: 0 | Q49: 0 | R49: 0 | S49: 0 | T49: 0 | U49: 0 | V49: 0 | W49: 0 | X49: 0 | Y49: 0 | Z49: 0 | AA49: 0 | AB49: 0 | AC49: 0 | AD49: 0 | AE49: 0 | AF49: 0 | AG49: 0 | AH49: 0 | AI49: 0 | AJ49: 0 | AK49: 0 | AL49: 0 | AM49: 0 | AN49: 0 | AO49: 0 | AP49: 0 | AQ49: 0 | AR49: 0 | AS49: 0 | AT49: 0 | AU49: 0 | AV49: 0 | AW49: 0 | AX49: 0 | AY49: 0 | AZ49: 0 | BA49: 0 | BB49: 0 | BC49: 0
D50: Electricty cost, escalated | E50: (embedded) | F50: =HLOOKUP(F$5,OMUnitCosts,10,FALSE)*F49 ->  | AL50: =HLOOKUP(AL$5,OMUnitCosts,10,FALSE)*AL49 -> 
D51: Demand, kW or kVa | F51: 0 | G51: =F51 -> 0 | H51: =G51 -> 0 | I51: 0 | J51: 0 | K51: 0 | L51: 0 | M51: 0 | N51: 0 | O51: 0 | P51: 0 | Q51: 0 | R51: 0 | S51: 0 | T51: 0 | U51: 0 | V51: 0 | W51: 0 | X51: 0 | Y51: 0 | Z51: 0 | AA51: 0 | AB51: 0 | AC51: 0 | AD51: 0 | AE51: 0 | AF51: 0 | AG51: 0 | AH51: 0 | AI51: 0 | AJ51: 0 | AK51: 0 | AL51: 0 | AM51: 0 | AN51: 0 | AO51: 0 | AP51: 0 | AQ51: 0 | AR51: 0 | AS51: 0 | AT51: 0 | AU51: 0 | AV51: 0 | AW51: 0 | AX51: 0 | AY51: 0 | AZ51: 0 | BA51: 0 | BB51: 0 | BC51: 0
D52: Demand charge, escalated | E52: (embedded) | F52: =HLOOKUP(F$5,OMUnitCosts,11,FALSE)*F51 ->  | AL52: =HLOOKUP(AL$5,OMUnitCosts,11,FALSE)*AL51 -> 
D53: Total electricity cost, escalated | F53: =F50+F52 ->  | G53: =G50+G52 ->  | H53: =H50+H52 ->  | I53: =I50+I52 ->  | J53: =J50+J52 ->  | K53: =K50+K52 ->  | L53: =L50+L52 ->  | M53: =M50+M52 ->  | N53: =N50+N52 ->  | O53: =O50+O52 ->  | P53: =P50+P52 ->  | Q53: =Q50+Q52 ->  | R53: =R50+R52 ->  | S53: =S50+S52 ->  | T53: =T50+T52 ->  | U53: =U50+U52 ->  | V53: =V50+V52 ->  | W53: =W50+W52 ->  | X53: =X50+X52 ->  | Y53: =Y50+Y52 ->  | Z53: =Z50+Z52 ->  | AA53: =AA50+AA52 ->  | AB53: =AB50+AB52 ->  | AC53: =AC50+AC52 ->  | AD53: =AD50+AD52 ->  | AE53: =AE50+AE52 ->  | AF53: =AF50+AF52 ->  | AG53: =AG50+AG52 ->  | AH53: =AH50+AH52 ->  | AI53: =AI50+AI52 ->  | AJ53: =AJ50+AJ52 ->  | AK53: =AK50+AK52 ->  | AL53: =AL50+AL52 ->  | AM53: =AM50+AM52 ->  | AN53: =AN50+AN52 ->  | AO53: =AO50+AO52 ->  | AP53: =AP50+AP52 ->  | AQ53: =AQ50+AQ52 ->  | AR53: =AR50+AR52 ->  | AS53: =AS50+AS52 ->  | AT53: =AT50+AT52 ->  | AU53: =AU50+AU52 ->  | AV53: =AV50+AV52 ->  | AW53: =AW50+AW52 ->  | AX53: =AX50+AX52 ->  | AY53: =AY50+AY52 ->  | AZ53: =AZ50+AZ52 ->  | BA53: =BA50+BA52 ->  | BB53: =BB50+BB52 ->  | BC53: =BC50+BC52 -> 
C54: Total, energy, escalated | F54: =F53+F44 ->  | G54: =G53+G44 ->  | AL54: =AL53+AL44 -> 
B57: Materials & Supplies
C58: Item | E58: =EPCBaseYear -> 0 | F58: ='O&M Costs'!G18 -> 0 | G58: =F58 -> 0 | H58: =G58 -> 0 | I58: 0 | J58: 0 | K58: 0 | L58: 0 | M58: 0 | N58: 0 | O58: 0 | P58: 0 | Q58: 0 | R58: 0 | S58: 0 | T58: 0 | U58: 0 | V58: 0 | W58: 0 | X58: 0 | Y58: 0 | Z58: 0 | AA58: 0 | AB58: 0 | AC58: 0 | AD58: 0 | AE58: 0 | AF58: 0 | AG58: 0 | AH58: 0 | AI58: 0 | AJ58: 0 | AK58: 0 | AL58: 0 | AM58: 0 | AN58: 0 | AO58: 0 | AP58: 0 | AQ58: 0 | AR58: 0 | AS58: 0 | AT58: 0 | AU58: 0 | AV58: 0 | AW58: 0 | AX58: 0 | AY58: 0 | AZ58: 0 | BA58: 0 | BB58: 0 | BC58: 0
C59: Item | E59: 0 | F59: 0 | G59: =F59 -> 0 | H59: =G59 -> 0 | I59: 0 | J59: 0 | K59: 0 | L59: 0 | M59: 0 | N59: 0 | O59: 0 | P59: 0 | Q59: 0 | R59: 0 | S59: 0 | T59: 0 | U59: 0 | V59: 0 | W59: 0 | X59: 0 | Y59: 0 | Z59: 0 | AA59: 0 | AB59: 0 | AC59: 0 | AD59: 0 | AE59: 0 | AF59: 0 | AG59: 0 | AH59: 0 | AI59: 0 | AJ59: 0 | AK59: 0 | AL59: 0 | AM59: 0 | AN59: 0 | AO59: 0 | AP59: 0 | AQ59: 0 | AR59: 0 | AS59: 0 | AT59: 0 | AU59: 0 | AV59: 0 | AW59: 0 | AX59: 0 | AY59: 0 | AZ59: 0 | BA59: 0 | BB59: 0 | BC59: 0
C60: Item | E60: 0 | F60: 0 | G60: =F60 -> 0 | H60: =G60 -> 0 | I60: 0 | J60: 0 | K60: 0 | L60: 0 | M60: 0 | N60: 0 | O60: 0 | P60: 0 | Q60: 0 | R60: 0 | S60: 0 | T60: 0 | U60: 0 | V60: 0 | W60: 0 | X60: 0 | Y60: 0 | Z60: 0 | AA60: 0 | AB60: 0 | AC60: 0 | AD60: 0 | AE60: 0 | AF60: 0 | AG60: 0 | AH60: 0 | AI60: 0 | AJ60: 0 | AK60: 0 | AL60: 0 | AM60: 0 | AN60: 0 | AO60: 0 | AP60: 0 | AQ60: 0 | AR60: 0 | AS60: 0 | AT60: 0 | AU60: 0 | AV60: 0 | AW60: 0 | AX60: 0 | AY60: 0 | AZ60: 0 | BA60: 0 | BB60: 0 | BC60: 0
C61: Item | E61: 0 | F61: 0 | G61: =F61 -> 0 | H61: =G61 -> 0 | I61: 0 | J61: 0 | K61: 0 | L61: 0 | M61: 0 | N61: 0 | O61: 0 | P61: 0 | Q61: 0 | R61: 0 | S61: 0 | T61: 0 | U61: 0 | V61: 0 | W61: 0 | X61: 0 | Y61: 0 | Z61: 0 | AA61: 0 | AB61: 0 | AC61: 0 | AD61: 0 | AE61: 0 | AF61: 0 | AG61: 0 | AH61: 0 | AI61: 0 | AJ61: 0 | AK61: 0 | AL61: 0 | AM61: 0 | AN61: 0 | AO61: 0 | AP61: 0 | AQ61: 0 | AR61: 0 | AS61: 0 | AT61: 0 | AU61: 0 | AV61: 0 | AW61: 0 | AX61: 0 | AY61: 0 | AZ61: 0 | BA61: 0 | BB61: 0 | BC61: 0
C62: Item | E62: 0 | F62: 0 | G62: =F62 -> 0 | H62: =G62 -> 0 | I62: 0 | J62: 0 | K62: 0 | L62: 0 | M62: 0 | N62: 0 | O62: 0 | P62: 0 | Q62: 0 | R62: 0 | S62: 0 | T62: 0 | U62: 0 | V62: 0 | W62: 0 | X62: 0 | Y62: 0 | Z62: 0 | AA62: 0 | AB62: 0 | AC62: 0 | AD62: 0 | AE62: 0 | AF62: 0 | AG62: 0 | AH62: 0 | AI62: 0 | AJ62: 0 | AK62: 0 | AL62: 0 | AM62: 0 | AN62: 0 | AO62: 0 | AP62: 0 | AQ62: 0 | AR62: 0 | AS62: 0 | AT62: 0 | AU62: 0 | AV62: 0 | AW62: 0 | AX62: 0 | AY62: 0 | AZ62: 0 | BA62: 0 | BB62: 0 | BC62: 0
C63: Sum of above | E63: 0 | F63: =SUM(F58:F62) -> 0 | G63: =SUM(G58:G62) -> 0 | H63: =SUM(H58:H62) -> 0 | I63: 0 | J63: 0 | K63: 0 | L63: 0 | M63: 0 | N63: 0 | O63: 0 | P63: 0 | Q63: 0 | R63: 0 | S63: 0 | T63: 0 | U63: 0 | V63: 0 | W63: 0 | X63: 0 | Y63: 0 | Z63: 0 | AA63: 0 | AB63: 0 | AC63: 0 | AD63: 0 | AE63: 0 | AF63: 0 | AG63: 0 | AH63: 0 | AI63: 0 | AJ63: 0 | AK63: 0 | AL63: 0 | AM63: 0 | AN63: 0 | AO63: 0 | AP63: 0 | AQ63: 0 | AR63: 0 | AS63: 0 | AT63: 0 | AU63: 0 | AV63: 0 | AW63: 0 | AX63: 0 | AY63: 0 | AZ63: 0 | BA63: 0 | BB63: 0 | BC63: 0
C64: Escalated | E64: =CostEscalOM -> 0 | F64: =F63*(1+RateSQ)^(F$5-EPCBaseYear) -> 0 | G64: =G63*(1+RateSQ)^(G$5-EPCBaseYear) -> 0 | H64: =H63*(1+RateSQ)^(H$5-EPCBaseYear) -> 0 | I64: 0 | J64: 0 | K64: 0 | L64: 0 | M64: 0 | N64: 0 | O64: 0 | P64: 0 | Q64: 0 | R64: 0 | S64: 0 | T64: 0 | U64: 0 | V64: 0 | W64: 0 | X64: 0 | Y64: 0 | Z64: 0 | AA64: 0 | AB64: 0 | AC64: 0 | AD64: 0 | AE64: 0 | AF64: 0 | AG64: 0 | AH64: 0 | AI64: 0 | AJ64: 0 | AK64: 0 | AL64: 0 | AM64: 0 | AN64: 0 | AO64: 0 | AP64: 0 | AQ64: 0 | AR64: 0 | AS64: 0 | AT64: 0 | AU64: 0 | AV64: 0 | AW64: 0 | AX64: 0 | AY64: 0 | AZ64: 0 | BA64: 0 | BB64: 0 | BC64: 0
B66: Labor
C67: Item | E67: =EPCBaseYear -> 0 | F67: 0 | G67: =F67 -> 0 | H67: =G67 -> 0 | I67: 0 | J67: 0 | K67: 0 | L67: 0 | M67: 0 | N67: 0 | O67: 0 | P67: 0 | Q67: 0 | R67: 0 | S67: 0 | T67: 0 | U67: 0 | V67: 0 | W67: 0 | X67: 0 | Y67: 0 | Z67: 0 | AA67: 0 | AB67: 0 | AC67: 0 | AD67: 0 | AE67: 0 | AF67: 0 | AG67: 0 | AH67: 0 | AI67: 0 | AJ67: 0 | AK67: 0 | AL67: 0 | AM67: 0 | AN67: 0 | AO67: 0 | AP67: 0 | AQ67: 0 | AR67: 0 | AS67: 0 | AT67: 0 | AU67: 0 | AV67: 0 | AW67: 0 | AX67: 0 | AY67: 0 | AZ67: 0 | BA67: 0 | BB67: 0 | BC67: 0
C68: Item | E68: =EPCBaseYear -> 0 | F68: 0 | G68: =F68 -> 0 | H68: 0 | I68: 0 | J68: 0 | K68: 0 | L68: 0 | M68: 0 | N68: 0 | O68: 0 | P68: 0 | Q68: 0 | R68: 0 | S68: 0 | T68: 0 | U68: 0 | V68: 0 | W68: 0 | X68: 0 | Y68: 0 | Z68: 0 | AA68: 0 | AB68: 0 | AC68: 0 | AD68: 0 | AE68: 0 | AF68: 0 | AG68: 0 | AH68: 0 | AI68: 0 | AJ68: 0 | AK68: 0 | AL68: 0 | AM68: 0 | AN68: 0 | AO68: 0 | AP68: 0 | AQ68: 0 | AR68: 0 | AS68: 0 | AT68: 0 | AU68: 0 | AV68: 0 | AW68: 0 | AX68: 0 | AY68: 0 | AZ68: 0 | BA68: 0 | BB68: 0 | BC68: 0
C69: Item | E69: =EPCBaseYear -> 0 | F69: 0 | G69: 0 | H69: 0 | I69: 0 | J69: 0 | K69: 0 | L69: 0 | M69: 0 | N69: 0 | O69: 0 | P69: 0 | Q69: 0 | R69: 0 | S69: 0 | T69: 0 | U69: 0 | V69: 0 | W69: 0 | X69: 0 | Y69: 0 | Z69: 0 | AA69: 0 | AB69: 0 | AC69: 0 | AD69: 0 | AE69: 0 | AF69: 0 | AG69: 0 | AH69: 0 | AI69: 0 | AJ69: 0 | AK69: 0 | AL69: 0 | AM69: 0 | AN69: 0 | AO69: 0 | AP69: 0 | AQ69: 0 | AR69: 0 | AS69: 0 | AT69: 0 | AU69: 0 | AV69: 0 | AW69: 0 | AX69: 0 | AY69: 0 | AZ69: 0 | BA69: 0 | BB69: 0 | BC69: 0
C70: Item | E70: =EPCBaseYear -> 0 | F70: 0 | G70: 0 | H70: 0 | I70: 0 | J70: 0 | K70: 0 | L70: 0 | M70: 0 | N70: 0 | O70: 0 | P70: 0 | Q70: 0 | R70: 0 | S70: 0 | T70: 0 | U70: 0 | V70: 0 | W70: 0 | X70: 0 | Y70: 0 | Z70: 0 | AA70: 0 | AB70: 0 | AC70: 0 | AD70: 0 | AE70: 0 | AF70: 0 | AG70: 0 | AH70: 0 | AI70: 0 | AJ70: 0 | AK70: 0 | AL70: 0 | AM70: 0 | AN70: 0 | AO70: 0 | AP70: 0 | AQ70: 0 | AR70: 0 | AS70: 0 | AT70: 0 | AU70: 0 | AV70: 0 | AW70: 0 | AX70: 0 | AY70: 0 | AZ70: 0 | BA70: 0 | BB70: 0 | BC70: 0
C71: Item | E71: =EPCBaseYear -> 0 | F71: 0 | G71: 0 | H71: 0 | I71: 0 | J71: 0 | K71: 0 | L71: 0 | M71: 0 | N71: 0 | O71: 0 | P71: 0 | Q71: 0 | R71: 0 | S71: 0 | T71: 0 | U71: 0 | V71: 0 | W71: 0 | X71: 0 | Y71: 0 | Z71: 0 | AA71: 0 | AB71: 0 | AC71: 0 | AD71: 0 | AE71: 0 | AF71: 0 | AG71: 0 | AH71: 0 | AI71: 0 | AJ71: 0 | AK71: 0 | AL71: 0 | AM71: 0 | AN71: 0 | AO71: 0 | AP71: 0 | AQ71: 0 | AR71: 0 | AS71: 0 | AT71: 0 | AU71: 0 | AV71: 0 | AW71: 0 | AX71: 0 | AY71: 0 | AZ71: 0 | BA71: 0 | BB71: 0 | BC71: 0
C72: Sum of above | F72: =SUM(F67:F71) -> 0 | G72: =SUM(G67:G71) -> 0 | H72: =SUM(H67:H71) -> 0 | I72: 0 | J72: 0 | K72: 0 | L72: 0 | M72: 0 | N72: 0 | O72: 0 | P72: 0 | Q72: 0 | R72: 0 | S72: 0 | T72: 0 | U72: 0 | V72: 0 | W72: 0 | X72: 0 | Y72: 0 | Z72: 0 | AA72: 0 | AB72: 0 | AC72: 0 | AD72: 0 | AE72: 0 | AF72: 0 | AG72: 0 | AH72: 0 | AI72: 0 | AJ72: 0 | AK72: 0 | AL72: 0 | AM72: 0 | AN72: 0 | AO72: 0 | AP72: 0 | AQ72: 0 | AR72: 0 | AS72: 0 | AT72: 0 | AU72: 0 | AV72: 0 | AW72: 0 | AX72: 0 | AY72: 0 | AZ72: 0 | BA72: 0 | BB72: 0 | BC72: 0
C73: Escalated | E73: =CostEscalOM -> 0 | F73: =F72*(1+RateSQ)^(F$5-EPCBaseYear) -> 0 | G73: =G72*(1+RateSQ)^(G$5-EPCBaseYear) -> 0 | H73: =H72*(1+RateSQ)^(H$5-EPCBaseYear) -> 0 | I73: 0 | J73: 0 | K73: 0 | L73: 0 | M73: 0 | N73: 0 | O73: 0 | P73: 0 | Q73: 0 | R73: 0 | S73: 0 | T73: 0 | U73: 0 | V73: 0 | W73: 0 | X73: 0 | Y73: 0 | Z73: 0 | AA73: 0 | AB73: 0 | AC73: 0 | AD73: 0 | AE73: 0 | AF73: 0 | AG73: 0 | AH73: 0 | AI73: 0 | AJ73: 0 | AK73: 0 | AL73: 0 | AM73: 0 | AN73: 0 | AO73: 0 | AP73: 0 | AQ73: 0 | AR73: 0 | AS73: 0 | AT73: 0 | AU73: 0 | AV73: 0 | AW73: 0 | AX73: 0 | AY73: 0 | AZ73: 0 | BA73: 0 | BB73: 0 | BC73: 0

Sheet Payback Period (hidden)
D3: Base Year | E3: ='LCC Assumption'!F18 -> 0
D4: Year 1 Capital Cost | E4: ='Capital Costs'!G46 -> 0 | O4: Economic performance parameters:
D5: Year 1 Operation Cost | E5: ='O&M Costs'!G18 -> 0 | O5: 20 | P5: period (years)
D6: Subsidy | E6: =Benefits!I18 -> 0 | O6: =-SUM(P25:P44)/SUM(P24) ->  | P6: benefit cost ratio
D7: Escalation Rate - Construction | E7: NA | F7: (Construction costs NOT escalated) | O7: =IRR(N24:N44,0.04) ->  | P7: IRR
D8: Escalation Rate - O&M | E8: ='LCC Assumption'!F20 -> 0 | O8: =Q44 -> 0 | P8: NPV
D9: Escalation Rate - Energy | E9: ='LCC Assumption'!F20 -> 0 | O9: =INDEX(R25:R74,COUNTIF(Q25:Q74,"<0")+1)+COUNTIF(Q25:Q74,"<0") ->  | P9: payback period
D10: Discount Rate | E10: ='LCC Assumption'!F32 -> 0 | O10: based on 50 yrs operation
D11: Energy Sold Rate ($/kWh) | E11: ='LCC Assumption'!F38 -> 0 | O11: =-SUM(P25:P74)/SUM(P24) ->  | P11: benefit cost ratio
D12: Energy Sold Rate - NEM ($/kWh) | E12: ='LCC Assumption'!F39 -> 0 | O12: =IRR(N24:N74,0.04) ->  | P12: IRR
D13: Energy Sold Rate - NEMA($/kWh) | E13: ='LCC Assumption'!F40 -> 0 | O13: =Q74 -> 0 | P13: NPV
D14: Energy Sold Rate - RESBCT ($/kWh) | E14: ='LCC Assumption'!F41 -> 0
D15: Energy Sold Rate - Other ($/kWh) | E15: ='LCC Assumption'!F42 -> 0
D16: Avoided Cost ($/kWh) | E16: ='LCC Assumption'!F36 -> 0
D17: Total Annual Energy (kWh) | E17: ='Turbine Selection'!G30 -> 0
D18: Energy Use On-Site (kWh) | E18: =Benefits!I26*Benefits!I25 -> 0
D19: Energy sold (kWh) | E19: =E17-E18 -> 0
D20: Total Net Present Value $) | E20: =SUM(P24:P56) -> 0 | F20: calculated
U21: Check
A22: Calendar Year | B22: Operation Year | D22: Future Year $ Capital Cost | E22: Future Year $ Subsidy | F22: Future Year $ Operation Cost | G22: Future Year $ Energy Sold | H22: Future Year $ Energy Sold - NEM | I22: Future Year $ Energy Sold - NEMA | J22: Future Year $ Energy Sold - RESBCT | K22: Future Year $ Energy Sold - Other | L22: Future Year $ Avoided Cost | M22: Future Year $ Total Benefits | N22: Net Future Year $ Value (not discounted) | O22: Accumulated (not discounted) | P22: Net Future Year $ Value (discounted) | Q22: Accumulated (discounted) | R22: Payback Period Fraction | T22: Operation Year | U22: PV O&M | V22: PV Benefits | W22: Net Benefits | X22: Accumulated (discounted) | Y22: Check1 | Z22: Check 2 | AA22: Check3
C23: =SUM(C24:C31) -> 1 | D23: (million $)
A24: =EPCBaseYear -> 0 | B24: 0 | C24: 0.005 | D24: =$E$4 -> 0 | E24: =E6 -> 0 | N24: =(-D24+E24-F24+M24) -> 0 | O24: =N24 -> 0 | P24: =N24/(1+$E$10)^(A24-$A$24) -> 0 | Q24: =P24 -> 0 | T24: 0 | X24: =-D24+E24 -> 0 | Y24: =IF(X24=Q24,"Ok","Check") -> Ok
A25: =FirstOps -> 0 | B25: 1 | C25: 0.005 | F25: =$E$5*(1+$E$8)^(A25-$A$24) -> 0 | G25: =$E$19*$E$11*(1+$E$9)^(A25-$A$24) -> 0 | H25: =$E$19*$E$12*(1+$E$9)^(A25-$A$24) -> 0 | I25: =$E$19*$E$13*(1+$E$9)^(A25-$A$24) -> 0 | J25: =$E$19*$E$14*(1+$E$9)^(A25-$A$24) -> 0 | K25: =$E$19*$E$15*(1+$E$9)^(A25-$A$24) -> 0 | L25: =$E$18*$E$16*(1+$E$9)^(A25-$A$24) -> 0 | M25: =SUM(G25:L25) -> 0 | N25: =(-D25+E25-F25+M25) -> 0 | O25: =N25+O24 -> 0 | P25: 0 | Q25: =P25+Q24 -> 0 | R25: =IF(Q25<0,"N/A",ABS(Q24)/P25) ->  | T25: 1 | U25: =F25/(1+$E$10)^(A25-$A$24) -> 0 | V25: =M25/(1+$E$10)^(A25-$A$24) -> 0 | W25: =V25-U25+E25 -> 0 | X25: =X24+W25 -> 0 | Y25: =IF(X25=Q25,"Ok","Check") -> Ok | Z25: =IF(U25='LCC O&M'!F10, "Ok", "Check") ->  | AA25: =IF(V25='LCC O&M'!F14, "Ok", "Check") -> Ok
A26: =A25+1 -> 1 | B26: 2 | C26: 0.015 | F26: =$E$5*(1+$E$8)^(A26-$A$24) -> 0 | G26: =$E$19*$E$11*(1+$E$9)^(A26-$A$24) -> 0 | H26: =$E$19*$E$12*(1+$E$9)^(A26-$A$24) -> 0 | I26: =$E$19*$E$13*(1+$E$9)^(A26-$A$24) -> 0 | J26: =$E$19*$E$14*(1+$E$9)^(A26-$A$24) -> 0 | K26: =$E$19*$E$15*(1+$E$9)^(A26-$A$24) -> 0 | L26: =$E$18*$E$16*(1+$E$9)^(A26-$A$24) -> 0 | M26: =SUM(G26:L26) -> 0 | N26: =(-D26+E26-F26+M26) -> 0 | O26: =N26+O25 -> 0 | P26: 0 | Q26: =P26+Q25 -> 0 | R26: =IF(Q26<0,"N/A",ABS(Q25)/P26) ->  | T26: 2 | U26: 0 | V26: =M26/(1+$E$10)^(A26-$A$24) -> 0 | W26: =V26-U26+E26 -> 0 | X26: =X25+W26 -> 0 | Y26: Ok | Z26: =IF(U26='LCC O&M'!G10, "Ok", "Check") -> Ok | AA26: =IF(V26='LCC O&M'!G14, "Ok", "Check") -> Ok
A27: =A26+1 -> 2 | B27: 3 | C27: 0.075 | F27: 0 | G27: 0 | H27: 0 | I27: 0 | J27: 0 | K27: 0 | L27: 0 | M27: 0 | N27: 0 | O27: 0 | P27: 0 | Q27: 0 | T27: 3 | U27: 0 | V27: 0 | W27: 0 | X27: 0 | Y27: Ok | Z27: =IF(U27='LCC O&M'!H10, "Ok", "Check") -> Ok | AA27: =IF(V27='LCC O&M'!H14, "Ok", "Check") -> Ok
A28: 3 | B28: 4 | C28: 0.15 | F28: 0 | G28: 0 | H28: 0 | I28: 0 | J28: 0 | K28: 0 | L28: 0 | M28: 0 | N28: 0 | O28: 0 | P28: 0 | Q28: 0 | T28: 4 | U28: 0 | V28: 0 | W28: 0 | X28: 0 | Y28: Ok
A29: 4 | B29: 5 | C29: 0.25 | F29: 0 | G29: 0 | H29: 0 | I29: 0 | J29: 0 | K29: 0 | L29: 0 | M29: 0 | N29: 0 | O29: 0 | P29: 0 | Q29: 0 | T29: 5 | U29: 0 | V29: 0 | W29: 0 | X29: 0 | Y29: Ok
A30: 5 | B30: 6 | C30: 0.25 | F30: 0 | G30: 0 | H30: 0 | I30: 0 | J30: 0 | K30: 0 | L30: 0 | M30: 0 | N30: 0 | O30: 0 | P30: 0 | Q30: 0 | T30: 6 | U30: 0 | V30: 0 | W30: 0 | X30: 0 | Y30: Ok
A31: 6 | B31: 7 | C31: 0.25 | F31: 0 | G31: 0 | H31: 0 | I31: 0 | J31: 0 | K31: 0 | L31: 0 | M31: 0 | N31: 0 | O31: 0 | P31: 0 | Q31: 0 | T31: 7 | U31: 0 | V31: 0 | W31: 0 | X31: 0 | Y31: Ok
A32: 7 | B32: 8 | F32: 0 | G32: 0 | H32: 0 | I32: 0 | J32: 0 | K32: 0 | L32: 0 | M32: 0 | N32: 0 | O32: 0 | P32: 0 | Q32: 0 | T32: 8 | U32: 0 | V32: 0 | W32: 0 | X32: 0 | Y32: Ok
A33: 8 | B33: 9 | F33: 0 | G33: 0 | H33: 0 | I33: 0 | J33: 0 | K33: 0 | L33: 0 | M33: 0 | N33: 0 | O33: 0 | P33: 0 | Q33: 0 | T33: 9 | U33: 0 | V33: 0 | W33: 0 | X33: 0 | Y33: Ok
A34: 9 | B34: 10 | F34: 0 | G34: 0 | H34: 0 | I34: 0 | J34: 0 | K34: 0 | L34: 0 | M34: 0 | N34: 0 | O34: 0 | P34: 0 | Q34: 0 | T34: 10 | U34: 0 | V34: 0 | W34: 0 | X34: 0 | Y34: Ok
A35: 10 | B35: 11 | F35: 0 | G35: 0 | H35: 0 | I35: 0 | J35: 0 | K35: 0 | L35: 0 | M35: 0 | N35: 0 | O35: 0 | P35: 0 | Q35: 0 | T35: 11 | U35: 0 | V35: 0 | W35: 0 | X35: 0 | Y35: Ok
A36: 11 | B36: 12 | F36: 0 | G36: 0 | H36: 0 | I36: 0 | J36: 0 | K36: 0 | L36: 0 | M36: 0 | N36: 0 | O36: 0 | P36: 0 | Q36: 0 | T36: 12 | U36: 0 | V36: 0 | W36: 0 | X36: 0 | Y36: Ok
A37: 12 | B37: 13 | F37: 0 | G37: 0 | H37: 0 | I37: 0 | J37: 0 | K37: 0 | L37: 0 | M37: 0 | N37: 0 | O37: 0 | P37: 0 | Q37: 0 | T37: 13 | U37: 0 | V37: 0 | W37: 0 | X37: 0 | Y37: Ok
A38: 13 | B38: 14 | F38: 0 | G38: 0 | H38: 0 | I38: 0 | J38: 0 | K38: 0 | L38: 0 | M38: 0 | N38: 0 | O38: 0 | P38: 0 | Q38: 0 | T38: 14 | U38: 0 | V38: 0 | W38: 0 | X38: 0 | Y38: Ok
A39: 14 | B39: 15 | F39: 0 | G39: 0 | H39: 0 | I39: 0 | J39: 0 | K39: 0 | L39: 0 | M39: 0 | N39: 0 | O39: 0 | P39: 0 | Q39: 0 | T39: 15 | U39: 0 | V39: 0 | W39: 0 | X39: 0 | Y39: Ok
A40: 15 | B40: 16 | F40: 0 | G40: 0 | H40: 0 | I40: 0 | J40: 0 | K40: 0 | L40: 0 | M40: 0 | N40: 0 | O40: 0 | P40: 0 | Q40: 0 | T40: 16 | U40: 0 | V40: 0 | W40: 0 | X40: 0 | Y40: Ok
A41: 16 | B41: 17 | F41: 0 | G41: 0 | H41: 0 | I41: 0 | J41: 0 | K41: 0 | L41: 0 | M41: 0 | N41: 0 | O41: 0 | P41: 0 | Q41: 0 | T41: 17 | U41: 0 | V41: 0 | W41: 0 | X41: 0 | Y41: Ok
A42: 17 | B42: 18 | F42: 0 | G42: 0 | H42: 0 | I42: 0 | J42: 0 | K42: 0 | L42: 0 | M42: 0 | N42: 0 | O42: 0 | P42: 0 | Q42: 0 | T42: 18 | U42: 0 | V42: 0 | W42: 0 | X42: 0 | Y42: Ok
A43: 18 | B43: 19 | F43: 0 | G43: 0 | H43: 0 | I43: 0 | J43: 0 | K43: 0 | L43: 0 | M43: 0 | N43: 0 | O43: 0 | P43: 0 | Q43: 0 | T43: 19 | U43: 0 | V43: 0 | W43: 0 | X43: 0 | Y43: Ok
A44: 19 | B44: 20 | F44: 0 | G44: 0 | H44: 0 | I44: 0 | J44: 0 | K44: 0 | L44: 0 | M44: 0 | N44: 0 | O44: 0 | P44: 0 | Q44: 0 | T44: 20 | U44: 0 | V44: 0 | W44: 0 | X44: 0 | Y44: Ok
A45: 20 | B45: 21 | F45: 0 | G45: 0 | H45: 0 | I45: 0 | J45: 0 | K45: 0 | L45: 0 | M45: 0 | N45: 0 | O45: 0 | P45: 0 | Q45: 0 | T45: 21 | U45: 0 | V45: 0 | W45: 0 | X45: 0 | Y45: Ok
A46: 21 | B46: 22 | F46: 0 | G46: 0 | H46: 0 | I46: 0 | J46: 0 | K46: 0 | L46: 0 | M46: 0 | N46: 0 | O46: 0 | P46: 0 | Q46: 0 | T46: 22 | U46: 0 | V46: 0 | W46: 0 | X46: 0 | Y46: Ok
A47: 22 | B47: 23 | F47: 0 | G47: 0 | H47: 0 | I47: 0 | J47: 0 | K47: 0 | L47: 0 | M47: 0 | N47: 0 | O47: 0 | P47: 0 | Q47: 0 | T47: 23 | U47: 0 | V47: 0 | W47: 0 | X47: 0 | Y47: Ok
A48: 23 | B48: 24 | F48: 0 | G48: 0 | H48: 0 | I48: 0 | J48: 0 | K48: 0 | L48: 0 | M48: 0 | N48: 0 | O48: 0 | P48: 0 | Q48: 0 | T48: 24 | U48: 0 | V48: 0 | W48: 0 | X48: 0 | Y48: Ok
A49: 24 | B49: 25 | F49: 0 | G49: 0 | H49: 0 | I49: 0 | J49: 0 | K49: 0 | L49: 0 | M49: 0 | N49: 0 | O49: 0 | P49: 0 | Q49: 0 | T49: 25 | U49: 0 | V49: 0 | W49: 0 | X49: 0 | Y49: Ok
A50: 25 | B50: 26 | F50: 0 | G50: 0 | H50: 0 | I50: 0 | J50: 0 | K50: 0 | L50: 0 | M50: 0 | N50: 0 | O50: 0 | P50: 0 | Q50: 0 | T50: 26 | U50: 0 | V50: 0 | W50: 0 | X50: 0 | Y50: Ok
A51: 26 | B51: 27 | F51: 0 | G51: 0 | H51: 0 | I51: 0 | J51: 0 | K51: 0 | L51: 0 | M51: 0 | N51: 0 | O51: 0 | P51: 0 | Q51: 0 | T51: 27 | U51: 0 | V51: 0 | W51: 0 | X51: 0 | Y51: Ok
A52: 27 | B52: 28 | F52: 0 | G52: 0 | H52: 0 | I52: 0 | J52: 0 | K52: 0 | L52: 0 | M52: 0 | N52: 0 | O52: 0 | P52: 0 | Q52: 0 | T52: 28 | U52: 0 | V52: 0 | W52: 0 | X52: 0 | Y52: Ok
A53: 28 | B53: 29 | F53: 0 | G53: 0 | H53: 0 | I53: 0 | J53: 0 | K53: 0 | L53: 0 | M53: 0 | N53: 0 | O53: 0 | P53: 0 | Q53: 0 | T53: 29 | U53: 0 | V53: 0 | W53: 0 | X53: 0 | Y53: Ok
A54: 29 | B54: 30 | F54: 0 | G54: 0 | H54: 0 | I54: 0 | J54: 0 | K54: 0 | L54: 0 | M54: 0 | N54: 0 | O54: 0 | P54: 0 | Q54: 0 | T54: 30 | U54: 0 | V54: 0 | W54: 0 | X54: 0 | Y54: Ok
A55: 30 | B55: 31 | F55: 0 | G55: 0 | H55: 0 | I55: 0 | J55: 0 | K55: 0 | L55: 0 | M55: 0 | N55: 0 | O55: 0 | P55: 0 | Q55: 0 | T55: 31 | U55: 0 | V55: 0 | W55: 0 | X55: 0 | Y55: Ok
A56: 31 | B56: 32 | F56: 0 | G56: 0 | H56: 0 | I56: 0 | J56: 0 | K56: 0 | L56: 0 | M56: 0 | N56: 0 | O56: 0 | P56: =N56/(1+$E$10)^(A56-$A$24) -> 0 | Q56: 0 | T56: 32 | U56: 0 | V56: 0 | W56: 0 | X56: 0 | Y56: Ok
A57: 32 | B57: 33 | F57: 0 | G57: 0 | H57: 0 | I57: 0 | J57: 0 | K57: 0 | L57: 0 | M57: 0 | N57: 0 | O57: 0 | P57: 0 | Q57: 0 | T57: 33 | U57: =F57/(1+$E$10)^(A57-$A$24) -> 0 | V57: 0 | W57: 0 | X57: 0 | Y57: Ok
A58: 33 | B58: 34 | F58: 0 | G58: 0 | H58: 0 | I58: 0 | J58: 0 | K58: 0 | L58: 0 | M58: 0 | N58: 0 | O58: 0 | P58: 0 | Q58: 0 | T58: 34 | U58: 0 | V58: 0 | W58: 0 | X58: 0 | Y58: Ok
A59: 34 | B59: 35 | F59: 0 | G59: 0 | H59: 0 | I59: 0 | J59: 0 | K59: 0 | L59: 0 | M59: 0 | N59: 0 | O59: 0 | P59: 0 | Q59: 0 | T59: 35 | U59: 0 | V59: 0 | W59: 0 | X59: 0 | Y59: Ok
A60: 35 | B60: 36 | F60: 0 | G60: 0 | H60: 0 | I60: 0 | J60: 0 | K60: 0 | L60: 0 | M60: 0 | N60: 0 | O60: 0 | P60: 0 | Q60: 0 | T60: 36 | U60: 0 | V60: 0 | W60: 0 | X60: 0 | Y60: Ok
A61: 36 | B61: 37 | F61: 0 | G61: 0 | H61: 0 | I61: 0 | J61: 0 | K61: 0 | L61: 0 | M61: 0 | N61: 0 | O61: 0 | P61: 0 | Q61: 0 | T61: 37 | U61: 0 | V61: 0 | W61: 0 | X61: 0 | Y61: Ok
A62: 37 | B62: 38 | F62: 0 | G62: 0 | H62: 0 | I62: 0 | J62: 0 | K62: 0 | L62: 0 | M62: 0 | N62: 0 | O62: 0 | P62: 0 | Q62: 0 | T62: 38 | U62: 0 | V62: 0 | W62: 0 | X62: 0 | Y62: Ok
A63: 38 | B63: 39 | F63: 0 | G63: 0 | H63: 0 | I63: 0 | J63: 0 | K63: 0 | L63: 0 | M63: 0 | N63: 0 | O63: 0 | P63: 0 | Q63: 0 | T63: 39 | U63: 0 | V63: 0 | W63: 0 | X63: 0 | Y63: Ok
A64: 39 | B64: 40 | F64: 0 | G64: 0 | H64: 0 | I64: 0 | J64: 0 | K64: 0 | L64: 0 | M64: 0 | N64: 0 | O64: 0 | P64: 0 | Q64: 0 | T64: 40 | U64: 0 | V64: 0 | W64: 0 | X64: 0 | Y64: Ok
A65: 40 | B65: 41 | F65: 0 | G65: 0 | H65: 0 | I65: 0 | J65: 0 | K65: 0 | L65: 0 | M65: 0 | N65: 0 | O65: 0 | P65: 0 | Q65: 0 | T65: 41 | U65: 0 | V65: 0 | W65: 0 | X65: 0 | Y65: Ok
A66: 41 | B66: 42 | F66: 0 | G66: 0 | H66: 0 | I66: 0 | J66: 0 | K66: 0 | L66: 0 | M66: 0 | N66: 0 | O66: 0 | P66: 0 | Q66: 0 | T66: 42 | U66: 0 | V66: 0 | W66: 0 | X66: 0 | Y66: Ok
A67: 42 | B67: 43 | F67: 0 | G67: 0 | H67: 0 | I67: 0 | J67: 0 | K67: 0 | L67: 0 | M67: 0 | N67: 0 | O67: =N67+O66 -> 0 | P67: 0 | Q67: =P67+Q66 -> 0 | R67: =IF(Q67<0,"N/A",ABS(Q66)/P67) ->  | T67: 43 | U67: 0 | V67: 0 | W67: 0 | X67: 0 | Y67: Ok
A68: 43 | B68: 44 | F68: 0 | G68: 0 | H68: 0 | I68: 0 | J68: 0 | K68: 0 | L68: 0 | M68: 0 | N68: 0 | O68: 0 | P68: 0 | Q68: 0 | T68: 44 | U68: 0 | V68: 0 | W68: 0 | X68: 0 | Y68: Ok
A69: 44 | B69: 45 | F69: 0 | G69: 0 | H69: 0 | I69: 0 | J69: 0 | K69: 0 | L69: 0 | M69: 0 | N69: 0 | O69: 0 | P69: 0 | Q69: 0 | T69: 45 | U69: 0 | V69: 0 | W69: 0 | X69: 0 | Y69: Ok
A70: 45 | B70: 46 | F70: 0 | G70: 0 | H70: 0 | I70: 0 | J70: 0 | K70: 0 | L70: 0 | M70: 0 | N70: 0 | O70: 0 | P70: 0 | Q70: 0 | T70: 46 | U70: 0 | V70: 0 | W70: 0 | X70: 0 | Y70: Ok
A71: 46 | B71: 47 | F71: 0 | G71: 0 | H71: 0 | I71: 0 | J71: 0 | K71: 0 | L71: 0 | M71: 0 | N71: 0 | O71: 0 | P71: 0 | Q71: 0 | T71: 47 | U71: 0 | V71: 0 | W71: 0 | X71: 0 | Y71: Ok
A72: 47 | B72: 48 | F72: 0 | G72: 0 | H72: 0 | I72: 0 | J72: 0 | K72: 0 | L72: 0 | M72: 0 | N72: 0 | O72: 0 | P72: 0 | Q72: 0 | T72: 48 | U72: 0 | V72: 0 | W72: 0 | X72: 0 | Y72: Ok
A73: 48 | B73: 49 | F73: 0 | G73: 0 | H73: 0 | I73: 0 | J73: 0 | K73: 0 | L73: 0 | M73: 0 | N73: 0 | O73: 0 | P73: 0 | Q73: 0 | T73: 49 | U73: 0 | V73: 0 | W73: 0 | X73: 0 | Y73: Ok
A74: 49 | B74: 50 | F74: 0 | G74: 0 | H74: 0 | I74: 0 | J74: 0 | K74: 0 | L74: 0 | M74: 0 | N74: 0 | O74: 0 | P74: 0 | Q74: 0 | T74: 50 | U74: 0 | V74: 0 | W74: 0 | X74: 0 | Y74: Ok
U76: =SUM(U25:U74) -> 0 | V76: =SUM(V25:V74) -> 0

Sheet PB - dont use (hidden)
H1: Net Energy Benefit to District | P1: Economic Beneft
H2: Estimated System Size (kW) = | M2: 197
C4: Cost | H4: Benefits | P4: Savings
C5: Time (year) | D5: Project Cost | E5: Subsidy | H5: Avoided Cost | I5: Bill Credits (RES-BCT) | J5: Net Surplus Generation | K5: Revenue from REC Sales | L5: Less O&M Cost | M5: Net Benefit - OM Cost | P5: Cash Flow | Q5: Net Invested Cash
C6: 0 | D6: ='Capital Costs'!G46 -> 0 | P6: =-D6 -> 0 | Q6: =P6 -> 0
C7: 1 | E7: =Benefits!I18 -> 0 | H7: =Benefits!I32 -> 0 | J7: =Benefits!I41*(1+'LCC Assumption'!$F$20)^(C7-$C$6) -> 0 | K7: =Benefits!I34 -> 0 | L7: ='O&M Costs'!$G$18*(1+'LCC Assumption'!$F$20)^(C7-$C$6) -> 0 | M7: =H7+J7+K7-L7 -> 0 | P7: =M7+E7 -> 0 | Q7: =Q6+P7 -> 0
C8: 2 | H8: =$H$7*(1+'LCC Assumption'!$F$20)^(C8-$C$7) -> 0 | J8: =$J$7*(1+'LCC Assumption'!$F$20)^(C8-$C$7) -> 0 | K8: =$K$7*(1+'LCC Assumption'!$F$20)^(C8-$C$7) -> 0 | L8: ='O&M Costs'!$G$18*(1+'LCC Assumption'!$F$20)^(C8-$C$6) -> 0 | M8: 0 | P8: 0 | Q8: =Q7+P8 -> 0
C9: 3 | H9: =$H$7*(1+'LCC Assumption'!$F$20)^(C9-$C$7) -> 0 | J9: =$J$7*(1+'LCC Assumption'!$F$20)^(C9-$C$7) -> 0 | K9: =$K$7*(1+'LCC Assumption'!$F$20)^(C9-$C$7) -> 0 | L9: ='O&M Costs'!$G$18*(1+'LCC Assumption'!$F$20)^(C9-$C$6) -> 0 | M9: 0 | P9: 0 | Q9: 0
C10: 4 | H10: =$H$7*(1+'LCC Assumption'!$F$20)^(C10-$C$7) -> 0 | J10: =$J$7*(1+'LCC Assumption'!$F$20)^(C10-$C$7) -> 0 | K10: =$K$7*(1+'LCC Assumption'!$F$20)^(C10-$C$7) -> 0 | L10: ='O&M Costs'!$G$18*(1+'LCC Assumption'!$F$20)^(C10-$C$6) -> 0 | M10: 0 | P10: 0 | Q10: 0
C11: 5 | H11: =$H$7*(1+'LCC Assumption'!$F$20)^(C11-$C$7) -> 0 | J11: =$J$7*(1+'LCC Assumption'!$F$20)^(C11-$C$7) -> 0 | K11: =$K$7*(1+'LCC Assumption'!$F$20)^(C11-$C$7) -> 0 | L11: ='O&M Costs'!$G$18*(1+'LCC Assumption'!$F$20)^(C11-$C$6) -> 0 | M11: 0 | P11: 0 | Q11: 0
C12: 6 | H12: =$H$7*(1+'LCC Assumption'!$F$20)^(C12-$C$7) -> 0 | J12: =$J$7*(1+'LCC Assumption'!$F$20)^(C12-$C$7) -> 0 | K12: =$K$7*(1+'LCC Assumption'!$F$20)^(C12-$C$7) -> 0 | L12: ='O&M Costs'!$G$18*(1+'LCC Assumption'!$F$20)^(C12-$C$6) -> 0 | M12: 0 | P12: 0 | Q12: 0
C13: 7 | H13: =$H$7*(1+'LCC Assumption'!$F$20)^(C13-$C$7) -> 0 | J13: =$J$7*(1+'LCC Assumption'!$F$20)^(C13-$C$7) -> 0 | K13: =$K$7*(1+'LCC Assumption'!$F$20)^(C13-$C$7) -> 0 | L13: ='O&M Costs'!$G$18*(1+'LCC Assumption'!$F$20)^(C13-$C$6) -> 0 | M13: 0 | P13: 0 | Q13: 0
C14: 8 | H14: =$H$7*(1+'LCC Assumption'!$F$20)^(C14-$C$7) -> 0 | J14: =$J$7*(1+'LCC Assumption'!$F$20)^(C14-$C$7) -> 0 | K14: =$K$7*(1+'LCC Assumption'!$F$20)^(C14-$C$7) -> 0 | L14: ='O&M Costs'!$G$18*(1+'LCC Assumption'!$F$20)^(C14-$C$6) -> 0 | M14: 0 | P14: 0 | Q14: 0
C15: 9 | H15: =$H$7*(1+'LCC Assumption'!$F$20)^(C15-$C$7) -> 0 | J15: =$J$7*(1+'LCC Assumption'!$F$20)^(C15-$C$7) -> 0 | K15: =$K$7*(1+'LCC Assumption'!$F$20)^(C15-$C$7) -> 0 | L15: ='O&M Costs'!$G$18*(1+'LCC Assumption'!$F$20)^(C15-$C$6) -> 0 | M15: 0 | P15: 0 | Q15: 0
C16: 10 | H16: =$H$7*(1+'LCC Assumption'!$F$20)^(C16-$C$7) -> 0 | J16: =$J$7*(1+'LCC Assumption'!$F$20)^(C16-$C$7) -> 0 | K16: =$K$7*(1+'LCC Assumption'!$F$20)^(C16-$C$7) -> 0 | L16: ='O&M Costs'!$G$18*(1+'LCC Assumption'!$F$20)^(C16-$C$6) -> 0 | M16: 0 | P16: 0 | Q16: 0
C17: 11 | H17: =$H$7*(1+'LCC Assumption'!$F$20)^(C17-$C$7) -> 0 | J17: =$J$7*(1+'LCC Assumption'!$F$20)^(C17-$C$7) -> 0 | K17: =$K$7*(1+'LCC Assumption'!$F$20)^(C17-$C$7) -> 0 | L17: ='O&M Costs'!$G$18*(1+'LCC Assumption'!$F$20)^(C17-$C$6) -> 0 | M17: 0 | P17: 0 | Q17: 0
C18: 12 | H18: =$H$7*(1+'LCC Assumption'!$F$20)^(C18-$C$7) -> 0 | J18: =$J$7*(1+'LCC Assumption'!$F$20)^(C18-$C$7) -> 0 | K18: =$K$7*(1+'LCC Assumption'!$F$20)^(C18-$C$7) -> 0 | L18: ='O&M Costs'!$G$18*(1+'LCC Assumption'!$F$20)^(C18-$C$6) -> 0 | M18: 0 | P18: 0 | Q18: 0
C19: 13 | H19: =$H$7*(1+'LCC Assumption'!$F$20)^(C19-$C$7) -> 0 | J19: =$J$7*(1+'LCC Assumption'!$F$20)^(C19-$C$7) -> 0 | K19: =$K$7*(1+'LCC Assumption'!$F$20)^(C19-$C$7) -> 0 | L19: ='O&M Costs'!$G$18*(1+'LCC Assumption'!$F$20)^(C19-$C$6) -> 0 | M19: 0 | P19: 0 | Q19: 0
C20: 14 | H20: =$H$7*(1+'LCC Assumption'!$F$20)^(C20-$C$7) -> 0 | J20: =$J$7*(1+'LCC Assumption'!$F$20)^(C20-$C$7) -> 0 | K20: =$K$7*(1+'LCC Assumption'!$F$20)^(C20-$C$7) -> 0 | L20: ='O&M Costs'!$G$18*(1+'LCC Assumption'!$F$20)^(C20-$C$6) -> 0 | M20: 0 | P20: 0 | Q20: 0
C21: 15 | H21: =$H$7*(1+'LCC Assumption'!$F$20)^(C21-$C$7) -> 0 | J21: =$J$7*(1+'LCC Assumption'!$F$20)^(C21-$C$7) -> 0 | K21: =$K$7*(1+'LCC Assumption'!$F$20)^(C21-$C$7) -> 0 | L21: ='O&M Costs'!$G$18*(1+'LCC Assumption'!$F$20)^(C21-$C$6) -> 0 | M21: 0 | P21: 0 | Q21: 0
C22: 16 | H22: =$H$7*(1+'LCC Assumption'!$F$20)^(C22-$C$7) -> 0 | J22: =$J$7*(1+'LCC Assumption'!$F$20)^(C22-$C$7) -> 0 | K22: =$K$7*(1+'LCC Assumption'!$F$20)^(C22-$C$7) -> 0 | L22: ='O&M Costs'!$G$18*(1+'LCC Assumption'!$F$20)^(C22-$C$6) -> 0 | M22: 0 | P22: 0 | Q22: 0
C23: 17 | H23: =$H$7*(1+'LCC Assumption'!$F$20)^(C23-$C$7) -> 0 | J23: =$J$7*(1+'LCC Assumption'!$F$20)^(C23-$C$7) -> 0 | K23: =$K$7*(1+'LCC Assumption'!$F$20)^(C23-$C$7) -> 0 | L23: ='O&M Costs'!$G$18*(1+'LCC Assumption'!$F$20)^(C23-$C$6) -> 0 | M23: 0 | P23: 0 | Q23: 0
C24: 18 | H24: =$H$7*(1+'LCC Assumption'!$F$20)^(C24-$C$7) -> 0 | J24: =$J$7*(1+'LCC Assumption'!$F$20)^(C24-$C$7) -> 0 | K24: =$K$7*(1+'LCC Assumption'!$F$20)^(C24-$C$7) -> 0 | L24: ='O&M Costs'!$G$18*(1+'LCC Assumption'!$F$20)^(C24-$C$6) -> 0 | M24: 0 | P24: 0 | Q24: 0
C25: 19 | H25: =$H$7*(1+'LCC Assumption'!$F$20)^(C25-$C$7) -> 0 | J25: =$J$7*(1+'LCC Assumption'!$F$20)^(C25-$C$7) -> 0 | K25: =$K$7*(1+'LCC Assumption'!$F$20)^(C25-$C$7) -> 0 | L25: ='O&M Costs'!$G$18*(1+'LCC Assumption'!$F$20)^(C25-$C$6) -> 0 | M25: 0 | P25: 0 | Q25: 0
C26: 20 | H26: =$H$7*(1+'LCC Assumption'!$F$20)^(C26-$C$7) -> 0 | J26: =$J$7*(1+'LCC Assumption'!$F$20)^(C26-$C$7) -> 0 | K26: =$K$7*(1+'LCC Assumption'!$F$20)^(C26-$C$7) -> 0 | L26: ='O&M Costs'!$G$18*(1+'LCC Assumption'!$F$20)^(C26-$C$6) -> 0 | M26: 0 | P26: 0 | Q26: 0
C27: 21 | H27: =$H$7*(1+'LCC Assumption'!$F$20)^(C27-$C$7) -> 0 | J27: =$J$7*(1+'LCC Assumption'!$F$20)^(C27-$C$7) -> 0 | K27: =$K$7*(1+'LCC Assumption'!$F$20)^(C27-$C$7) -> 0 | L27: ='O&M Costs'!$G$18*(1+'LCC Assumption'!$F$20)^(C27-$C$6) -> 0 | M27: 0 | P27: 0 | Q27: 0
C28: 22 | H28: =$H$7*(1+'LCC Assumption'!$F$20)^(C28-$C$7) -> 0 | J28: =$J$7*(1+'LCC Assumption'!$F$20)^(C28-$C$7) -> 0 | K28: =$K$7*(1+'LCC Assumption'!$F$20)^(C28-$C$7) -> 0 | L28: ='O&M Costs'!$G$18*(1+'LCC Assumption'!$F$20)^(C28-$C$6) -> 0 | M28: 0 | P28: 0 | Q28: 0
C29: 23 | H29: =$H$7*(1+'LCC Assumption'!$F$20)^(C29-$C$7) -> 0 | J29: =$J$7*(1+'LCC Assumption'!$F$20)^(C29-$C$7) -> 0 | K29: =$K$7*(1+'LCC Assumption'!$F$20)^(C29-$C$7) -> 0 | L29: ='O&M Costs'!$G$18*(1+'LCC Assumption'!$F$20)^(C29-$C$6) -> 0 | M29: 0 | P29: 0 | Q29: 0
C30: 24 | H30: =$H$7*(1+'LCC Assumption'!$F$20)^(C30-$C$7) -> 0 | J30: =$J$7*(1+'LCC Assumption'!$F$20)^(C30-$C$7) -> 0 | K30: =$K$7*(1+'LCC Assumption'!$F$20)^(C30-$C$7) -> 0 | L30: ='O&M Costs'!$G$18*(1+'LCC Assumption'!$F$20)^(C30-$C$6) -> 0 | M30: 0 | P30: 0 | Q30: 0
C31: 25 | H31: =$H$7*(1+'LCC Assumption'!$F$20)^(C31-$C$7) -> 0 | J31: =$J$7*(1+'LCC Assumption'!$F$20)^(C31-$C$7) -> 0 | K31: =$K$7*(1+'LCC Assumption'!$F$20)^(C31-$C$7) -> 0 | L31: ='O&M Costs'!$G$18*(1+'LCC Assumption'!$F$20)^(C31-$C$6) -> 0 | M31: 0 | P31: 0 | Q31: 0
C32: 26 | H32: =$H$7*(1+'LCC Assumption'!$F$20)^(C32-$C$7) -> 0 | J32: =$J$7*(1+'LCC Assumption'!$F$20)^(C32-$C$7) -> 0 | K32: =$K$7*(1+'LCC Assumption'!$F$20)^(C32-$C$7) -> 0 | L32: ='O&M Costs'!$G$18*(1+'LCC Assumption'!$F$20)^(C32-$C$6) -> 0 | M32: 0 | P32: =M32+E32 -> 0 | Q32: 0
C33: 27 | H33: =$H$7*(1+'LCC Assumption'!$F$20)^(C33-$C$7) -> 0 | J33: =$J$7*(1+'LCC Assumption'!$F$20)^(C33-$C$7) -> 0 | K33: =$K$7*(1+'LCC Assumption'!$F$20)^(C33-$C$7) -> 0 | L33: ='O&M Costs'!$G$18*(1+'LCC Assumption'!$F$20)^(C33-$C$6) -> 0 | M33: 0 | P33: 0 | Q33: 0
C34: 28 | H34: =$H$7*(1+'LCC Assumption'!$F$20)^(C34-$C$7) -> 0 | J34: =$J$7*(1+'LCC Assumption'!$F$20)^(C34-$C$7) -> 0 | K34: =$K$7*(1+'LCC Assumption'!$F$20)^(C34-$C$7) -> 0 | L34: ='O&M Costs'!$G$18*(1+'LCC Assumption'!$F$20)^(C34-$C$6) -> 0 | M34: 0 | P34: 0 | Q34: 0
C35: 29 | H35: =$H$7*(1+'LCC Assumption'!$F$20)^(C35-$C$7) -> 0 | J35: =$J$7*(1+'LCC Assumption'!$F$20)^(C35-$C$7) -> 0 | K35: =$K$7*(1+'LCC Assumption'!$F$20)^(C35-$C$7) -> 0 | L35: ='O&M Costs'!$G$18*(1+'LCC Assumption'!$F$20)^(C35-$C$6) -> 0 | M35: 0 | P35: 0 | Q35: 0
C36: 30 | H36: =$H$7*(1+'LCC Assumption'!$F$20)^(C36-$C$7) -> 0 | J36: =$J$7*(1+'LCC Assumption'!$F$20)^(C36-$C$7) -> 0 | K36: =$K$7*(1+'LCC Assumption'!$F$20)^(C36-$C$7) -> 0 | L36: ='O&M Costs'!$G$18*(1+'LCC Assumption'!$F$20)^(C36-$C$6) -> 0 | M36: 0 | P36: 0 | Q36: 0
C37: 31 | H37: =$H$7*(1+'LCC Assumption'!$F$20)^(C37-$C$7) -> 0 | J37: =$J$7*(1+'LCC Assumption'!$F$20)^(C37-$C$7) -> 0 | K37: =$K$7*(1+'LCC Assumption'!$F$20)^(C37-$C$7) -> 0 | L37: ='O&M Costs'!$G$18*(1+'LCC Assumption'!$F$20)^(C37-$C$6) -> 0 | M37: 0 | P37: 0 | Q37: 0
C38: 32 | H38: =$H$7*(1+'LCC Assumption'!$F$20)^(C38-$C$7) -> 0 | J38: =$J$7*(1+'LCC Assumption'!$F$20)^(C38-$C$7) -> 0 | K38: =$K$7*(1+'LCC Assumption'!$F$20)^(C38-$C$7) -> 0 | L38: ='O&M Costs'!$G$18*(1+'LCC Assumption'!$F$20)^(C38-$C$6) -> 0 | M38: 0 | P38: 0 | Q38: 0
C39: 33 | H39: =$H$7*(1+'LCC Assumption'!$F$20)^(C39-$C$7) -> 0 | J39: =$J$7*(1+'LCC Assumption'!$F$20)^(C39-$C$7) -> 0 | K39: =$K$7*(1+'LCC Assumption'!$F$20)^(C39-$C$7) -> 0 | L39: ='O&M Costs'!$G$18*(1+'LCC Assumption'!$F$20)^(C39-$C$6) -> 0 | M39: 0 | P39: 0 | Q39: 0
C40: 34 | H40: =$H$7*(1+'LCC Assumption'!$F$20)^(C40-$C$7) -> 0 | J40: =$J$7*(1+'LCC Assumption'!$F$20)^(C40-$C$7) -> 0 | K40: =$K$7*(1+'LCC Assumption'!$F$20)^(C40-$C$7) -> 0 | L40: ='O&M Costs'!$G$18*(1+'LCC Assumption'!$F$20)^(C40-$C$6) -> 0 | M40: 0 | P40: 0 | Q40: 0
C41: 35 | H41: =$H$7*(1+'LCC Assumption'!$F$20)^(C41-$C$7) -> 0 | J41: =$J$7*(1+'LCC Assumption'!$F$20)^(C41-$C$7) -> 0 | K41: =$K$7*(1+'LCC Assumption'!$F$20)^(C41-$C$7) -> 0 | L41: ='O&M Costs'!$G$18*(1+'LCC Assumption'!$F$20)^(C41-$C$6) -> 0 | M41: 0 | P41: 0 | Q41: 0
C42: 36 | H42: =$H$7*(1+'LCC Assumption'!$F$20)^(C42-$C$7) -> 0 | J42: =$J$7*(1+'LCC Assumption'!$F$20)^(C42-$C$7) -> 0 | K42: =$K$7*(1+'LCC Assumption'!$F$20)^(C42-$C$7) -> 0 | L42: ='O&M Costs'!$G$18*(1+'LCC Assumption'!$F$20)^(C42-$C$6) -> 0 | M42: 0 | P42: 0 | Q42: 0
C43: 37 | H43: =$H$7*(1+'LCC Assumption'!$F$20)^(C43-$C$7) -> 0 | J43: =$J$7*(1+'LCC Assumption'!$F$20)^(C43-$C$7) -> 0 | K43: =$K$7*(1+'LCC Assumption'!$F$20)^(C43-$C$7) -> 0 | L43: ='O&M Costs'!$G$18*(1+'LCC Assumption'!$F$20)^(C43-$C$6) -> 0 | M43: 0 | P43: 0 | Q43: 0
C44: 38 | H44: =$H$7*(1+'LCC Assumption'!$F$20)^(C44-$C$7) -> 0 | J44: =$J$7*(1+'LCC Assumption'!$F$20)^(C44-$C$7) -> 0 | K44: =$K$7*(1+'LCC Assumption'!$F$20)^(C44-$C$7) -> 0 | L44: ='O&M Costs'!$G$18*(1+'LCC Assumption'!$F$20)^(C44-$C$6) -> 0 | M44: 0 | P44: 0 | Q44: 0
C45: 39 | H45: =$H$7*(1+'LCC Assumption'!$F$20)^(C45-$C$7) -> 0 | J45: =$J$7*(1+'LCC Assumption'!$F$20)^(C45-$C$7) -> 0 | K45: =$K$7*(1+'LCC Assumption'!$F$20)^(C45-$C$7) -> 0 | L45: ='O&M Costs'!$G$18*(1+'LCC Assumption'!$F$20)^(C45-$C$6) -> 0 | M45: 0 | P45: 0 | Q45: 0
C46: 40 | H46: =$H$7*(1+'LCC Assumption'!$F$20)^(C46-$C$7) -> 0 | J46: =$J$7*(1+'LCC Assumption'!$F$20)^(C46-$C$7) -> 0 | K46: =$K$7*(1+'LCC Assumption'!$F$20)^(C46-$C$7) -> 0 | L46: ='O&M Costs'!$G$18*(1+'LCC Assumption'!$F$20)^(C46-$C$6) -> 0 | M46: 0 | P46: 0 | Q46: 0
C47: 41 | H47: =$H$7*(1+'LCC Assumption'!$F$20)^(C47-$C$7) -> 0 | J47: =$J$7*(1+'LCC Assumption'!$F$20)^(C47-$C$7) -> 0 | K47: =$K$7*(1+'LCC Assumption'!$F$20)^(C47-$C$7) -> 0 | L47: ='O&M Costs'!$G$18*(1+'LCC Assumption'!$F$20)^(C47-$C$6) -> 0 | M47: 0 | P47: 0 | Q47: 0
C48: 42 | H48: =$H$7*(1+'LCC Assumption'!$F$20)^(C48-$C$7) -> 0 | J48: =$J$7*(1+'LCC Assumption'!$F$20)^(C48-$C$7) -> 0 | K48: =$K$7*(1+'LCC Assumption'!$F$20)^(C48-$C$7) -> 0 | L48: ='O&M Costs'!$G$18*(1+'LCC Assumption'!$F$20)^(C48-$C$6) -> 0 | M48: 0 | P48: 0 | Q48: 0
C49: 43 | H49: =$H$7*(1+'LCC Assumption'!$F$20)^(C49-$C$7) -> 0 | J49: =$J$7*(1+'LCC Assumption'!$F$20)^(C49-$C$7) -> 0 | K49: =$K$7*(1+'LCC Assumption'!$F$20)^(C49-$C$7) -> 0 | L49: ='O&M Costs'!$G$18*(1+'LCC Assumption'!$F$20)^(C49-$C$6) -> 0 | M49: 0 | P49: 0 | Q49: 0
C50: 44 | H50: =$H$7*(1+'LCC Assumption'!$F$20)^(C50-$C$7) -> 0 | J50: =$J$7*(1+'LCC Assumption'!$F$20)^(C50-$C$7) -> 0 | K50: =$K$7*(1+'LCC Assumption'!$F$20)^(C50-$C$7) -> 0 | L50: ='O&M Costs'!$G$18*(1+'LCC Assumption'!$F$20)^(C50-$C$6) -> 0 | M50: 0 | P50: 0 | Q50: 0
C51: 45 | H51: =$H$7*(1+'LCC Assumption'!$F$20)^(C51-$C$7) -> 0 | J51: =$J$7*(1+'LCC Assumption'!$F$20)^(C51-$C$7) -> 0 | K51: =$K$7*(1+'LCC Assumption'!$F$20)^(C51-$C$7) -> 0 | L51: ='O&M Costs'!$G$18*(1+'LCC Assumption'!$F$20)^(C51-$C$6) -> 0 | M51: 0 | P51: 0 | Q51: 0
C52: 46 | H52: =$H$7*(1+'LCC Assumption'!$F$20)^(C52-$C$7) -> 0 | J52: =$J$7*(1+'LCC Assumption'!$F$20)^(C52-$C$7) -> 0 | K52: =$K$7*(1+'LCC Assumption'!$F$20)^(C52-$C$7) -> 0 | L52: ='O&M Costs'!$G$18*(1+'LCC Assumption'!$F$20)^(C52-$C$6) -> 0 | M52: 0 | P52: 0 | Q52: 0
C53: 47 | H53: =$H$7*(1+'LCC Assumption'!$F$20)^(C53-$C$7) -> 0 | J53: =$J$7*(1+'LCC Assumption'!$F$20)^(C53-$C$7) -> 0 | K53: =$K$7*(1+'LCC Assumption'!$F$20)^(C53-$C$7) -> 0 | L53: ='O&M Costs'!$G$18*(1+'LCC Assumption'!$F$20)^(C53-$C$6) -> 0 | M53: 0 | P53: 0 | Q53: 0
C54: 48 | H54: =$H$7*(1+'LCC Assumption'!$F$20)^(C54-$C$7) -> 0 | J54: =$J$7*(1+'LCC Assumption'!$F$20)^(C54-$C$7) -> 0 | K54: =$K$7*(1+'LCC Assumption'!$F$20)^(C54-$C$7) -> 0 | L54: ='O&M Costs'!$G$18*(1+'LCC Assumption'!$F$20)^(C54-$C$6) -> 0 | M54: 0 | P54: 0 | Q54: 0
C55: 49 | H55: =$H$7*(1+'LCC Assumption'!$F$20)^(C55-$C$7) -> 0 | J55: =$J$7*(1+'LCC Assumption'!$F$20)^(C55-$C$7) -> 0 | K55: =$K$7*(1+'LCC Assumption'!$F$20)^(C55-$C$7) -> 0 | L55: ='O&M Costs'!$G$18*(1+'LCC Assumption'!$F$20)^(C55-$C$6) -> 0 | M55: 0 | P55: 0 | Q55: 0
C56: 50 | H56: =$H$7*(1+'LCC Assumption'!$F$20)^(C56-$C$7) -> 0 | J56: =$J$7*(1+'LCC Assumption'!$F$20)^(C56-$C$7) -> 0 | K56: =$K$7*(1+'LCC Assumption'!$F$20)^(C56-$C$7) -> 0 | L56: ='O&M Costs'!$G$18*(1+'LCC Assumption'!$F$20)^(C56-$C$6) -> 0 | M56: 0 | P56: 0 | Q56: 0
C57: Total | D57: =SUM(D6:D56) -> 0 | E57: =SUM(E7:E56) -> 0 | H57: =SUM(H7:H56) -> 0 | J57: =SUM(J7:J56) -> 0 | K57: =SUM(K7:K56) -> 0 | L57: =SUM(L7:L56) -> 0 | M57: =SUM(M7:M31) -> 0 | P57: =SUM(P6:P56) -> 0
P59: Gross Saving | Q59: =P57 -> 0
